Workbook

Sheet MENU

Sheet 1
A1: CUADRO 1 COSTA RICA: TOTAL Y VARIACIÓN DEL PADRÓN NACIONAL ELECTORAL
A2: SEGÚN PROVINCIA Y SEXO, DE DICIEMBRE 2006 A DICIEMBRE 2010
A4: PROVINCIA Y SEXO | B4: PADRÓN NACIONAL ELECTORAL | D4: VARIACIÓN
B6: DICIEMBRE 2006 | C6: DICIEMBRE 2010 | D6: ABSOLUTO | E6: %
A8: COSTA RICA | B8: =+B9+B10 -> 2603770 | C8: =+C9+C10 -> 2866217 | D8: =+C8-B8 -> 262447 | E8: =+D8/B8*100 -> 10.07950011
A9: HOMBRES | B9: =+B13+B17+B21+B25+B29+B33+B37 -> 1300955 | C9: =+C13+C17+C21+C25+C29+C33+C37+C41 -> 1430857 | D9: =+C9-B9 -> 129902 | E9: =+D9/B9*100 -> 9.985126311
A10: MUJERES | B10: =+B14+B18+B22+B26+B30+B34+B38 -> 1302815 | C10: =+C14+C18+C22+C26+C30+C34+C38+C42 -> 1435360 | D10: =+C10-B10 -> 132545 | E10: =+D10/B10*100 -> 10.17373917
A12: SAN JOSÉ | B12: =+B13+B14 -> 952561 | C12: =+C13+C14 -> 1016678 | D12: =+C12-B12 -> 64117 | E12: =+D12/B12*100 -> 6.731012502
A13: HOMBRES | B13: 463852 | C13: 495505 | D13: =+C13-B13 -> 31653 | E13: =+D13/B13*100 -> 6.823943844
A14: MUJERES | B14: 488709 | C14: 521173 | D14: =+C14-B14 -> 32464 | E14: =+D14/B14*100 -> 6.642807888
A16: ALAJUELA | B16: =+B17+B18 -> 476942 | C16: =+C17+C18 -> 533285 | D16: =+C16-B16 -> 56343 | E16: =+D16/B16*100 -> 11.81338611
A17: HOMBRES | B17: 240771 | C17: 269128 | D17: =+C17-B17 -> 28357 | E17: =+D17/B17*100 -> 11.77758119
A18: MUJERES | B18: 236171 | C18: 264157 | D18: =+C18-B18 -> 27986 | E18: =+D18/B18*100 -> 11.84988843
A20: CARTAGO | B20: =+B21+B22 -> 301688 | C20: =+C21+C22 -> 334473 | D20: =+C20-B20 -> 32785 | E20: =+D20/B20*100 -> 10.86718729
A21: HOMBRES | B21: 150759 | C21: 167036 | D21: =+C21-B21 -> 16277 | E21: =+D21/B21*100 -> 10.79670202
A22: MUJERES | B22: 150929 | C22: 167437 | D22: =+C22-B22 -> 16508 | E22: =+D22/B22*100 -> 10.93759317
A24: HEREDIA | B24: =+B25+B26 -> 251999 | C24: =+C25+C26 -> 283771 | D24: =+C24-B24 -> 31772 | E24: =+D24/B24*100 -> 12.60798654
A25: HOMBRES | B25: 124470 | C25: 139912 | D25: =+C25-B25 -> 15442 | E25: =+D25/B25*100 -> 12.4062023
A26: MUJERES | B26: 127529 | C26: 143859 | D26: =+C26-B26 -> 16330 | E26: =+D26/B26*100 -> 12.80493064
A28: GUANACASTE | B28: =+B29+B30 -> 178788 | C28: =+C29+C30 -> 203614 | D28: =+C28-B28 -> 24826 | E28: =+D28/B28*100 -> 13.8857194
A29: HOMBRES | B29: 90680 | C29: 103249 | D29: =+C29-B29 -> 12569 | E29: =+D29/B29*100 -> 13.86082929
A30: MUJERES | B30: 88108 | C30: 100365 | D30: =+C30-B30 -> 12257 | E30: =+D30/B30*100 -> 13.91133609
A32: PUNTARENAS | B32: =+B33+B34 -> 236660 | C32: =+C33+C34 -> 265197 | D32: =+C32-B32 -> 28537 | E32: =+D32/B32*100 -> 12.05822699
A33: HOMBRES | B33: 122811 | C33: 136989 | D33: =+C33-B33 -> 14178 | E33: =+D33/B33*100 -> 11.54456848
A34: MUJERES | B34: 113849 | C34: 128208 | D34: =+C34-B34 -> 14359 | E34: =+D34/B34*100 -> 12.61231983
A36: LIMÓN | B36: =+B37+B38 -> 205132 | C36: =+C37+C38 -> 228491 | D36: =+C36-B36 -> 23359 | E36: =+D36/B36*100 -> 11.38730183
A37: HOMBRES | B37: 107612 | C37: 118700 | D37: =+C37-B37 -> 11088 | E37: =+D37/B37*100 -> 10.3036836
A38: MUJERES | B38: 97520 | C38: 109791 | D38: =+C38-B38 -> 12271 | E38: =+D38/B38*100 -> 12.58305989
A40: EXTRANJERO | B40: NA | C40: =+C41+C42 -> 708 | D40: NA | E40: NA
A41: HOMBRES | B41: NA | C41: 338 | D41: NA | E41: NA
A42: MUJERES | B42: NA | C42: 370 | D42: NA | E42: NA
A45: NA: No Aplica
A47: Fuente: Sección Padrón Electoral del Tribunal Supremo de Elecciones.

Sheet G1
A1: MENU
J5: MENU
A26: Fuente: Sección Padrón Electoral del Tribunal Supremo de Elecciones.
B28: 2006 | C28: 2010
A30: EXTRANJERO | B30: 0 | C30: =+'1'!C40 -> 708
A31: GUANACASTE | B31: =+'1'!B28 -> 178788 | C31: =+'1'!C28 -> 203614
A32: LIMÓN | B32: =+'1'!B36 -> 205132 | C32: =+'1'!C36 -> 228491
A33: PUNTARENAS | B33: =+'1'!B32 -> 236660 | C33: =+'1'!C32 -> 265197
A34: HEREDIA | B34: =+'1'!B24 -> 251999 | C34: =+'1'!C24 -> 283771
A35: CARTAGO | B35: =+'1'!B20 -> 301688 | C35: =+'1'!C20 -> 334473
A36: ALAJUELA | B36: =+'1'!B16 -> 476942 | C36: =+'1'!C16 -> 533285
A37: SAN JOSÉ | B37: =+'1'!B12 -> 952561 | C37: =+'1'!C12 -> 1016678
B40: =SUM(B30:B37) -> 2603770 | C40: =SUM(C30:C37) -> 2866217

Sheet 2
A1: CUADRO 2 COSTA RICA: PADRÓN NACIONAL ELECTORAL, POR SEXO
A2: SEGÚN PROVINCIA Y CANTÓN, DICIEMBRE 2006 Y 2010
A4: PROVINCIA Y CANTÓN | B4: PADRÓN NACIONAL ELECTORAL
B5: DICIEMBRE 2006 | E5: DICIEMBRE 2010
B6: TOTAL | C6: HOMBRES | D6: MUJERES | E6: TOTAL | F6: HOMBRES | G6: MUJERES
A8: COSTA RICA | B8: =+B18+B40+B57+B67+B79+B92+B105 -> 2603770 | C8: =+C18+C40+C57+C67+C79+C92+C105 -> 1300955 | D8: =+D18+D40+D57+D67+D79+D92+D105 -> 1302815 | E8: =+E18+E40+E57+E67+E79+E92+E105+E113 -> 2866217 | F8: =+F18+F40+F57+F67+F79+F92+F105+F113 -> 1430857 | G8: =+G18+G40+G57+G67+G79+G92+G105+G113 -> 1435360
A9: SAN JOSÉ | B9: =+B18 -> 952561 | C9: 463852 | D9: 488709 | E9: 1016678 | F9: 495505 | G9: 521173
A10: ALAJUELA | B10: =+B40 -> 476942 | C10: 240771 | D10: 236171 | E10: 533285 | F10: 269128 | G10: 264157
A11: CARTAGO | B11: =+B57 -> 301688 | C11: 150759 | D11: 150929 | E11: 334473 | F11: 167036 | G11: 167437
A12: HEREDIA | B12: =+B67 -> 251999 | C12: 124470 | D12: 127529 | E12: 283771 | F12: 139912 | G12: 143859
A13: GUANACASTE | B13: =+B79 -> 178788 | C13: 90680 | D13: 88108 | E13: 203614 | F13: 103249 | G13: 100365
A14: PUNTARENAS | B14: =+B92 -> 236660 | C14: 122811 | D14: 113849 | E14: 265197 | F14: 136989 | G14: 128208
A15: LIMÓN | B15: =+B105 -> 205132 | C15: 107612 | D15: 97520 | E15: 228491 | F15: 118700 | G15: 109791
A16: EXTRANJERO | B16: NA | C16: NA | D16: NA | E16: =SUM(F16:G16) -> 708 | F16: 338 | G16: 370
A18: SAN JOSÉ | B18: =SUM(B19:B38) -> 952561 | C18: 463852 | D18: 488709 | E18: 1016678 | F18: 495505 | G18: 521173
A19: SAN JOSÉ | B19: =+C19+D19 -> 223838 | C19: 107192 | D19: 116646 | E19: =+F19+G19 -> 225542 | F19: 108215 | G19: 117327
A20: ESCAZÚ | B20: 36674 | C20: 17844 | D20: 18830 | E20: 40526 | F20: 19736 | G20: 20790
A21: DESAMPARADOS | B21: 134363 | C21: 65945 | D21: 68418 | E21: 144901 | F21: 71011 | G21: 73890
A22: PURISCAL | B22: 22038 | C22: 11137 | D22: 10901 | E22: 24663 | F22: 12429 | G22: 12234
A23: TARRAZÚ | B23: 9436 | C23: 4860 | D23: 4576 | E23: 10616 | F23: 5449 | G23: 5167
A24: ASERRÍ | B24: 33851 | C24: 17024 | D24: 16827 | E24: 37616 | F24: 18801 | G24: 18815
A25: MORA | B25: 15245 | C25: 7665 | D25: 7580 | E25: 17413 | F25: 8641 | G25: 8772
A26: GOICOECHEA | B26: 82656 | C26: 39519 | D26: 43137 | E26: 85797 | F26: 41130 | G26: 44667
A27: SANTA ANA | B27: 24156 | C27: 11922 | D27: 12234 | E27: 27941 | F27: 13729 | G27: 14212
A28: ALAJUELITA | B28: 41250 | C28: 20732 | D28: 20518 | E28: 44907 | F28: 22315 | G28: 22592
A29: VÁZQUEZ DE CORONADO | B29: 40007 | C29: 19410 | D29: 20597 | E29: 45831 | F29: 22200 | G29: 23631
A30: ACOSTA | B30: 12923 | C30: 6825 | D30: 6098 | E30: 14354 | F30: 7482 | G30: 6872
A31: TIBÁS | B31: 55489 | C31: 26149 | D31: 29340 | E31: 55315 | F31: 26064 | G31: 29251
A32: MORAVIA | B32: 37121 | C32: 17648 | D32: 19473 | E32: 40392 | F32: 19306 | G32: 21086
A33: MONTES DE OCA | B33: 40201 | C33: 18545 | D33: 21656 | E33: 41135 | F33: 19190 | G33: 21945
A34: TURRUBARES | B34: 3768 | C34: 1958 | D34: 1810 | E34: 4187 | F34: 2195 | G34: 1992
A35: DOTA | B35: 4433 | C35: 2243 | D35: 2190 | E35: 4836 | F35: 2437 | G35: 2399
A36: CURRIDABAT | B36: 41300 | C36: 19830 | D36: 21470 | E36: 44286 | F36: 21313 | G36: 22973
A37: PÉREZ ZELEDÓN | B37: 86526 | C37: 43685 | D37: 42841 | E37: 98271 | F37: 49699 | G37: 48572
A38: LEÓN CORTÉS | B38: 7286 | C38: 3719 | D38: 3567 | E38: 8149 | F38: 4163 | G38: 3986
A40: ALAJUELA | B40: =SUM(B41:B55) -> 476942 | C40: 240771 | D40: 236171 | E40: 533285 | F40: 269128 | G40: 264157
A41: ALAJUELA | B41: =+C41+D41 -> 157849 | C41: 79246 | D41: 78603 | E41: =+F41+G41 -> 173149 | F41: 87161 | G41: 85988
A42: SAN RAMÓN | B42: 47920 | C42: 23882 | D42: 24038 | E42: 53851 | F42: 26770 | G42: 27081
A43: GRECIA | B43: 45890 | C43: 23036 | D43: 22854 | E43: 50974 | F43: 25480 | G43: 25494
A44: SAN MATEO | B44: 3542 | C44: 1850 | D44: 1692 | E44: 3822 | F44: 1984 | G44: 1838
A45: ATENAS | B45: 15896 | C45: 8060 | D45: 7836 | E45: 17658 | F45: 8873 | G45: 8785
A46: NARANJO | B46: 25591 | C46: 12737 | D46: 12854 | E46: 28029 | F46: 13921 | G46: 14108
A47: PALMARES | B47: 22549 | C47: 11207 | D47: 11342 | E47: 25315 | F47: 12541 | G47: 12774
A48: POÁS | B48: 16227 | C48: 8143 | D48: 8084 | E48: 18233 | F48: 9174 | G48: 9059
A49: OROTINA | B49: 11256 | C49: 5628 | D49: 5628 | E49: 12953 | F49: 6479 | G49: 6474
A50: SAN CARLOS | B50: 76904 | C50: 39294 | D50: 37610 | E50: 88519 | F50: 45250 | G50: 43269
A51: ALFARO RUIZ (ZARCERO) | B51: 7158 | C51: 3607 | D51: 3551 | E51: 7973 | F51: 3999 | G51: 3974
A52: VALVERDE VEGA | B52: 11497 | C52: 5748 | D52: 5749 | E52: 12819 | F52: 6382 | G52: 6437
A53: UPALA | B53: 18914 | C53: 9951 | D53: 8963 | E53: 21797 | F53: 11432 | G53: 10365
A54: LOS CHILES | B54: 8112 | C54: 4366 | D54: 3746 | E54: 9243 | F54: 4991 | G54: 4252
A55: GUATUSO | B55: 7637 | C55: 4016 | D55: 3621 | E55: 8950 | F55: 4691 | G55: 4259
A57: CARTAGO | B57: =SUM(B58:B65) -> 301688 | C57: 150759 | D57: 150929 | E57: 334473 | F57: 167036 | G57: 167437
A58: CARTAGO | B58: =+C58+D58 -> 97160 | C58: 48059 | D58: 49101 | E58: =+F58+G58 -> 106013 | F58: 52424 | G58: 53589
A59: PARAÍSO | B59: 35636 | C59: 17881 | D59: 17755 | E59: 39836 | F59: 19941 | G59: 19895
A60: LA UNIÓN | B60: 52450 | C60: 26075 | D60: 26375 | E60: 59152 | F60: 29511 | G60: 29641
A61: JIMÉNEZ | B61: 9688 | C61: 5033 | D61: 4655 | E61: 10600 | F61: 5498 | G61: 5102
A62: TURRIALBA | B62: 48087 | C62: 24211 | D62: 23876 | E62: 51904 | F62: 26079 | G62: 25825
A63: ALVARADO | B63: 7679 | C63: 3890 | D63: 3789 | E63: 8697 | F63: 4396 | G63: 4301
A64: OREAMUNO | B64: 27124 | C64: 13388 | D64: 13736 | E64: 30700 | F64: 15159 | G64: 15541
A65: EL GUARCO | B65: 23864 | C65: 12222 | D65: 11642 | E65: 27571 | F65: 14028 | G65: 13543
A67: HEREDIA | B67: =SUM(B68:B77) -> 251999 | C67: 124470 | D67: 127529 | E67: 283771 | F67: 139912 | G67: 143859
A68: HEREDIA | B68: =+C68+D68 -> 78213 | C68: 37476 | D68: 40737 | E68: =+F68+G68 -> 85356 | F68: 40946 | G68: 44410
A69: BARVA | B69: 24081 | C69: 11748 | D69: 12333 | E69: 27552 | F69: 13533 | G69: 14019
A70: SANTO DOMINGO | B70: 27560 | C70: 13663 | D70: 13897 | E70: 30722 | F70: 15184 | G70: 15538
A71: SANTA BÁRBARA | B71: 19882 | C71: 9927 | D71: 9955 | E71: 22788 | F71: 11356 | G71: 11432
A72: SAN RAFAEL | B72: 26447 | C72: 13190 | D72: 13257 | E72: 29538 | F72: 14634 | G72: 14904
A73: SAN ISIDRO | B73: 11428 | C73: 5689 | D73: 5739 | E73: 13112 | F73: 6576 | G73: 6536
A74: BELÉN | B74: 14339 | C74: 7120 | D74: 7219 | E74: 15982 | F74: 7880 | G74: 8102
A75: FLORES | B75: 11803 | C75: 5788 | D75: 6015 | E75: 13761 | F75: 6731 | G75: 7030
A76: SAN PABLO | B76: 15619 | C76: 7577 | D76: 8042 | E76: 18343 | F76: 8855 | G76: 9488
A77: SARAPIQUÍ | B77: 22627 | C77: 12292 | D77: 10335 | E77: 26617 | F77: 14217 | G77: 12400
A79: GUANACASTE | B79: =SUM(B80:B90) -> 178788 | C79: 90680 | D79: 88108 | E79: 203614 | F79: 103249 | G79: 100365
A80: LIBERIA | B80: =+C80+D80 -> 32303 | C80: 16053 | D80: 16250 | E80: =+F80+G80 -> 37797 | F80: 18911 | G80: 18886
A81: NICOYA | B81: 31707 | C81: 16066 | D81: 15641 | E81: 35669 | F81: 18012 | G81: 17657
A82: SANTA CRUZ | B82: 29852 | C82: 15224 | D82: 14628 | E82: 34567 | F82: 17669 | G82: 16898
A83: BAGACES | B83: 9869 | C83: 5021 | D83: 4848 | E83: 11245 | F83: 5717 | G83: 5528
A84: CARRILLO | B84: 17448 | C84: 8884 | D84: 8564 | E84: 20050 | F84: 10219 | G84: 9831
A85: CAÑAS | B85: 15854 | C85: 7981 | D85: 7873 | E85: 17344 | F85: 8696 | G85: 8648
A86: ABANGARES | B86: 10612 | C86: 5498 | D86: 5114 | E86: 11763 | F86: 6040 | G86: 5723
A87: TILARÁN | B87: 12161 | C87: 6119 | D87: 6042 | E87: 13309 | F87: 6702 | G87: 6607
A88: NANDAYURE | B88: 6656 | C88: 3456 | D88: 3200 | E88: 7489 | F88: 3909 | G88: 3580
A89: LA CRUZ | B89: 7812 | C89: 4045 | D89: 3767 | E89: 9262 | F89: 4732 | G89: 4530
A90: HOJANCHA | B90: 4514 | C90: 2333 | D90: 2181 | E90: 5119 | F90: 2642 | G90: 2477
A92: PUNTARENAS | B92: =SUM(B93:B103) -> 236660 | C92: 122811 | D92: 113849 | E92: 265197 | F92: 136989 | G92: 128208
A93: PUNTARENAS | B93: =+C93+D93 -> 70884 | C93: 36525 | D93: 34359 | E93: =+F93+G93 -> 77238 | F93: 39656 | G93: 37582
A94: ESPARZA | B94: 16418 | C94: 8164 | D94: 8254 | E94: 18825 | F94: 9370 | G94: 9455
A95: BUENOS AIRES | B95: 23632 | C95: 12600 | D95: 11032 | E95: 27392 | F95: 14450 | G95: 12942
A96: MONTES DE ORO | B96: 7849 | C96: 3894 | D96: 3955 | E96: 8750 | F96: 4337 | G96: 4413
A97: OSA | B97: 16577 | C97: 8870 | D97: 7707 | E97: 18664 | F97: 9964 | G97: 8700
A98: AGUIRRE | B98: 14330 | C98: 7664 | D98: 6666 | E98: 16693 | F98: 8909 | G98: 7784
A99: GOLFITO | B99: 22490 | C99: 11733 | D99: 10757 | E99: 25019 | F99: 13054 | G99: 11965
A100: COTO BRUS | B100: 24647 | C100: 12659 | D100: 11988 | E100: 26188 | F100: 13291 | G100: 12897
A101: PARRITA | B101: 8157 | C101: 4299 | D101: 3858 | E101: 9776 | F101: 5118 | G101: 4658
A102: CORREDORES | B102: 24590 | C102: 12538 | D102: 12052 | E102: 27936 | F102: 14168 | G102: 13768
A103: GARABITO | B103: 7086 | C103: 3865 | D103: 3221 | E103: 8716 | F103: 4672 | G103: 4044
A105: LIMÓN | B105: =SUM(B106:B111) -> 205132 | C105: 107612 | D105: 97520 | E105: 228491 | F105: 118700 | G105: 109791
A106: LIMÓN | B106: =+C106+D106 -> 58080 | C106: 29701 | D106: 28379 | E106: =+F106+G106 -> 61603 | F106: 31186 | G106: 30417
A107: POCOCÍ | B107: 65050 | C107: 34211 | D107: 30839 | E107: 75016 | F107: 39302 | G107: 35714
A108: SIQUIRRES | B108: 31380 | C108: 16691 | D108: 14689 | E108: 34544 | F108: 18170 | G108: 16374
A109: TALAMANCA | B109: 13239 | C109: 7158 | D109: 6081 | E109: 15458 | F109: 8212 | G109: 7246
A110: MATINA | B110: 16768 | C110: 9043 | D110: 7725 | E110: 18313 | F110: 9640 | G110: 8673
A111: GUÁCIMO | B111: 20615 | C111: 10808 | D111: 9807 | E111: 23557 | F111: 12190 | G111: 11367
A113: EXTRANJERO | B113: NA | C113: NA | D113: NA | E113: =+F113+G113 -> 708 | F113: 338 | G113: 370
A116: NA: No Aplica
A117: Fuente: Sección Padrón Electoral del Tribunal Supremo de Elecciones.

Sheet 3
A1: CUADRO 3 COSTA RICA: PADRÓN NACIONAL ELECTORAL, POR SEXO
A2: SEGÚN EDAD AL 5 DE DICIEMBRE 2010
A4: EDAD AL 3 DE DICIEMBRE DEL 2006 | B4: TOTAL | C4: SEXO
B5: Total | C5: HOMBRES | D5: MUJERES
A7: TOTAL | B7: =SUM(B9:B102) -> 2866217 | C7: =SUM(C9:C102) -> 1430857 | D7: =SUM(D9:D102) -> 1435360
A9: 18 AÑOS | B9: =+C9+D9 -> 51798 | C9: 26197 | D9: 25601
A10: 19 AÑOS | B10: 76912 | C10: 39318 | D10: 37594
A11: 20 AÑOS | B11: 79427 | C11: 40776 | D11: 38651
A12: 21 AÑOS | B12: 80679 | C12: 41179 | D12: 39500
A13: 22 AÑOS | B13: 78236 | C13: 40127 | D13: 38109
A14: 23 AÑOS | B14: 77798 | C14: 39698 | D14: 38100
A15: 24 AÑOS | B15: 80035 | C15: 40808 | D15: 39227
A16: 25 AÑOS | B16: 81469 | C16: 41518 | D16: 39951
A17: 26 AÑOS | B17: 75428 | C17: 38389 | D17: 37039
A18: 27 AÑOS | B18: 70770 | C18: 36050 | D18: 34720
A19: 28 AÑOS | B19: 69997 | C19: 35549 | D19: 34448
A20: 29 AÑOS | B20: 69319 | C20: 35112 | D20: 34207
A21: 30 AÑOS | B21: 67266 | C21: 34000 | D21: 33266
A22: 31 AÑOS | B22: 65774 | C22: 33329 | D22: 32445
A23: 32 AÑOS | B23: 63620 | C23: 32030 | D23: 31590
A24: 33 AÑOS | B24: 61136 | C24: 30933 | D24: 30203
A25: 34 AÑOS | B25: 56295 | C25: 28465 | D25: 27830
A26: 35 AÑOS | B26: 55580 | C26: 28004 | D26: 27576
A27: 36 AÑOS | B27: 54511 | C27: 27616 | D27: 26895
A28: 37 AÑOS | B28: 53792 | C28: 27101 | D28: 26691
A29: 38 AÑOS | B29: 54085 | C29: 27134 | D29: 26951
A30: 39 AÑOS | B30: 54780 | C30: 27324 | D30: 27456
A31: 40 AÑOS | B31: 53211 | C31: 26788 | D31: 26423
A32: 41 AÑOS | B32: 54247 | C32: 27091 | D32: 27156
A33: 42 AÑOS | B33: 54699 | C33: 27599 | D33: 27100
A34: 43 AÑOS | B34: 56325 | C34: 28282 | D34: 28043
A35: 44 AÑOS | B35: 56207 | C35: 27851 | D35: 28356
A36: 45 AÑOS | B36: 55573 | C36: 27935 | D36: 27638
A37: 46 AÑOS | B37: 55119 | C37: 27430 | D37: 27689
A38: 47 AÑOS | B38: 54213 | C38: 27124 | D38: 27089
A39: 48 AÑOS | B39: 52594 | C39: 25922 | D39: 26672
A40: 49 AÑOS | B40: 52453 | C40: 26332 | D40: 26121
A41: 50 AÑOS | B41: =+C41+D41 -> 50580 | C41: 24928 | D41: 25652
A42: 51 AÑOS | B42: 48253 | C42: 23993 | D42: 24260
A43: 52 AÑOS | B43: 45534 | C43: 22603 | D43: 22931
A44: 53 AÑOS | B44: 43883 | C44: 21799 | D44: 22084
A45: 54 AÑOS | B45: 42477 | C45: 20951 | D45: 21526
A46: 55 AÑOS | B46: 40648 | C46: 19922 | D46: 20726
A47: 56 AÑOS | B47: 38857 | C47: 19199 | D47: 19658
A48: 57 AÑOS | B48: 35927 | C48: 17739 | D48: 18188
A49: 58 AÑOS | B49: 34062 | C49: 16673 | D49: 17389
A50: 59 AÑOS | B50: 31588 | C50: 15392 | D50: 16196
A51: 60 AÑOS | B51: 30358 | C51: 14933 | D51: 15425
A52: 61 AÑOS | B52: 28297 | C52: 13737 | D52: 14560
A53: 62 AÑOS | B53: 26243 | C53: 12849 | D53: 13394
A54: 63 AÑOS | B54: 24719 | C54: 12062 | D54: 12657
A55: 64 AÑOS | B55: 22896 | C55: 11147 | D55: 11749
A56: 65 AÑOS | B56: 22735 | C56: 11190 | D56: 11545
A57: 66 AÑOS | B57: 21538 | C57: 10454 | D57: 11084
A58: 67 AÑOS | B58: 19586 | C58: 9483 | D58: 10103
A59: 68 AÑOS | B59: 17930 | C59: 8586 | D59: 9344
A60: 69 AÑOS | B60: 17402 | C60: 8398 | D60: 9004
A61: 70 AÑOS | B61: 16708 | C61: 8072 | D61: 8636
A62: 71 AÑOS | B62: 15766 | C62: 7615 | D62: 8151
A63: 72 AÑOS | B63: 15169 | C63: 7305 | D63: 7864
A64: 73 AÑOS | B64: 14187 | C64: 6845 | D64: 7342
A65: 74 AÑOS | B65: 13506 | C65: 6298 | D65: 7208
A66: 75 AÑOS | B66: 12515 | C66: 5802 | D66: 6713
A67: 76 AÑOS | B67: 11297 | C67: 5334 | D67: 5963
A68: 77 AÑOS | B68: 10673 | C68: 4904 | D68: 5769
A69: 78 AÑOS | B69: 10343 | C69: 4799 | D69: 5544
A70: 79 AÑOS | B70: 9818 | C70: 4439 | D70: 5379
A71: 80 AÑOS | B71: 9222 | C71: 4296 | D71: 4926
A72: 81 AÑOS | B72: 8083 | C72: 3655 | D72: 4428
A73: 82 AÑOS | B73: =+C73+D73 -> 7861 | C73: 3528 | D73: 4333
A74: 83 AÑOS | B74: 7144 | C74: 3297 | D74: 3847
A75: 84 AÑOS | B75: 6264 | C75: 2773 | D75: 3491
A76: 85 AÑOS | B76: 5174 | C76: 2200 | D76: 2974
A77: 86 AÑOS | B77: 4526 | C77: 1952 | D77: 2574
A78: 87 AÑOS | B78: 3821 | C78: 1673 | D78: 2148
A79: 88 AÑOS | B79: 3409 | C79: 1429 | D79: 1980
A80: 89 AÑOS | B80: 3001 | C80: 1243 | D80: 1758
A81: 90 AÑOS | B81: 2278 | C81: 940 | D81: 1338
A82: 91 AÑOS | B82: 1743 | C82: 689 | D82: 1054
A83: 92 AÑOS | B83: 1511 | C83: 616 | D83: 895
A84: 93 AÑOS | B84: 1255 | C84: 532 | D84: 723
A85: 94 AÑOS | B85: 1018 | C85: 401 | D85: 617
A86: 95 AÑOS | B86: 828 | C86: 320 | D86: 508
A87: 96 AÑOS | B87: 694 | C87: 248 | D87: 446
A88: 97 AÑOS | B88: 494 | C88: 190 | D88: 304
A89: 98 AÑOS | B89: 346 | C89: 140 | D89: 206
A90: 99 AÑOS | B90: 225 | C90: 85 | D90: 140
A91: 100 AÑOS | B91: 162 | C91: 60 | D91: 102
A92: 101 AÑOS | B92: 112 | C92: 42 | D92: 70
A93: 102 AÑOS | B93: 75 | C93: 29 | D93: 46
A94: 103 AÑOS | B94: 48 | C94: 21 | D94: 27
A95: 104 AÑOS | B95: 33 | C95: 14 | D95: 19
A96: 105 AÑOS | B96: 18 | C96: 11 | D96: 7
A97: 106 AÑOS | B97: 17 | C97: 7 | D97: 10
A98: 107 AÑOS | B98: 5 | C98: 1 | D98: 4
A99: 108 AÑOS | B99: 4 | C99: 2 | D99: 2
A100: 109 AÑOS | B100: 1 | C100: 0 | D100: 1
A101: 110 AÑOS | B101: 1 | C101: 1 | D101: 0
A102: 111 AÑOS | B102: 1 | C102: 0 | D102: 1
A105: Fuente: Sección Padrón Electoral del Tribunal Supremo de Elecciones.

Sheet 4
A1: CUADRO 4 COSTA RICA: PADRÓN NACIONAL ELECTORAL, POR SEXO
A2: SEGÚN GRUPOS DE EDAD, ELECCIONES 5 DE DICIEMBRE 2010
A4: GRUPOS DE EDAD | B4: TOTAL | C4: SEXO
B5: Total | C5: HOMBRES | D5: MUJERES
A7: TOTAL | B7: =SUM(B9:B23) -> 2866217 | C7: =SUM(C9:C23) -> 1430857 | D7: =SUM(D9:D23) -> 1435360
A9: 18 - 19 | B9: =+C9+D9 -> 128710 | C9: 65515 | D9: 63195
A10: 20 - 24 | B10: 396175 | C10: 202588 | D10: 193587
A11: 25 - 29 | B11: 366983 | C11: 186618 | D11: 180365
A12: 30 - 34 | B12: 314091 | C12: 158757 | D12: 155334
A13: 35 - 39 | B13: 272748 | C13: 137179 | D13: 135569
A14: 40 - 44 | B14: 274689 | C14: 137611 | D14: 137078
A15: 45 - 49 | B15: 269952 | C15: 134743 | D15: 135209
A16: 50 - 54 | B16: 230727 | C16: 114274 | D16: 116453
A17: 55 - 59 | B17: 181082 | C17: 88925 | D17: 92157
A18: 60 - 64 | B18: 132513 | C18: 64728 | D18: 67785
A19: 65 - 69 | B19: 99191 | C19: 48111 | D19: 51080
A20: 70 - 74 | B20: 75336 | C20: 36135 | D20: 39201
A21: 75 - 79 | B21: 54646 | C21: 25278 | D21: 29368
A22: 80 - 84 | B22: 38574 | C22: 17549 | D22: 21025
A23: 85 Y MÁS | B23: 30800 | C23: 12846 | D23: 17954
A26: Fuente: Sección Padrón Electoral del Tribunal Supremo de Elecciones.

Sheet G2
I3: HOMBRES | J3: MUJERES
I4: =+'4'!C9 -> 65515 | J4: =+'4'!D9*-1 -> -63195 | K4: 18 - 19 | L4: =CONCATENATE(K4," ") -> 18 - 19
I5: =+'4'!C10 -> 202588 | J5: =+'4'!D10*-1 -> -193587 | K5: 20 - 24 | L5: 20 - 24
I6: =+'4'!C11 -> 186618 | J6: =+'4'!D11*-1 -> -180365 | K6: 25 - 29 | L6: 25 - 29
I7: =+'4'!C12 -> 158757 | J7: =+'4'!D12*-1 -> -155334 | K7: 30 - 34 | L7: 30 - 34
I8: =+'4'!C13 -> 137179 | J8: =+'4'!D13*-1 -> -135569 | K8: 35 - 39 | L8: 35 - 39
I9: =+'4'!C14 -> 137611 | J9: =+'4'!D14*-1 -> -137078 | K9: 40 - 44 | L9: 40 - 44
I10: =+'4'!C15 -> 134743 | J10: =+'4'!D15*-1 -> -135209 | K10: 45 - 49 | L10: 45 - 49
I11: =+'4'!C16 -> 114274 | J11: =+'4'!D16*-1 -> -116453 | K11: 50 - 54 | L11: 50 - 54
I12: =+'4'!C17 -> 88925 | J12: =+'4'!D17*-1 -> -92157 | K12: 55 - 59 | L12: 55 - 59
I13: =+'4'!C18 -> 64728 | J13: =+'4'!D18*-1 -> -67785 | K13: 60 - 64 | L13: 60 - 64
I14: =+'4'!C19 -> 48111 | J14: =+'4'!D19*-1 -> -51080 | K14: 65 - 69 | L14: 65 - 69
I15: =+'4'!C20 -> 36135 | J15: =+'4'!D20*-1 -> -39201 | K15: 70 - 74 | L15: 70 - 74
I16: =+'4'!C21 -> 25278 | J16: =+'4'!D21*-1 -> -29368 | K16: 75 - 79 | L16: 75 - 79
I17: =+'4'!C22 -> 17549 | J17: =+'4'!D22*-1 -> -21025 | K17: 80 - 84 | L17: 80 - 84
I18: =+'4'!C23 -> 12846 | J18: =+'4'!D23*-1 -> -17954 | K18: 85 Y MÁS | L18: 85 Y MÁS
I20: =SUM(I4:I19) -> 1430857 | J20: =SUM(J4:J19) -> -1435360
J22: =+I20-J20 -> 2866217
A30: Fuente: Sección Padrón Electoral del Tribunal Supremo de Elecciones.

Sheet 5
A1: CUADRO 5 COSTA RICA: PADRÓN NACIONAL ELECTORAL, POR PROVINCIA
A2: SEGÚN SEXO Y GRUPOS DE EDAD, ELECCIONES 3 DE DICIEMBRE 2006
A4: SEXO Y GRUPOS DE EDAD | B4: TOTAL | C4: PROVINCIA
C5: SAN JOSÉ | D5: ALAJUELA | E5: CARTAGO | F5: HEREDIA | G5: GUANACASTE | H5: PUNTARENAS | I5: LIMÓN | J5: EXTRANJERO
A7: COSTA RICA | B7: =SUM(B8:B22) -> 2866217 | C7: 1016678 | D7: 533285 | E7: 334473 | F7: 283771 | G7: 203614 | H7: 265197 | I7: 228491 | J7: 708
A8: 18 - 19 | B8: =+B25+B42 -> 128710 | C8: 41390 | D8: 24825 | E8: 15625 | F8: 12016 | G8: 9659 | H8: 13143 | I8: 12029 | J8: 23
A9: 20 - 24 | B9: =+B26+B43 -> 396175 | C9: 132595 | D9: 76573 | E9: 47516 | F9: 37050 | G9: 28674 | H9: 38671 | I9: 35030 | J9: 66
A10: 25 - 29 | B10: =+B27+B44 -> 366983 | C10: 128466 | D10: 67942 | E10: 42006 | F10: 36493 | G10: 26072 | H10: 35181 | I10: 30722 | J10: 101
A11: 30 - 34 | B11: =+B28+B45 -> 314091 | C11: 111647 | D11: 56716 | E11: 37020 | F11: 32405 | G11: 22048 | H11: 28898 | I11: 25233 | J11: 124
A12: 35 - 39 | B12: =+B29+B46 -> 272748 | C12: 93639 | D12: 49666 | E12: 32899 | F12: 27808 | G12: 19325 | H12: 26051 | I12: 23272 | J12: 88
A13: 40 - 44 | B13: =+B30+B47 -> 274689 | C13: 94543 | D13: 51767 | E13: 33438 | F13: 27328 | G13: 19166 | H13: 25819 | I13: 22537 | J13: 91
A14: 45 - 49 | B14: =+B31+B48 -> 269952 | C14: 95926 | D14: 51319 | E14: 31934 | F14: 27220 | G14: 18619 | H14: 24138 | I14: 20723 | J14: 73
A15: 50 - 54 | B15: =+B32+B49 -> 230727 | C15: 84465 | D15: 42988 | E15: 26593 | F15: 23502 | G15: 15736 | H15: 20150 | I15: 17246 | J15: 47
A16: 55 - 59 | B16: =+B33+B50 -> 181082 | C16: 68161 | D16: 32313 | E16: 20202 | F16: 18661 | G16: 12327 | H16: 15760 | I16: 13620 | J16: 38
A17: 60 - 64 | B17: =+B34+B51 -> 132513 | C17: 50769 | D17: 23854 | E17: 14366 | F17: 13241 | G17: 9301 | H17: 11453 | I17: 9502 | J17: 27
A18: 65 - 69 | B18: =+B35+B52 -> 99191 | C18: 37488 | D18: 18647 | E18: 11298 | F18: 9469 | G18: 7052 | H18: 8707 | I18: 6518 | J18: 12
A19: 70 - 74 | B19: =+B36+B53 -> 75336 | C19: 28488 | D19: 14137 | E19: 8406 | F19: 6939 | G19: 5724 | H19: 6741 | I19: 4892 | J19: 9
A20: 75 - 79 | B20: =+B37+B54 -> 54646 | C20: 21241 | D20: 10006 | E20: 6032 | F20: 5079 | G20: 4221 | H20: 4782 | I20: 3282 | J20: 3
A21: 80 - 84 | B21: =+B38+B55 -> 38574 | C21: 15670 | D21: 6831 | E21: 4124 | F21: 3644 | G21: 2965 | H21: 3193 | I21: 2142 | J21: 5
A22: 85 Y MÁS | B22: =+B39+B56 -> 30800 | C22: 12190 | D22: 5701 | E22: 3014 | F22: 2916 | G22: 2725 | H22: 2510 | I22: 1743 | J22: 1
A24: HOMBRES | B24: =SUM(B25:B39) -> 1430857 | C24: 495505 | D24: 269128 | E24: 167036 | F24: 139912 | G24: 103249 | H24: 136989 | I24: 118700 | J24: 338
A25: 18 - 19 | B25: =SUM(C25:J25) -> 65515 | C25: 20938 | D25: 12753 | E25: 8042 | F25: 6120 | G25: 4882 | H25: 6648 | I25: 6124 | J25: 8
A26: 20 - 24 | B26: 202588 | C26: 67328 | D26: 39541 | E26: 24419 | F26: 18890 | G26: 14693 | H26: 19853 | I26: 17832 | J26: 32
A27: 25 - 29 | B27: 186618 | C27: 64943 | D27: 34846 | E27: 21450 | F27: 18380 | G27: 13394 | H27: 18034 | I27: 15523 | J27: 48
A28: 30 - 34 | B28: 158757 | C28: 56528 | D28: 28971 | E28: 18599 | F28: 16348 | G28: 11007 | H28: 14549 | I28: 12693 | J28: 62
A29: 35 - 39 | B29: 137179 | C29: 46795 | D29: 24961 | E29: 16315 | F29: 13985 | G29: 9694 | H29: 13443 | I29: 11945 | J29: 41
A30: 40 - 44 | B30: 137611 | C30: 46804 | D30: 26004 | E30: 16636 | F30: 13458 | G30: 9770 | H30: 13260 | I30: 11638 | J30: 41
A31: 45 - 49 | B31: 134743 | C31: 46842 | D31: 25658 | E31: 15944 | F31: 13316 | G31: 9540 | H31: 12568 | I31: 10837 | J31: 38
A32: 50 - 54 | B32: 114274 | C32: 40288 | D32: 21651 | E32: 13177 | F32: 11509 | G32: 8002 | H32: 10450 | I32: 9176 | J32: 21
A33: 55 - 59 | B33: 88925 | C33: 31921 | D33: 16287 | E33: 9859 | F33: 8965 | G33: 6267 | H33: 8232 | I33: 7373 | J33: 21
A34: 60 - 64 | B34: 64728 | C34: 23539 | D34: 11804 | E34: 6978 | F34: 6343 | G34: 4629 | H34: 6105 | I34: 5317 | J34: 13
A35: 65 - 69 | B35: 48111 | C35: 17131 | D35: 9211 | E35: 5543 | F35: 4444 | G35: 3580 | H35: 4567 | I35: 3629 | J35: 6
A36: 70 - 74 | B36: 36135 | C36: 12679 | D36: 6897 | E36: 4051 | F36: 3185 | G36: 2931 | H36: 3668 | I36: 2720 | J36: 4
A37: 75 - 79 | B37: 25278 | C37: 8953 | D37: 4813 | E37: 2831 | F37: 2213 | G37: 2107 | H37: 2538 | I37: 1822 | J37: 1
A38: 80 - 84 | B38: 17549 | C38: 6392 | D38: 3188 | E38: 1962 | F38: 1603 | G38: 1476 | H38: 1765 | I38: 1161 | J38: 2
A39: 85 Y MÁS | B39: 12846 | C39: 4424 | D39: 2543 | E39: 1230 | F39: 1153 | G39: 1277 | H39: 1309 | I39: 910 | J39: 0
A41: MUJERES | B41: =SUM(B42:B56) -> 1435360 | C41: 521173 | D41: 264157 | E41: 167437 | F41: 143859 | G41: 100365 | H41: 128208 | I41: 109791 | J41: 370
A42: 18 - 19 | B42: =SUM(C42:J42) -> 63195 | C42: 20452 | D42: 12072 | E42: 7583 | F42: 5896 | G42: 4777 | H42: 6495 | I42: 5905 | J42: 15
A43: 20 - 24 | B43: 193587 | C43: 65267 | D43: 37032 | E43: 23097 | F43: 18160 | G43: 13981 | H43: 18818 | I43: 17198 | J43: 34
A44: 25 - 29 | B44: 180365 | C44: 63523 | D44: 33096 | E44: 20556 | F44: 18113 | G44: 12678 | H44: 17147 | I44: 15199 | J44: 53
A45: 30 - 34 | B45: 155334 | C45: 55119 | D45: 27745 | E45: 18421 | F45: 16057 | G45: 11041 | H45: 14349 | I45: 12540 | J45: 62
A46: 35 - 39 | B46: 135569 | C46: 46844 | D46: 24705 | E46: 16584 | F46: 13823 | G46: 9631 | H46: 12608 | I46: 11327 | J46: 47
A47: 40 - 44 | B47: 137078 | C47: 47739 | D47: 25763 | E47: 16802 | F47: 13870 | G47: 9396 | H47: 12559 | I47: 10899 | J47: 50
A48: 45 - 49 | B48: 135209 | C48: 49084 | D48: 25661 | E48: 15990 | F48: 13904 | G48: 9079 | H48: 11570 | I48: 9886 | J48: 35
A49: 50 - 54 | B49: 116453 | C49: 44177 | D49: 21337 | E49: 13416 | F49: 11993 | G49: 7734 | H49: 9700 | I49: 8070 | J49: 26
A50: 55 - 59 | B50: 92157 | C50: 36240 | D50: 16026 | E50: 10343 | F50: 9696 | G50: 6060 | H50: 7528 | I50: 6247 | J50: 17
A51: 60 - 64 | B51: 67785 | C51: 27230 | D51: 12050 | E51: 7388 | F51: 6898 | G51: 4672 | H51: 5348 | I51: 4185 | J51: 14
A52: 65 - 69 | B52: 51080 | C52: 20357 | D52: 9436 | E52: 5755 | F52: 5025 | G52: 3472 | H52: 4140 | I52: 2889 | J52: 6
A53: 70 - 74 | B53: 39201 | C53: 15809 | D53: 7240 | E53: 4355 | F53: 3754 | G53: 2793 | H53: 3073 | I53: 2172 | J53: 5
A54: 75 - 79 | B54: 29368 | C54: 12288 | D54: 5193 | E54: 3201 | F54: 2866 | G54: 2114 | H54: 2244 | I54: 1460 | J54: 2
A55: 80 - 84 | B55: 21025 | C55: 9278 | D55: 3643 | E55: 2162 | F55: 2041 | G55: 1489 | H55: 1428 | I55: 981 | J55: 3
A56: 85 Y MÁS | B56: 17954 | C56: 7766 | D56: 3158 | E56: 1784 | F56: 1763 | G56: 1448 | H56: 1201 | I56: 833 | J56: 1
A59: Fuente: Sección Padrón Electoral del Tribunal Supremo de Elecciones.

Sheet 6
A1: CUADRO 6 COSTA RICA: MOVIMIENTOS AL PADRÓN NACIONAL ELECTORAL
A2: POR INCLUSIONES Y EXCLUSIONES, SEGÚN MES, A SETIEMBRE 2010
A4: MES | B4: PADRÓN ELECTORAL CIERRE ANTERIOR | C4: INCLUSIONES | E4: EXCLUSIONES | H4: TOTAL PADRÓN NACIONAL ELECTORAL
C6: NUEVOS ELECTORES 1/ | D6: CÉDULAS RENOVADAS | E6: DEFUNCIÓN | F6: CÉDULAS VENCIDAS | G6: OTRAS
A9: ENERO | B9: 2822491 | C9: 0 | D9: 0 | E9: 0 | F9: 0 | G9: 0 | H9: =+B9+C9+D9-E9-F9-G9 -> 2822491
A10: FEBRERO | B10: 2822491 | C10: 0 | D10: 0 | E10: 0 | F10: 0 | G10: 0 | H10: 2822491
A11: MARZO | B11: 2822491 | C11: 0 | D11: 0 | E11: 0 | F11: 0 | G11: 0 | H11: 2822491
A12: ABRIL | B12: 2822491 | C12: 32889 | D12: 6474 | E12: 6540 | F12: 15243 | G12: 89 | H12: 2839982
A13: MAYO | B13: 2839982 | C13: 6236 | D13: 2098 | E13: 1285 | F13: 0 | G13: 34 | H13: 2846997
A14: JUNIO | B14: 2846997 | C14: 8384 | D14: 1939 | E14: 1403 | F14: 0 | G14: 54 | H14: 2855863
A15: JULIO | B15: 2855863 | C15: 7615 | D15: 1684 | E15: 1459 | F15: 0 | G15: 46 | H15: 2863657
A16: AGOSTO | B16: 2863657 | C16: 4476 | D16: 768 | E16: 1953 | F16: 0 | G16: 27 | H16: 2866921
A17: SETIEMBRE | B17: 2866921 | C17: 66 | D17: 22 | E17: 786 | F17: 0 | G17: 6 | H17: 2866217
A19: 1/ Incluye nuevos electores, inclusión condicional de nuevos electores y otras inclusiones.
A21: Nota: El padrón estuvo cerrado por las elecciones hasta marzo inclusive.
A23: Fuente: Sección Padrón Electoral del Tribunal Supremo de Elecciones.

Sheet 7
A1: CUADRO 7 COSTA RICA: CANTONES, DISTRITOS ADMINISTRATIVOS Y ELECTORALES
A2: SEGÚN PROVINCIA, ELECCIONES 5 DE DICIEMBRE 2010
A4: PROVINCIA | B4: CANTONES | C4: DISTRITOS
C5: ADMINISTRATIVOS | D5: ELECTORALES
A7: COSTA RICA | B7: 81 | C7: =SUM(C9:C15) -> 473 | D7: =SUM(D9:D16) -> 2076
A9: SAN JOSÉ | B9: 20 | C9: 120 | D9: 436
A10: ALAJUELA | B10: 15 | C10: 111 | D10: 437
A11: CARTAGO | B11: 8 | C11: 51 | D11: 192
A12: HEREDIA | B12: 10 | C12: 47 | D12: 113
A13: GUANACASTE | B13: 11 | C13: 59 | D13: 293
A14: PUNTARENAS | B14: 11 | C14: 57 | D14: 370
A15: LIMÓN | B15: 6 | C15: 28 | D15: 189
A16: EXTRANJERO | B16: NA | C16: NA | D16: 46
A19: NA: No Aplica.
A20: Fuente: Contraloría Electoral del Tribunal Supremo de Elecciones.

Sheet 8
A1: CUADRO 8 COSTA RICA: MOVIMIENTOS A LA DIVISIÓN TERRITORIAL ELECTORAL
A2: SEGÚN PROVINCIA AL 5 DE DICIEMBRE 2010
A4: PROVINCIA | B4: DISTRITOS ADMINISTRATIVOS CREADOS | C4: DISTRITOS ELECTORALES
C5: CREADOS 1/ | D5: ELIMINADOS 2/ | E5: REUBICADOS 3/
A7: COSTA RICA | B7: =SUM(B9:B15) -> 3 | C7: =SUM(C9:C15) -> 13 | D7: =SUM(D9:D15) -> 1 | E7: =SUM(E9:E15) -> 1
A9: SAN JOSÉ | B9: 0 | C9: 2 | D9: 0 | E9: 0
A10: ALAJUELA | B10: 2 | C10: 4 | D10: 0 | E10: 0
A11: CARTAGO | B11: 0 | C11: 0 | D11: 1 | E11: 0
A12: HEREDIA | B12: 1 | C12: 0 | D12: 0 | E12: 0
A13: GUANACASTE | B13: 0 | C13: 0 | D13: 0 | E13: 0
A14: PUNTARENAS | B14: 0 | C14: 7 | D14: 0 | E14: 1
A15: LIMÓN | B15: 0 | C15: 0 | D15: 0 | E15: 0
A18: 1/ El TSE crea los distritos electorales, ejerciendo su facultad legal de dividir un Distrito Administrativo en los electorales que sean necesarios, con el fin de procurar la mayor comodidad del electorado para la emisión de sus votos. (Art. 143 Código El Electoral).
A22: 2/ El Tribunal Supremo Elecciones puede dejar sin efecto la vigencia del distrito y refundirlo en otro, cuando conste con evidencia, que el número de electores se ha reducido a menos de cincuenta, o bien, porque se presentan otras circunstancias que así lo ameritan. (Reglamento para la creación de distritos electorales y juntas receptoras de votos).
A27: 3/ La reubicación de un distrito electoral se realiza cuando dentro de su conformación se cambia la cabecera a otro poblado, igual sucede, si está incluido en un distrito administrativo que no le corresponde. (Reglamento para la creación de distritos electorales y juntas receptoras de votos).
A31: Fuente: Contraloría Electoral del Tribunal Supremo de Elecciones.

Sheet 9
A1: CUADRO 9 COSTA RICA: DISTRITOS ELECTORALES CREADOS 1/, SEGÚN PROVINCIA Y CANTÓN
A2: EN EL PERÍODO 2010
A4: PROVINCIA Y CANTÓN | B4: DISTRITO ADMINISTRATIVO | C4: DISTRITO ELECTORAL | D4: CÓDIGO ELECTORAL
A7: PROVINCIA SAN JOSÉ
A8: PURISCAL | B8: SANTIAGO | C8: SANTA CECILIA | D8: 104046
A9: PÉREZ ZELEDÓN | B9: DANIEL FLORES | C9: DANIEL FLORES | D9: 119122
A11: PROVINCIA ALAJUELA
A12: ALAJUELA | B12: GUÁCIMA | C12: RINCÓN DE HERRERA | D12: 201073
A13: PALMARES | B13: ZARAGOZA | C13: CALLE VARGAS | D13: 207011
A14: SAN CARLOS | B14: LA PALMERA | C14: EL CORTE (SANTA ROSA) | D14: 210099
A15: LOS CHILES | B15: LOS CHILES | C15: LAS NUBES | D15: 214022
A17: PROVINCIA PUNTARENAS
A18: PUNTRENAS | B18: CÓBANO | C18: SANTA TERESA (EL CARMEN) | D18: 601108
A19: BUENOS AIRES | B19: BUENOS AIRES | C19: SANTA CRUZ | D19: 603053
A20: BUENOS AIRES | B20: BUENOS AIRES | C20: PALMITAL | D20: 603054
A21: OSA | B21: PALMAR | C21: H.A. PALMAR | D21: 605037
A22: OSA | B22: SIERPE | C22: GUANACASTE (FINCA) | D22: 605036
A23: GOLFITO | B23: GAYCARÁ | C23: SAN RAMÓN | D23: 607035
A24: COTO BRUS | B24: SAN VITO | C24: LA ISLA | D24: 608047
A27: 1/ El TSE crea los distritos electorales, ejerciendo su facultad legal de dividir un Distrito Administrativo en los electorales que sean necesarios, con el fin de procurar la mayor comodidad del electorado para la emisión de sus votos. (Art. 10 Código El Electoral).
A31: Fuente: Contraloría Electoral del Tribunal Supremo de Elecciones.

Sheet 10
A1: CUADRO 10 COSTA RICA: DISTRITOS ELECTORALES REUBICADOS1/ EN OTRA LOCALIDAD
A2: DEL MISMO DISTRITO ELECTORAL, SEGÚN PROVINCIA Y CANTÓN
A3: PERÍODO 2010
A5: PROVINCIA Y CANTÓN | B5: DISTRITO ELECTORAL ANTERIOR | C5: DISTRITO ELECTORAL ACTUAL | D5: CÓDIGO ELECTORAL
A7: PUNTARENAS
A8: PARRITA | B8: PARRITA | C8: SAN ANTONIO | D8: 609018
A10: 1/ La reubicación de un distrito electoral se realiza cuando dentro de su conformación se cambia la cabecera a otro poblado, igual sucede, si está incluido en un distrito administrativo que no le corresponde. (Reglamento para la creación de distritos electorales y juntas receptoras de votos).
A14: Fuente: Contraloría Electoral del Tribunal Supremo de Elecciones.

Sheet 11
A1: CUADRO 11 COSTA RICA: DISTRITOS ELECTORALES ELIMINADOS 1/
A2: SEGÚN PROVINCIA Y CANTÓN, EN EL PERÍODO 2010
A4: PROVINCIA Y CANTÓN | B4: DISTRITO ELECTORAL ANTERIOR | C4: DISTRITO ELECTORAL ACTUAL | D4: CÓDIGO ELECTORAL
A6: CARTAGO
A7: CARTAGO | B7: ORIENTAL | C7: C.P. LAS MERCEDES | D7: 301035
A11: 1/ El Tribunal Supremo Elecciones puede dejar sin efecto la vigencia del distrito y refundirlo en otro, cuando conste con evidencia, que el número de electores se ha reducido a menos de cincuenta, o bien, porque se presentan otras circunstancias que así lo ameritan. (Reglamento para la creación de distritos electorales y juntas receptoras de votos).
A16: Fuente: Contraloría Electoral del Tribunal Supremo de Elecciones

Sheet 12
A1: CUADRO 12 COSTA RICA: CENTROS DE VOTACIÓN, JUNTAS RECEPTORAS
A2: CENTROS DE TRANSMISIÓN, SEGÚN PROVINCIA
A3: ELECCIONES 5 DE DICIEMBRE 2010
A5: PROVINCIA | B5: CENTROS DE VOTACIÓN | C5: JUNTAS RECEPTORAS | D5: CENTROS DE TRANSMISIÓN 1/
A7: COSTA RICA | B7: =SUM(B9:B15) -> 2046 | C7: =SUM(C9:C15) -> 5250 | D7: =SUM(D9:D15) -> 616
A9: SAN JOSÉ | B9: 448 | C9: 1705 | D9: 185
A10: ALAJUELA | B10: 439 | C10: 993 | D10: 141
A11: CARTAGO | B11: 192 | C11: 581 | D11: 82
A12: HEREDIA | B12: 114 | C12: 468 | D12: 55
A13: GUANACASTE | B13: 293 | C13: 471 | D13: 22
A14: PUNTARENAS | B14: 370 | C14: 602 | D14: 61
A15: LIMÓN | B15: 190 | C15: 430 | D15: 70
A18: 1/ Datos al 12 de noviembre 2010 sujetos a modificaciones, incluye la sede central y 15 oficinas regionales
A20: Fuente: Dirección General de Registro Electoral y Financiamiento de Partidos Políticos, Dirección Ejecutiva programa Electoral de Transmisión de datos y Padrón Electoral Tribunal Supremo de Elecciones.

Sheet 13
A1: CUADRO 13 COSTA RICA: JUNTAS RECEPTORAS Y ELECTORADO EN CENTROS
A2: PENITENCIARIOS, HOGARES DE ANCIANOS Y ZONAS INDÍGENAS
A3: SEGÚN PROVINCIA, ELECCIONES 3 DE DICIEMBRE 2006
A5: PROVINCIA | B5: CENTROS PENITENCIARIOS | D5: HOGARES DE ANCIANOS | F5: ZONAS INDÍGENAS
B6: JUNTAS | C6: ELECTORADO | D6: JUNTAS | E6: ELECTORADO | F6: JUNTAS | G6: ELECTORADO
A8: COSTA RICA | B8: =SUM(B10:B16) -> 28 | C8: 6772 | D8: 35 | E8: 2037 | F8: 81 | G8: 27927
A10: SAN JOSÉ | B10: =+'14'!C8 -> 5 | C10: =+'14'!D8 -> 1377 | D10: =+'15'!C8 -> 9 | E10: =+'15'!D8 -> 639 | F10: =+'16'!C8 -> 6 | G10: =+'16'!D8 -> 1395
A11: ALAJUELA | B11: =+'14'!C13 -> 11 | C11: =+'14'!D13 -> 2884 | D11: =+'15'!C19 -> 9 | E11: =+'15'!D19 -> 665 | F11: =+'16'!C15 -> 2 | G11: =+'16'!D15 -> 546
A12: CARTAGO | B12: =+'14'!C25 -> 2 | C12: =+'14'!D25 -> 495 | D12: =+'15'!C30 -> 2 | E12: =+'15'!D30 -> 187 | F12: =+'16'!C19 -> 8 | G12: =+'16'!D19 -> 2187
A13: HEREDIA | B13: =+'14'!C28 -> 1 | C13: =+'14'!D28 -> 38 | D13: =+'15'!C34 -> 1 | E13: =+'15'!D34 -> 121 | F13: 0 | G13: 0
A14: GUANACASTE | B14: =+'14'!C31 -> 2 | C14: =+'14'!D31 -> 417 | D14: =+'15'!C37 -> 5 | E14: =+'15'!D37 -> 166 | F14: =+'16'!C29 -> 2 | G14: =+'16'!D29 -> 681
A15: PUNTARENAS | B15: =+'14'!C35 -> 2 | C15: =+'14'!D35 -> 446 | D15: =+'15'!C44 -> 6 | E15: =+'15'!D44 -> 180 | F15: =+'16'!C33 -> 36 | G15: =+'16'!D33 -> 11619
A16: LIMÓN | B16: =+'14'!C38 -> 5 | C16: =+'14'!D38 -> 1115 | D16: =+'15'!C52 -> 3 | E16: =+'15'!D52 -> 79 | F16: =+'16'!C70 -> 27 | G16: =+'16'!D70 -> 11499
A19: Fuente: Sección Padrón Electoral del Tribunal Supremo de Elecciones.

Sheet 14
A1: CUADRO 14 COSTA RICA: JUNTAS RECEPTORAS Y ELECTORADO EN CENTROS PENITENCIARIOS
A2: SEGÚN PROVINCIA Y DISTRITO ELECTORAL, ELECCIONES 5 DE DICIEMBRE 2010
A4: CÓDIGO ELECTORAL | B4: PROVINCIA Y DISTRITO ELECTORAL | C4: NÚMERO DE JUNTAS | D4: ELECTORADO
B6: COSTA RICA | C6: =+C8+C13+C25+C31+C35+C38+C28 -> 28 | D6: =+D8+D13+D25+D31+D35+D38+D28 -> 6772
B8: SAN JOSÉ | C8: =SUM(C9:C11) -> 5 | D8: =SUM(D9:D11) -> 1377
A9: 101030 | B9: C.P. CRISTO REY | C9: 2 | D9: 473
A10: 103034 | B10: C.P. SAN RAFAEL ARRIBA | C10: 1 | D10: 375
A11: 119105 | B11: C.P. PALMARES | C11: 2 | D11: 529
B13: ALAJUELA | C13: =SUM(C14:C23) -> 11 | D13: =SUM(D14:D23) -> 2884
A14: 201058 | B14: C.P. TALLERES INDUSTRIALES | C14: 1 | D14: 164
A15: 201059 | B15: C.P. SAN RAFAEL | C15: 1 | D15: 424
A16: 201060 | B16: C.P. ÁMBITO (MÍNIMA) | C16: 1 | D16: 349
A17: 201062 | B17: C.P. ÁMBITO C (MEDIANA ABIERTA) | C17: 1 | D17: 348
A18: 201063 | B18: C. P. ÁMBITOS D (MEDIANA CERRADA) E (MÁXIMA) | C18: 1 | D18: 361
A19: 201064 | B19: C.P. GERARDO RODRÍGUEZ ECHEVERRÍA | C19: 2 | D19: 688
A20: 201065 | B20: C.P. ADULTO MAYOR | C20: 1 | D20: 147
A21: 201071 | B21: C.P. ADULTO JOVEN | C21: 1 | D21: 66
A22: 202043 | B22: C.P. SAN RAMÓN | C22: 1 | D22: 82
A23: 210093 | B23: C.P. PALMERA ( LA MARINA) | C23: 1 | D23: 255
B25: CARTAGO | C25: =SUM(C26) -> 2 | D25: =SUM(D26) -> 495
A26: 301032 | B26: C.P. SAN FRANCISCO | C26: 2 | D26: 495
B28: HEREDIA | C28: =+C29 -> 1 | D28: =+D29 -> 38
A29: 401018 | B29: C.P. SAN AGUSTÍN | C29: 1 | D29: 38
B31: GUANACASTE | C31: =SUM(C32:C33) -> 2 | D31: =SUM(D32:D33) -> 417
A32: 501011 | B32: C.P. LIBERIA | C32: 1 | D32: 221
A33: 501022 | B33: C.P. LIBERIA (MODULO D1-D2) | C33: 1 | D33: 196
B35: PUNTARENAS | C35: =SUM(C36) -> 2 | D35: =SUM(D36) -> 446
A36: 601094 | B36: C.P. EL ROBLE | C36: 2 | D36: 446
B38: LIMÓN | C38: =SUM(C39:C41) -> 5 | D38: =SUM(D39:D41) -> 1115
A39: 701037 | B39: C.P. RÍO BLANCO (SANDOVAL) | C39: 2 | D39: 489
A40: 702035 | B40: C.P. ROXANA | C40: 2 | D40: 424
A41: 702049 | B41: C.P. ROXANA {MODULOS D-E} | C41: 1 | D41: 202
A44: Fuente: Sección Padrón Electoral y Contraloría Electoral del Tribunal Supremo de Elecciones.

Sheet 15
A1: CUADRO 15 COSTA RICA: JUNTAS RECEPTORAS Y ELECTORADO EN HOGARES DE ANCIANOS
A2: SEGÚN PROVINCIA Y DISTRITO ELECTORAL, ELECCIONES 5 DE DICIEMBRE 2010
A4: CÓDIGO ELECTORAL | B4: PROVINCIA Y DISTRITO ELECTORAL | C4: NÚMERO DE JUNTAS | D4: ELECTORADO
B6: COSTA RICA | C6: =+C8+C19+C30+C37+C44+C52+C34 -> 35 | D6: =+D8+D19+D30+D37+D44+D52+D34 -> 2037
B8: SAN JOSÉ | C8: =SUM(C9:C17) -> 9 | D8: =SUM(D9:D17) -> 639
A9: 103036 | B9: H.A. OFELIA CARVAJAL DE NARANJO | C9: 1 | D9: 100
A10: 103037 | B10: H. A. SAN CAYETANO | C10: 1 | D10: 43
A11: 104045 | B11: H.A. CORAZÓN DE JESÚS | C11: 1 | D11: 46
A12: 105016 | B12: H. A. LOS SANTOS | C12: 1 | D12: 60
A13: 106024 | B13: H.A. SAN FRANCISCO DE ASÍS | C13: 1 | D13: 36
A14: 108002 | B14: H. A. CARLOS MARÍA ULLOA | C14: 1 | D14: 199
A15: 112031 | B15: H. A. ACOSTA | C15: 1 | D15: 38
A16: 114006 | B16: H. A. CASA NAZARETH | C16: 1 | D16: 35
A17: 119108 | B17: H. A. MONSEÑOR DELFIN QUESADA CASTRO | C17: 1 | D17: 82
B19: ALAJUELA | C19: =SUM(C20:C29) -> 9 | D19: =SUM(D20:D28) -> 665
A20: 201066 | B20: H.A. SANTIAGO CRESPO CALVO | C20: 1 | D20: 189
A21: 202045 | B21: H.A. SAN RAMÓN | C21: 1 | D21: 54
A22: 203045 | B22: H.A. JAFETH JIMÉNEZ MORALES | C22: 1 | D22: 88
A23: 205016 | B23: H.A. HORTENSIA RODRÍGUEZ S. DE B | C23: 1 | D23: 70
A24: 206022 | B24: H.A. JOSÉ DEL OLMO | C24: 1 | D24: 54
A25: 207009 | B25: H.A. PALMARES | C25: 1 | D25: 55
A26: 209012 | B26: H.A. PRESBÍTERO JESÚS MARÍA VARGAS | C26: 1 | D26: 34
A27: 210094 | B27: H.A. SAN VICENTE DE PAUL | C27: 1 | D27: 56
A28: 211012 | B28: H.A. SAN RAFAEL | C28: 1 | D28: 65
B30: CARTAGO | C30: =SUM(C31:C32) -> 2 | D30: =SUM(D31:D32) -> 187
A31: 301033 | B31: H.A. ASILO DE LA VEJEZ | C31: 1 | D31: 118
A32: 305068 | B32: H.A. SAN BUENAVENTURA | C32: 1 | D32: 69
B34: HEREDIA | C34: =SUM(C35) -> 1 | D34: =SUM(D35) -> 121
A35: 409004 | B35: H.A. ALFREDO Y DELIA GONZÁLEZ FLORES | C35: 1 | D35: 121
B37: GUANACASTE | C37: =SUM(C38:C42) -> 5 | D37: =SUM(D38:D42) -> 166
A38: 501012 | B38: H.A. LIBERIA | C38: 1 | D38: 28
A39: 502084 | B39: H.A. SAN BLAS | C39: 1 | D39: 34
A40: 503045 | B40: H.A. NUESTRA SEÑORA DEL ROSARIO | C40: 1 | D40: 26
A41: 507023 | B41: H.A. SAN JORGE | C41: 1 | D41: 49
A42: 508024 | B42: H. A. TILARÁN | C42: 1 | D42: 29
B44: PUNTARENAS | C44: =SUM(C45:C50) -> 6 | D44: =SUM(D45:D50) -> 180
A45: 601103 | B45: H.A. MIGUEL MORENO | C45: 1 | D45: 23
A46: 601106 | B46: H.A. MARÍA INMACULADA | C46: 1 | D46: 28
A47: 602018 | B47: H.A. CARLOS VENEGAS | C47: 1 | D47: 23
A48: 604014 | B48: H.A. FRAY CASIANO DE MADRID | C48: 1 | D48: 31
A49: 608045 | B49: H.A. COTO BRUS | C49: 1 | D49: 37
A50: 610030 | B50: H.A. NEILY | C50: 1 | D50: 38
B52: LIMÓN | C52: =SUM(C53:C55) -> 3 | D52: =SUM(D53:D55) -> 79
A53: 701038 | B53: H.A. VICTOR CASCO TORRES | C53: 1 | D53: 32
A54: 702037 | B54: H. A. GUÁPILES | C54: 1 | D54: 31
A55: 704021 | B55: H.A. SANTA LUISA | C55: 1 | D55: 16
A58: Fuente: Sección Padrón Electoral y Contraloría Electoral del Tribunal Supremo de Elecciones.

Sheet 16
A1: CUADRO 16 COSTA RICA: JUNTAS RECEPTORAS Y ELECTORADO EN ZONAS INDÍGENAS
A2: SEGÚN PROVINCIA Y DISTRITO ELECTORAL, ELECCIONES 5 DE DICIEMBRE 2010
A4: CÓDIGO ELECTORAL | B4: PROVINCIA Y DISTRITO ELECTORAL | C4: NÚMERO DE JUNTAS | D4: ELECTORADO
B6: COSTA RICA | C6: =+C8+C15+C19+C29+C33+C70 -> 81 | D6: =+D8+D15+D19+D29+D33+D70 -> 27927
B8: SAN JOSÉ | C8: =SUM(C9:C13) -> 6 | D8: =SUM(D9:D13) -> 1395
A9: 104024 | B9: ZAPATÓN(SAN CARLOS) | C9: 1 | D9: 307
A10: 104044 | B10: BAJO REY | C10: 1 | D10: 44
A11: 104045 | B11: ALTO CONCEPCIÓN | C11: 1 | D11: 46
A12: 107014 | B12: QUITIRRISÍ | C12: 2 | D12: 751
A13: 119069 | B13: CHINA KICHÁ | C13: 1 | D13: 247
B15: ALAJUELA | C15: =SUM(C16:C17) -> 2 | D15: =SUM(D16:D17) -> 546
A16: 215003 | B16: MARGARITA | C16: 1 | D16: 238
A17: 215010 | B17: TONJIBE | C17: 1 | D17: 308
B19: CARTAGO | C19: =SUM(C20:C27) -> 8 | D19: =SUM(D20:D27) -> 2187
A20: 305017 | B20: GRANO DE ORO O XARA | C20: 1 | D20: 591
A21: 305057 | B21: SIMIRIÑAC (JACUY) | C21: 1 | D21: 200
A22: 305058 | B22: DUCLAC (ALTO PACUARE) | C22: 1 | D22: 269
A23: 305059 | B23: JAKI (CAPILLA DOS CHIRRIPÓ ARRIBA) | C23: 1 | D23: 274
A24: 305060 | B24: BOLORIÑAC (CAPILLA UNO) | C24: 1 | D24: 236
A25: 305061 | B25: NIMARI-ÑAC (RÍO PEJE) | C25: 1 | D25: 174
A26: 305062 | B26: NAMALDI | C26: 1 | D26: 83
A27: 305063 | B27: TSIPIRI (QUEBRADA PLATANILLO) | C27: 1 | D27: 360
B29: GUANACASTE | C29: =SUM(C30:C31) -> 2 | D29: =SUM(D30:D31) -> 681
A30: 502080 | B30: MATAMBUGUITO | C30: 1 | D30: 157
A31: 511011 | B31: MATAMBU | C31: 1 | D31: 524
B33: PUNTARENAS | C33: =SUM(C34:C68) -> 36 | D33: =SUM(D34:D68) -> 11619
A34: 603003 | B34: SALITRE | C34: 1 | D34: 305
A35: 603006 | B35: BORUCA | C35: 2 | D35: 1021
A36: 603007 | B36: LAS PILAS | C36: 1 | D36: 130
A37: 603008 | B37: COLINAS (MAÍZ DE LOS UVA) | C37: 1 | D37: 349
A38: 603011 | B38: CURRÉ | C38: 1 | D38: 304
A39: 603012 | B39: LA DANTA O CONCEPCIÓN | C39: 1 | D39: 392
A40: 603014 | B40: UJARRÁS | C40: 1 | D40: 654
A41: 603019 | B41: BAJO LAS BRISAS | C41: 1 | D41: 622
A42: 603022 | B42: TÉRRABA | C42: 1 | D42: 460
A43: 603023 | B43: SAN RAFAEL DE CABAGRA | C43: 1 | D43: 562
A44: 603027 | B44: BIJAGUAL | C44: 1 | D44: 403
A45: 603028 | B45: CAJÓN | C45: 1 | D45: 251
A46: 603029 | B46: GUAGARAL | C46: 1 | D46: 206
A47: 603030 | B47: MAÍZ DE BORUCA | C47: 1 | D47: 403
A48: 603031 | B48: CHÁNGUENA (LA FILA) | C48: 1 | D48: 239
A49: 603032 | B49: PILÓN | C49: 1 | D49: 400
A50: 603033 | B50: LAS VEGAS DE RÍO CHÁNGUENA | C50: 1 | D50: 87
A51: 603034 | B51: LA BONGA | C51: 1 | D51: 244
A52: 603035 | B52: SAN VICENTE (UPIAV-2) | C52: 1 | D52: 103
A53: 603036 | B53: PARAÍSO | C53: 1 | D53: 229
A54: 603041 | B54: PUENTE DE SALITRE | C54: 1 | D54: 277
A55: 603051 | B55: SHAMBA | C55: 1 | D55: 182
A56: 607021 | B56: LA PEÑA DE BURICA | C56: 1 | D56: 160
A57: 607024 | B57: GUAYMI DE BURICA | C57: 1 | D57: 168
A58: 607025 | B58: ALTO CONTE(MOLO DUBTDO) | C58: 1 | D58: 212
A59: 607027 | B59: PROGRESO DE CONTEBURICA | C59: 1 | D59: 160
A60: 608016 | B60: SAN GERARDO | C60: 1 | D60: 168
A61: 608042 | B61: LA CASONA (GUAYMÍ) | C61: 1 | D61: 676
A62: 610003 | B62: BAJO LOS INDIOS | C62: 1 | D62: 183
A63: 610006 | B63: VEGAS DE ABROJO ESTE | C63: 1 | D63: 397
A64: 610012 | B64: BARRIO NUEVO DE VERACRUZ | C64: 1 | D64: 521
A65: 610020 | B65: CARACOL DE LA VACA | C65: 1 | D65: 377
A66: 610021 | B66: VEREH | C66: 1 | D66: 365
A67: 610026 | B67: VEGAS DEL RÍO LA VACA (NIBIRIBOTDA) | C67: 1 | D67: 118
A68: 610027 | B68: ABROJO - MONTEZUMA | C68: 1 | D68: 291
B70: LIMÓN | C70: =SUM(C71:C87) -> 27 | D70: =SUM(D71:D87) -> 11499
A71: 701009 | B71: VESTA | C71: 2 | D71: 767
A72: 701021 | B72: BOCUARE | C72: 1 | D72: 223
A73: 701034 | B73: ALTO CWEN | C73: 1 | D73: 281
A74: 701035 | B74: XIQIARI | C74: 1 | D74: 484
A75: 701036 | B75: SINOLI | C75: 1 | D75: 119
A76: 703004 | B76: PACUARITO | C76: 1 | D76: 638
A77: 704001 | B77: BRATSI (BAMBÚ O DON DIEGO) | C77: 1 | D77: 420
A78: 704002 | B78: AMUBRI | C78: 3 | D78: 1541
A79: 704003 | B79: COROMA (COLOQCHA) | C79: 1 | D79: 353
A80: 704006 | B80: PUERTO VIEJO | C80: 2 | D80: 1067
A81: 704007 | B81: BRIBRÍ (FIELDS) | C81: 4 | D81: 2173
A82: 704008 | B82: SHIROLES (XIROLES) | C82: 3 | D82: 1416
A83: 704013 | B83: KATSI | C83: 1 | D83: 517
A84: 704015 | B84: SEPEQUE | C84: 2 | D84: 783
A85: 704019 | B85: SIBUJÚ | C85: 1 | D85: 239
A86: 704020 | B86: TELIRE (BLEY) | C86: 1 | D86: 285
A87: 705017 | B87: PALMERA(CATSAQIBI) | C87: 1 | D87: 193
A90: Fuente: Sección Padrón Electoral y Contraloría Electoral del Tribunal Supremo de Elecciones.

Sheet 17
A1: CUADRO 17 : PRESUPUESTO ELECTORAL 2010 (SUBPROGRAMA 850-02)
A2: PARA ELECCIONES DEL 5 DE DICIEMBRE 2010
A3: (DATOS EN COLONES)
A5: PARTIDA | B5: DESCRIPCIÓN | C5: AÑO 2010
A7: TOTAL | C7: =SUM(C9:C13) -> 6753901300
A9: 0 | B9: Remuneraciones | C9: 2429127000
A10: 1 | B10: Servicios | C10: 1628483200
A11: 2 | B11: Materiales y Suministros | C11: 864335375
A12: 5 | B12: Bienes Duraderos | C12: 1819395725
A13: 6 | B13: Transferencias Corrientes | C13: 12560000
A15: Fuente: Dirección General de Registro Electoral y Financiamiento de Partidos Políticos Tribunal Supremo de Elecciones.

Sheet 18
A1: CUADRO 18 COSTA RICA: PARTIDOS POLÍTICOS QUE PARTICIPAN
A2: EN LAS ELECCIONES, SEGÚN ESCALA, 5 DE DICIEMBRE 2010
A4: NOMBRE | B4: DIVISA
A6: ESCALA NACIONAL
A8: ACCESIBILIDAD SIN EXCLUSIÓN
A9: ACCIÓN CIUDADANA
A10: ALIANZA PATRÓTICA
A11: FRENTE AMPLIO
A12: INTEGRACIÓN NACIONAL
A13: LIBERACIÓN NACIONAL
A14: MOVIMIENTO LIBERTARIO
A15: RENOVACIÓN COSTARRICENSE
A16: UNIDAD SOCIAL CRISTIANA
A18: ESCALA PROVINCIAL
A20: MOVIMIENTO DE TRABAJADORES Y CAMPESINOS(LIMÓN)
A21: RESTAURACIÓN HEREDIANA (HEREDIA)
A22: TRANPARENCIA CARTAGINÉS (CARTAGO)
A23: UNÓN AGRÍCOLA CARTAGINÉS (CARTAGO)
A24: VERDE ECOLOGISTA (CARTAGO)
A26: ESCALA CANTONAL
A28: ACCIÓN CANTONAL SIQUIRRES INDEPENDIENTE (SIQUIRRES, LIMÓN)
A29: ACCIÓN NARANJEÑA (NARANJO, ALAJUELA)
A30: ACCIÓN QUEPEÑA (AGUIRRE, PUNTARENAS)
A31: ACUERDO CANTONAL DESAMPARADEÑO (DESAMPARADOS, SAN JOSÉ)
A32: AUTÉNTICO LABRADOR DE CORONADO (VÁZQUEZ DE CORONADO, SAN JOSÉ)
A33: AUTÓNOMO OROMONTANO (MONTES DE ORO, PUNTARENAS)
A34: CIVÍCO DE TIBÁS FUENTEOVEJUNA (TIBÁS, SAN JOSÉ)
A35: COALICIÓN ALIANZA ZARCEREÑA (ZARCERO, ALAJUELA)
A36: COALICIÓN BARVA UNIDA (BARVA, HEREDIA)
A37: COALICIÓN CARTAGO UNIDO (CARTAGO, CARTAGO)
A38: COALICIÓN MONTES DE OCA UNIDA (MONTES DE OCA, SAN JOSÉ)
A39: COALICIÓN RAMONENSE (SAN RAMÓN, ALAJUELA)
A40: COALICIÓN UNIDOS POR SAN CARLOS (SANCARLOS, ALAJUELA)
A41: COALICIÓN UNIÓN LIBERIANA (LIBERIA, GUANACASTE)
A42: CURRIDABAT SIGLO XXI (CURRIDABAT, SAN JOSÉ)
A43: DEL SOL (SANTA ANA, SAN JOSÉ)
A44: EL PUENTE Y LOS CAMINOS DEMORA (MORA, SAN JOSÉ)
A45: GARABITO ECOLÓGICO (GARABITO, PUNTARENAS)
A46: GOICOECHEA EN ACCIÓN (GOICOECHEA, SAN JOSÉ)
A47: INDEPENDIENTE BELEMITA (BELÉN, HEREDIA)
A48: INTEGRACIÓN BARBAREÑA (SANTA BÁRBARA, HEREDIA)
A49: MOVIMIENTO AVANCE SANTO DOMINGO
A50: ORGANIZACIÓN LABORISTA AGUIRRE (AGUIRRE, PUNTARENAS)
A51: ORGANIZACIÓN SOCIAL ACTIVA (OSA, PUNTARENAS)
A52: RENOVEMOS ALAJUELA (ALAJUELA, ALAJUELA)
A53: TALAMANCA UNIDA (TALAMANCA, LIMÓN)
A54: TARRAZÚ PRIMERO
A55: TODO POR FLORES
A56: ÚNICO ABANGAREÑO
A57: UNIÓN ATENIENSE
A58: UNIÓN PALMAREÑA (PALMARES, ALAJUELA)
A59: UNIÓN POASEÑA (POÁS, ALAJUELA)
A60: YUNTA PROGRESISTA ESCAZUCEÑA (ESCAZÚ, SAN JOSÉ)
A63: Fuente: Página Web Tribunal Supremo de Elecciones.

Sheet 19
A1: CUADRO 19 COSTA RICA: CANDIDATURAS INSCRITAS, POR ELECCIÓN
A2: SEGÚN PROVINCIA Y TIPO DE CANDIDATURA, ELECCIONES
A3: DICIEMBRE 2002, 2006 Y 2010
A5: PROVINCIA Y TIPO DE CANDIDATURA | B5: 2002 | C5: 2006 | D5: 2010
A7: COSTA RICA | B7: =SUM(B8:B14) -> 16261 | C7: =SUM(C8:C14) -> 15919 | D7: =SUM(D8:D14) -> 15862
A8: SAN JOSÉ | B8: =+B17+B26+B35 -> 4407 | C8: =+C17+C26+C35 -> 4052 | D8: =+D17+D26+D35 -> 4239
A9: ALAJUELA | B9: =+B18+B27+B36+B44+B50 -> 3370 | C9: 3502 | D9: 3331
A10: CARTAGO | B10: 1771 | C10: 1832 | D10: 1591
A11: HEREDIA | B11: =+B20+B29+B38 -> 1576 | C11: =+C20+C29+C38 -> 1336 | D11: =+D20+D29+D38 -> 1635
A12: GUANACASTE | B12: =+B21+B30+B39+B46+B52 -> 1894 | C12: 1797 | D12: 1715
A13: PUNTARENAS | B13: 1922 | C13: 2198 | D13: 2109
A14: LIMÓN | B14: =+B23+B32+B41 -> 1321 | C14: =+C23+C32+C41 -> 1202 | D14: =+D23+D32+D41 -> 1242
A16: ALCALDÍAS Y VICEALCALDÍAS | B16: =SUM(B17:B23) -> 1089 | C16: =SUM(C17:C23) -> 1099 | D16: =SUM(D17:D23) -> 1008
A17: SAN JOSÉ | B17: 266 | C17: 273 | D17: 258
A18: ALAJUELA | B18: 185 | C18: 184 | D18: 182
A19: CARTAGO | B19: 112 | C19: 118 | D19: 87
A20: HEREDIA | B20: 135 | C20: 119 | D20: 117
A21: GUANACASTE | B21: 144 | C21: 146 | D21: 115
A22: PUNTARENAS | B22: 141 | C22: 157 | D22: 146
A23: LIMÓN | B23: 106 | C23: 102 | D23: 103
A25: SÍNDICOS(AS) | B25: =SUM(B26:B32) -> 3488 | C25: =SUM(C26:C32) -> 3726 | D25: =SUM(D26:D32) -> 3578
A26: SAN JOSÉ | B26: 936 | C26: 943 | D26: 958
A27: ALAJUELA | B27: 726 | C27: 790 | D27: 809
A28: CARTAGO | B28: 371 | C28: 484 | D28: 338
A29: HEREDIA | B29: 349 | C29: 335 | D29: 356
A30: GUANACASTE | B30: 437 | C30: 438 | D30: 380
A31: PUNTARENAS | B31: 385 | C31: 467 | D31: 459
A32: LIMÓN | B32: 284 | C32: 269 | D32: 278
A34: CONCEJOS DE DISTRITO | B34: =SUM(B35:B41) -> 11454 | C34: =SUM(C35:C41) -> 10832 | D34: =SUM(D35:D41) -> 11004
A35: SAN JOSÉ | B35: 3205 | C35: 2836 | D35: 3023
A36: ALAJUELA | B36: 2430 | C36: 2495 | D36: 2321
A37: CARTAGO | B37: 1222 | C37: 1182 | D37: 1109
A38: HEREDIA | B38: 1092 | C38: 882 | D38: 1162
A39: GUANACASTE | B39: 1289 | C39: 1176 | D39: 1181
A40: PUNTARENAS | B40: 1285 | C40: 1430 | D40: 1347
A41: LIMÓN | B41: 931 | C41: 831 | D41: 861
A43: INTENDENTES Y VICEINTENDENTES | B43: =SUM(B44:B47) -> 26 | C43: =SUM(C44:C47) -> 34 | D43: =SUM(D44:D47) -> 61
A44: ALAJUELA | B44: 4 | C44: 4 | D44: 4
A45: CARTAGO | B45: 6 | C45: 6 | D45: 14
A46: GUANACASTE | B46: 3 | C46: 4 | D46: 8
A47: PUNTARENAS | B47: 13 | C47: 20 | D47: 35
A49: CONCEJOS MUNICIPALES DE DISTRITO | B49: =SUM(B50:B53) -> 204 | C49: =SUM(C50:C53) -> 228 | D49: =SUM(D50:D53) -> 211
A50: ALAJUELA | B50: 25 | C50: 29 | D50: 15
A51: CARTAGO | B51: 60 | C51: 42 | D51: 43
A52: GUANACASTE | B52: 21 | C52: 33 | D52: 31
A53: PUNTARENAS | B53: 98 | C53: 124 | D53: 122
A56: Nota: Datos al 26 de octubre de 2010.
A57: Fuente: Computo de Votos y declaratorias de elección y Departamento de Registro de Partidos Políticos.

Sheet 20
A1: CUADRO 20 COSTA RICA: COMPOSICIÓN DE LAS PAPELETAS, POR SEXO
A2: SEGÚN CANDIDATURAS Y CARGO, ELECCIONES 5 DE DICIEMBRE 2010
A3: (CIFRAS ABSOLUTAS Y RELATIVAS)
A5: CANDIDATURAS | B5: TOTAL | C5: HOMBRES | E5: MUJERES
C6: ABSOLUTO | D6: % | E6: ABSOLUTO | F6: %
A8: TOTAL | B8: =SUM(B10:B17) -> 15862 | C8: =SUM(C10:C17) -> 8066 | D8: =+C8/B8*100 -> 50.85109066 | E8: =SUM(E10:E17) -> 7796 | F8: =+E8/B8*100 -> 49.14890934
A10: ALCALDÍA | B10: =+C10+E10 -> 339 | C10: =+C23 -> 290 | D10: =+C10/B10*100 -> 85.54572271 | E10: =+E23 -> 49 | F10: =+E10/B10*100 -> 14.45427729
A11: VICEALCALDÍA PRIMERA | B11: 338 | C11: =+C24 -> 49 | D11: 14.49704142 | E11: =+E24 -> 289 | F11: 85.50295858
A12: VICEALCALDÍA SEGUNDA | B12: 331 | C12: =+C35 -> 258 | D12: 77.94561934 | E12: =+E35 -> 73 | F12: 22.05438066
A13: SÍNDICO(A) | B13: 3578 | C13: =+C25+C36 -> 1801 | D13: 50.3353829 | E13: =+E25+E36 -> 1777 | F13: 49.6646171
A14: CONCEJALES DE DISTRITO | B14: 11004 | C14: =+C26+C37 -> 5527 | D14: 50.22719011 | E14: =+E26+E37 -> 5477 | F14: 49.77280989
A15: INTENDENTE | B15: 30 | C15: =+C27 -> 25 | D15: 83.33333333 | E15: =+E27 -> 5 | F15: 16.66666667
A16: VICEINTENDENTE | B16: 31 | C16: =+C28 -> 5 | D16: 16.12903226 | E16: =+E28 -> 26 | F16: 83.87096774
A17: CONCEJAL MUNICIPAL DE DISTRITO | B17: 211 | C17: =+C29+C38 -> 111 | D17: 52.60663507 | E17: =+E29+E38 -> 100 | F17: 47.39336493
B19: EN PROPIEDAD
A21: TOTAL EN PROPIEDAD | B21: =SUM(B23:B29) -> 8510 | C21: =SUM(C23:C29) -> 4608 | D21: =+C21/B21*100 -> 54.1480611 | E21: =SUM(E23:E29) -> 3902 | F21: =+E21/B21*100 -> 45.8519389
A23: ALCALDÍA | B23: =+C23+E23 -> 339 | C23: 290 | D23: =+C23/B23*100 -> 85.54572271 | E23: 49 | F23: =+E23/B23*100 -> 14.45427729
A24: VICEALCALDÍA PRIMERA | B24: 338 | C24: 49 | D24: 14.49704142 | E24: 289 | F24: 85.50295858
A25: SÍNDICO(A) | B25: 1837 | C25: 1241 | D25: 67.5557975 | E25: 596 | F25: 32.4442025
A26: CONCEJALES DE DISTRITO | B26: 5828 | C26: 2941 | D26: 50.46328071 | E26: 2887 | F26: 49.53671929
A27: INTENDENTE | B27: 30 | C27: 25 | D27: 83.33333333 | E27: 5 | F27: 16.66666667
A28: VICEINTENDENTE | B28: 31 | C28: 5 | D28: 16.12903226 | E28: 26 | F28: 83.87096774
A29: CONCEJAL MUNICIPAL DE DISTRITO | B29: 107 | C29: 57 | D29: 53.27102804 | E29: 50 | F29: 46.72897196
B31: EN SUPLENCIA
A33: TOTAL EN SUPLENCIA | B33: =SUM(B35:B38) -> 7352 | C33: =SUM(C35:C38) -> 3458 | D33: =+C33/B33*100 -> 47.03482046 | E33: =SUM(E35:E38) -> 3894 | F33: =+E33/B33*100 -> 52.96517954
A35: VICEALCALDÍA SEGUNDA | B35: =+C35+E35 -> 331 | C35: 258 | D35: =+C35/B35*100 -> 77.94561934 | E35: 73 | F35: =+E35/B35*100 -> 22.05438066
A36: SÍNDICO(A) | B36: =+C36+E36 -> 1741 | C36: 560 | D36: =+C36/B36*100 -> 32.16542217 | E36: 1181 | F36: =+E36/B36*100 -> 67.83457783
A37: CONCEJALES DE DISTRITO | B37: =+C37+E37 -> 5176 | C37: 2586 | D37: =+C37/B37*100 -> 49.96136012 | E37: 2590 | F37: =+E37/B37*100 -> 50.03863988
A38: CONCEJAL MUNICIPAL DE DISTRITO | B38: =+C38+E38 -> 104 | C38: 54 | D38: =+C38/B38*100 -> 51.92307692 | E38: 50 | F38: =+E38/B38*100 -> 48.07692308
A41: Nota: Datos al 26 de octubre de 2010.
A42: Fuente: Departamento de Registro de Partidos Políticos, Base de datos de candidaturas diciembre 2010.

Sheet G3
C3: Sexo
A4: Tipo de candidatura | B4: MUJER | C4: HOMBRE | D4: TOTAL | E4: %
A5: VICEALCALDES(AS) PRIMERO(A) | B5: 289 | C5: 49 | D5: 338 | E5: =+C5/D5 -> 0.1449704142
A6: VICEINTENDENTE | B6: 26 | C6: 5 | D6: 31 | E6: 0.1612903226
A7: CONCEJALES DE DISTRITO | B7: 5477 | C7: 5527 | D7: 11004 | E7: 0.5022719011
A8: SÍNDICOS(AS) | B8: 1777 | C8: 1801 | D8: 3578 | E8: 0.503353829
A9: CONCEJALES MUNICIPALES DE DISTRITO | B9: 100 | C9: 111 | D9: 211 | E9: 0.5260663507
A10: VICEALCALDES(AS) SEGUNDO(A) | B10: 73 | C10: 258 | D10: 331 | E10: 0.7794561934
A11: INTENDENTE | B11: 5 | C11: 25 | D11: 30 | E11: 0.8333333333
A12: ALCALDES(AS) | B12: 49 | C12: 290 | D12: 339 | E12: 0.8554572271
A28: Nota: Datos al 26 de octubre de 2010.
A29: Fuente: Departamento de Registro de Partidos Políticos, Base de datos de candidaturas diciembre 2010.

Sheet 21
A1: CUADRO 21 COSTA RICA: CANDIDATURAS A ALCALDÍAS Y VICEALCALDÍAS, POR SEXO
A2: SEGÚN PARTIDO, ELECCIONES 5 DE DICIEMBRE 2010
A3: (CIFRAS ABSOLUTAS Y RELATIVAS)
A5: PARTIDO | B5: TOTAL | G5: ALCALDÍAS | L5: VICEALCALDÍA PRIMERA | Q5: VICEALCALDÍA SEGUNDA
A6: PARTIDO POLITICO | B6: TOTAL | C6: HOMBRES | E6: MUJERES | G6: TOTAL | H6: HOMBRES | J6: MUJERES | L6: TOTAL | M6: HOMBRES | O6: MUJERES | Q6: TOTAL | R6: HOMBRES | T6: MUJERES
B7: ABS | C7: ABS | D7: % | E7: ABS | F7: % | G7: ABS | H7: ABS | I7: % | J7: ABS | K7: % | L7: ABS | M7: ABS | N7: % | O7: ABS | P7: % | Q7: ABS | R7: ABS | S7: % | T7: ABS | U7: %
A9: TOTAL | B9: =SUM(B11:B57) -> 1008 | C9: =SUM(C11:C57) -> 597 | D9: =C9/B9*100 -> 59.22619048 | E9: =SUM(E11:E57) -> 411 | F9: =E9/B9*100 -> 40.77380952 | G9: =SUM(G11:G57) -> 339 | H9: =SUM(H11:H57) -> 290 | I9: =H9/G9*100 -> 85.54572271 | J9: =SUM(J11:J57) -> 49 | K9: =J9/G9*100 -> 14.45427729 | L9: =SUM(L11:L57) -> 338 | M9: =SUM(M11:M57) -> 49 | N9: =M9/L9*100 -> 14.49704142 | O9: =SUM(O11:O57) -> 289 | P9: =O9/L9*100 -> 85.50295858 | Q9: =SUM(Q11:Q57) -> 331 | R9: =SUM(R11:R57) -> 258 | S9: =R9/Q9*100 -> 77.94561934 | T9: =SUM(T11:T57) -> 73 | U9: =T9/Q9*100 -> 22.05438066
A11: ACCESIBILIDAD SIN EXCLUSIÓN | B11: =+C11+E11 -> 49 | C11: =+H11+M11+R11 -> 28 | D11: =C11/B11*100 -> 57.14285714 | E11: =+J11+O11+T11 -> 21 | F11: =E11/B11*100 -> 42.85714286 | G11: =+H11+J11 -> 17 | H11: 14 | I11: =H11/G11*100 -> 82.35294118 | J11: 3 | K11: =J11/G11*100 -> 17.64705882 | L11: =+M11+O11 -> 17 | M11: 3 | N11: =M11/L11*100 -> 17.64705882 | O11: 14 | P11: =O11/L11*100 -> 82.35294118 | Q11: =+R11+T11 -> 15 | R11: 11 | S11: =R11/Q11*100 -> 73.33333333 | T11: 4 | U11: =T11/Q11*100 -> 26.66666667
A12: ACCIÓN CANTONAL SIQUIRRES INDEPENDIENTE | B12: 3 | C12: 2 | D12: 66.66666667 | E12: 1 | F12: 33.33333333 | G12: 1 | H12: 1 | I12: 100 | J12: 0 | K12: 0 | L12: 1 | M12: 0 | N12: 0 | O12: 1 | P12: 100 | Q12: 1 | R12: 1 | S12: 100 | T12: 0 | U12: 0
A13: ACCIÓN CIUDADANA | B13: 151 | C13: 84 | D13: 55.62913907 | E13: 67 | F13: 44.37086093 | G13: 51 | H13: 38 | I13: 74.50980392 | J13: 13 | K13: 25.49019608 | L13: 51 | M13: 13 | N13: 25.49019608 | O13: 38 | P13: 74.50980392 | Q13: 49 | R13: 33 | S13: 67.34693878 | T13: 16 | U13: 32.65306122
A14: ACCIÓN NARANJEÑA | B14: 3 | C14: 2 | D14: 66.66666667 | E14: 1 | F14: 33.33333333 | G14: 1 | H14: 1 | I14: 100 | J14: 0 | K14: 0 | L14: 1 | M14: 0 | N14: 0 | O14: 1 | P14: 100 | Q14: 1 | R14: 1 | S14: 100 | T14: 0 | U14: 0
A15: ACCIÓN QUEPEÑA | B15: 3 | C15: 2 | D15: 66.66666667 | E15: 1 | F15: 33.33333333 | G15: 1 | H15: 1 | I15: 100 | J15: 0 | K15: 0 | L15: 1 | M15: 0 | N15: 0 | O15: 1 | P15: 100 | Q15: 1 | R15: 1 | S15: 100 | T15: 0 | U15: 0
A16: ACUERDO CANTONAL DESAMPARADEÑO | B16: 3 | C16: 2 | D16: 66.66666667 | E16: 1 | F16: 33.33333333 | G16: 1 | H16: 1 | I16: 100 | J16: 0 | K16: 0 | L16: 1 | M16: 0 | N16: 0 | O16: 1 | P16: 100 | Q16: 1 | R16: 1 | S16: 100 | T16: 0 | U16: 0
A17: ALIANZA PATRIÓTICA | B17: 15 | C17: 9 | D17: 60 | E17: 6 | F17: 40 | G17: 5 | H17: 4 | I17: 80 | J17: 1 | K17: 20 | L17: 5 | M17: 1 | N17: 20 | O17: 4 | P17: 80 | Q17: 5 | R17: 4 | S17: 80 | T17: 1 | U17: 20
A18: AUTÉNTICO LABRADOR DE CORONADO | B18: 0 | C18: 0 | D18: 0 | E18: 0 | F18: 0 | G18: 0 | H18: 0 | I18: 0 | J18: 0 | K18: 0 | L18: 0 | M18: 0 | N18: 0 | O18: 0 | P18: 0 | Q18: 0 | R18: 0 | S18: 0 | T18: 0 | U18: 0
A19: AUTÓNOMO OROMONTANO | B19: 3 | C19: 2 | D19: =C19/B19*100 -> 66.66666667 | E19: 1 | F19: =E19/B19*100 -> 33.33333333 | G19: 1 | H19: 1 | I19: =H19/G19*100 -> 100 | J19: 0 | K19: =J19/G19*100 -> 0 | L19: 1 | M19: 0 | N19: =M19/L19*100 -> 0 | O19: 1 | P19: =O19/L19*100 -> 100 | Q19: 1 | R19: 1 | S19: =R19/Q19*100 -> 100 | T19: 0 | U19: =T19/Q19*100 -> 0
A20: CÍVICO DE TÍBAS FUENTEOVEJUNA | B20: 3 | C20: 2 | D20: 66.66666667 | E20: 1 | F20: 33.33333333 | G20: 1 | H20: 1 | I20: 100 | J20: 0 | K20: 0 | L20: 1 | M20: 0 | N20: 0 | O20: 1 | P20: 100 | Q20: 1 | R20: 1 | S20: 100 | T20: 0 | U20: 0
A21: COALICIÓN BARVA UNIDA | B21: 3 | C21: 1 | D21: 33.33333333 | E21: 2 | F21: 66.66666667 | G21: 1 | H21: 1 | I21: 100 | J21: 0 | K21: 0 | L21: 1 | M21: 0 | N21: 0 | O21: 1 | P21: 100 | Q21: 1 | R21: 0 | S21: 0 | T21: 1 | U21: 100
A22: COALICIÓN CARTAGO UNIDO | B22: 3 | C22: 2 | D22: 66.66666667 | E22: 1 | F22: 33.33333333 | G22: 1 | H22: 1 | I22: 100 | J22: 0 | K22: 0 | L22: 1 | M22: 0 | N22: 0 | O22: 1 | P22: 100 | Q22: 1 | R22: 1 | S22: 100 | T22: 0 | U22: 0
A23: COALICIÓN MONTES DE OCA UNIDA | B23: 3 | C23: 2 | D23: 66.66666667 | E23: 1 | F23: 33.33333333 | G23: 1 | H23: 1 | I23: 100 | J23: 0 | K23: 0 | L23: 1 | M23: 0 | N23: 0 | O23: 1 | P23: 100 | Q23: 1 | R23: 1 | S23: 100 | T23: 0 | U23: 0
A24: COALICIÓN PARTIDO ALIANZA ZARCEREÑA | B24: 3 | C24: 2 | D24: 66.66666667 | E24: 1 | F24: 33.33333333 | G24: 1 | H24: 1 | I24: 100 | J24: 0 | K24: 0 | L24: 1 | M24: 0 | N24: 0 | O24: 1 | P24: 100 | Q24: 1 | R24: 1 | S24: 100 | T24: 0 | U24: 0
A25: COALICIÓN RAMONENSE | B25: 3 | C25: 2 | D25: 66.66666667 | E25: 1 | F25: 33.33333333 | G25: 1 | H25: 1 | I25: 100 | J25: 0 | K25: 0 | L25: 1 | M25: 0 | N25: 0 | O25: 1 | P25: 100 | Q25: 1 | R25: 1 | S25: 100 | T25: 0 | U25: 0
A26: COALICIÓN UNIDOS POR SAN CARLOS | B26: 3 | C26: 2 | D26: 66.66666667 | E26: 1 | F26: 33.33333333 | G26: 1 | H26: 1 | I26: 100 | J26: 0 | K26: 0 | L26: 1 | M26: 0 | N26: 0 | O26: 1 | P26: 100 | Q26: 1 | R26: 1 | S26: 100 | T26: 0 | U26: 0
A27: COALICIÓN UNIÓN LIBERIANA | B27: 3 | C27: 1 | D27: 33.33333333 | E27: 2 | F27: 66.66666667 | G27: 1 | H27: 1 | I27: 100 | J27: 0 | K27: 0 | L27: 1 | M27: 0 | N27: 0 | O27: 1 | P27: 100 | Q27: 1 | R27: 0 | S27: 0 | T27: 1 | U27: 100
A28: CURRIDABAT SIGLO XXI | B28: 3 | C28: 2 | D28: 66.66666667 | E28: 1 | F28: 33.33333333 | G28: 1 | H28: 1 | I28: 100 | J28: 0 | K28: 0 | L28: 1 | M28: 0 | N28: 0 | O28: 1 | P28: 100 | Q28: 1 | R28: 1 | S28: 100 | T28: 0 | U28: 0
A29: DEL SOL | B29: 3 | C29: 1 | D29: 33.33333333 | E29: 2 | F29: 66.66666667 | G29: 1 | H29: 1 | I29: 100 | J29: 0 | K29: 0 | L29: 1 | M29: 0 | N29: 0 | O29: 1 | P29: 100 | Q29: 1 | R29: 0 | S29: 0 | T29: 1 | U29: 100
A30: EL PUENTE Y LOS CAMINOS DE MORA | B30: 3 | C30: 1 | D30: 33.33333333 | E30: 2 | F30: 66.66666667 | G30: 1 | H30: 0 | I30: 0 | J30: 1 | K30: 100 | L30: 1 | M30: 1 | N30: 100 | O30: 0 | P30: 0 | Q30: 1 | R30: 0 | S30: 0 | T30: 1 | U30: 100
A31: FRENTE AMPLIO | B31: 24 | C31: 14 | D31: 58.33333333 | E31: 10 | F31: 41.66666667 | G31: 8 | H31: 7 | I31: 87.5 | J31: 1 | K31: 12.5 | L31: 8 | M31: 1 | N31: 12.5 | O31: 7 | P31: 87.5 | Q31: 8 | R31: 6 | S31: 75 | T31: 2 | U31: 25
A32: GARABITO ECOLÓGICO | B32: 3 | C32: 2 | D32: 66.66666667 | E32: 1 | F32: 33.33333333 | G32: 1 | H32: 1 | I32: 100 | J32: 0 | K32: 0 | L32: 1 | M32: 0 | N32: 0 | O32: 1 | P32: 100 | Q32: 1 | R32: 1 | S32: 100 | T32: 0 | U32: 0
A33: GOICOECHEA EN ACCIÓN | B33: 3 | C33: 2 | D33: 66.66666667 | E33: 1 | F33: 33.33333333 | G33: 1 | H33: 1 | I33: 100 | J33: 0 | K33: 0 | L33: 1 | M33: 0 | N33: 0 | O33: 1 | P33: 100 | Q33: 1 | R33: 1 | S33: 100 | T33: 0 | U33: 0
A34: INDEPENDIENTE BELEMITA | B34: 3 | C34: 2 | D34: 66.66666667 | E34: 1 | F34: 33.33333333 | G34: 1 | H34: 1 | I34: 100 | J34: 0 | K34: 0 | L34: 1 | M34: 0 | N34: 0 | O34: 1 | P34: 100 | Q34: 1 | R34: 1 | S34: 100 | T34: 0 | U34: 0
A35: INTEGRACIÓN BARBAREÑA | B35: 3 | C35: 1 | D35: 33.33333333 | E35: 2 | F35: 66.66666667 | G35: 1 | H35: 1 | I35: 100 | J35: 0 | K35: 0 | L35: 1 | M35: 0 | N35: 0 | O35: 1 | P35: 100 | Q35: 1 | R35: 0 | S35: 0 | T35: 1 | U35: 100
A36: INTEGRACIÓN NACIONAL | B36: 35 | C36: 23 | D36: 65.71428571 | E36: 12 | F36: 34.28571429 | G36: 12 | H36: 11 | I36: 91.66666667 | J36: 1 | K36: 8.333333333 | L36: 12 | M36: 1 | N36: 8.333333333 | O36: 11 | P36: 91.66666667 | Q36: 11 | R36: 11 | S36: 100 | T36: 0 | U36: 0
A37: LIBERACIÓN NACIONAL | B37: 242 | C37: 146 | D37: 60.33057851 | E37: 96 | F37: 39.66942149 | G37: 81 | H37: 67 | I37: 82.71604938 | J37: 14 | K37: 17.28395062 | L37: 81 | M37: 14 | N37: 17.28395062 | O37: 67 | P37: 82.71604938 | Q37: 80 | R37: 65 | S37: 81.25 | T37: 15 | U37: 18.75
A38: MOVIMIENTO AVANCE SANTO DOMINGO | B38: 3 | C38: 2 | D38: 66.66666667 | E38: 1 | F38: 33.33333333 | G38: 1 | H38: 1 | I38: 100 | J38: 0 | K38: 0 | L38: 1 | M38: 0 | N38: 0 | O38: 1 | P38: 100 | Q38: 1 | R38: 1 | S38: 100 | T38: 0 | U38: 0
A39: MOVIMIENTO DE TRABAJADORES Y CAMPESINOS | B39: 3 | C39: 2 | D39: 66.66666667 | E39: 1 | F39: 33.33333333 | G39: 1 | H39: 1 | I39: 100 | J39: 0 | K39: 0 | L39: 1 | M39: 0 | N39: 0 | O39: 1 | P39: 100 | Q39: 1 | R39: 1 | S39: 100 | T39: 0 | U39: 0
A40: MOVIMIENTO LIBERTARIO | B40: 159 | C40: 92 | D40: 57.86163522 | E40: 67 | F40: 42.13836478 | G40: 54 | H40: 49 | I40: 90.74074074 | J40: 5 | K40: 9.259259259 | L40: 53 | M40: 5 | N40: 9.433962264 | O40: 48 | P40: 90.56603774 | Q40: 52 | R40: 38 | S40: 73.07692308 | T40: 14 | U40: 26.92307692
A41: ORGANIZACIÓN LABORISTA DE AGUIRRE | B41: 3 | C41: 1 | D41: 33.33333333 | E41: 2 | F41: 66.66666667 | G41: 1 | H41: 1 | I41: 100 | J41: 0 | K41: 0 | L41: 1 | M41: 0 | N41: 0 | O41: 1 | P41: 100 | Q41: 1 | R41: 0 | S41: 0 | T41: 1 | U41: 100
A42: ORGANIZACIÓN SOCIAL ACTIVA | B42: 3 | C42: 2 | D42: 66.66666667 | E42: 1 | F42: 33.33333333 | G42: 1 | H42: 1 | I42: 100 | J42: 0 | K42: 0 | L42: 1 | M42: 0 | N42: 0 | O42: 1 | P42: 100 | Q42: 1 | R42: 1 | S42: 100 | T42: 0 | U42: 0
A43: RENOVACIÓN COSTARRICENSE | B43: 57 | C43: 36 | D43: 63.15789474 | E43: 21 | F43: 36.84210526 | G43: 19 | H43: 18 | I43: 94.73684211 | J43: 1 | K43: 5.263157895 | L43: 19 | M43: 1 | N43: 5.263157895 | O43: 18 | P43: 94.73684211 | Q43: 19 | R43: 17 | S43: 89.47368421 | T43: 2 | U43: 10.52631579
A44: RENOVEMOS ALAJUELA | B44: 3 | C44: 2 | D44: 66.66666667 | E44: 1 | F44: 33.33333333 | G44: 1 | H44: 1 | I44: 100 | J44: 0 | K44: 0 | L44: 1 | M44: 0 | N44: 0 | O44: 1 | P44: 100 | Q44: 1 | R44: 1 | S44: 100 | T44: 0 | U44: 0
A45: RESTAURACIÓN HEREDIANA | B45: 6 | C45: 4 | D45: 66.66666667 | E45: 2 | F45: 33.33333333 | G45: 2 | H45: 2 | I45: 100 | J45: 0 | K45: 0 | L45: 2 | M45: 0 | N45: 0 | O45: 2 | P45: 100 | Q45: 2 | R45: 2 | S45: 100 | T45: 0 | U45: 0
A46: TALAMANCA UNIDA | B46: 3 | C46: 2 | D46: 66.66666667 | E46: 1 | F46: 33.33333333 | G46: 1 | H46: 1 | I46: 100 | J46: 0 | K46: 0 | L46: 1 | M46: 0 | N46: 0 | O46: 1 | P46: 100 | Q46: 1 | R46: 1 | S46: 100 | T46: 0 | U46: 0
A47: TARRAZÚ PRIMERO | B47: 3 | C47: 2 | D47: 66.66666667 | E47: 1 | F47: 33.33333333 | G47: 1 | H47: 1 | I47: 100 | J47: 0 | K47: 0 | L47: 1 | M47: 0 | N47: 0 | O47: 1 | P47: 100 | Q47: 1 | R47: 1 | S47: 100 | T47: 0 | U47: 0
A48: TODO POR FLORES | B48: 3 | C48: 2 | D48: 66.66666667 | E48: 1 | F48: 33.33333333 | G48: 1 | H48: 1 | I48: 100 | J48: 0 | K48: 0 | L48: 1 | M48: 0 | N48: 0 | O48: 1 | P48: 100 | Q48: 1 | R48: 1 | S48: 100 | T48: 0 | U48: 0
A49: TRANSPARENCIA CARTAGINÉS | B49: 3 | C49: 1 | D49: 33.33333333 | E49: 2 | F49: 66.66666667 | G49: 1 | H49: 0 | I49: 0 | J49: 1 | K49: 100 | L49: 1 | M49: 1 | N49: 100 | O49: 0 | P49: 0 | Q49: 1 | R49: 0 | S49: 0 | T49: 1 | U49: 100
A50: ÚNICO ABANGAREÑO | B50: 3 | C50: 1 | D50: 33.33333333 | E50: 2 | F50: 66.66666667 | G50: 1 | H50: 1 | I50: 100 | J50: 0 | K50: 0 | L50: 1 | M50: 0 | N50: 0 | O50: 1 | P50: 100 | Q50: 1 | R50: 0 | S50: 0 | T50: 1 | U50: 100
A51: UNIDAD SOCIAL CRISTIANA | B51: 159 | C51: 96 | D51: 60.37735849 | E51: 63 | F51: 39.62264151 | G51: 53 | H51: 46 | I51: 86.79245283 | J51: 7 | K51: 13.20754717 | L51: 53 | M51: 7 | N51: 13.20754717 | O51: 46 | P51: 86.79245283 | Q51: 53 | R51: 43 | S51: 81.13207547 | T51: 10 | U51: 18.86792453
A52: UNION AGRÍCOLA CARTAGINES | B52: 6 | C52: 4 | D52: 66.66666667 | E52: 2 | F52: 33.33333333 | G52: 2 | H52: 2 | I52: 100 | J52: 0 | K52: 0 | L52: 2 | M52: 0 | N52: 0 | O52: 2 | P52: 100 | Q52: 2 | R52: 2 | S52: 100 | T52: 0 | U52: 0
A53: UNIÓN ATENIENSE | B53: 3 | C53: 2 | D53: 66.66666667 | E53: 1 | F53: 33.33333333 | G53: 1 | H53: 0 | I53: 0 | J53: 1 | K53: 100 | L53: 1 | M53: 1 | N53: 100 | O53: 0 | P53: 0 | Q53: 1 | R53: 1 | S53: 100 | T53: 0 | U53: 0
A54: UNION PALMAREÑA | B54: 3 | C54: 2 | D54: 66.66666667 | E54: 1 | F54: 33.33333333 | G54: 1 | H54: 1 | I54: 100 | J54: 0 | K54: 0 | L54: 1 | M54: 0 | N54: 0 | O54: 1 | P54: 100 | Q54: 1 | R54: 1 | S54: 100 | T54: 0 | U54: 0
A55: UNIÓN POASEÑA | B55: 3 | C55: 2 | D55: 66.66666667 | E55: 1 | F55: 33.33333333 | G55: 1 | H55: 1 | I55: 100 | J55: 0 | K55: 0 | L55: 1 | M55: 0 | N55: 0 | O55: 1 | P55: 100 | Q55: 1 | R55: 1 | S55: 100 | T55: 0 | U55: 0
A56: VERDE ECOLOGISTA | B56: 3 | C56: 2 | D56: 66.66666667 | E56: 1 | F56: 33.33333333 | G56: 1 | H56: 1 | I56: 100 | J56: 0 | K56: 0 | L56: 1 | M56: 0 | N56: 0 | O56: 1 | P56: 100 | Q56: 1 | R56: 1 | S56: 100 | T56: 0 | U56: 0
A57: YUNTA PROGRESISTA ESCAZUCEÑA | B57: 3 | C57: 1 | D57: 33.33333333 | E57: 2 | F57: 66.66666667 | G57: 1 | H57: 1 | I57: 100 | J57: 0 | K57: 0 | L57: 1 | M57: 0 | N57: 0 | O57: 1 | P57: 100 | Q57: 1 | R57: 0 | S57: 0 | T57: 1 | U57: 100
A60: Nota: Datos al 26 de octubre de 2010.
A61: Fuente: Departamento de Registro de Partidos Políticos, Base de datos de candidaturas diciembre 2010.

Sheet 22
A1: CUADRO 22 COSTA RICA: CANDIDATURAS A ALCALDÍAS Y VICEALCALDÍAS, POR SEXO
A2: SEGÚN PROVINCIA Y CANTÓN, ELECCIONES 5 DE DICIEMBRE 2010
A3: (CIFRAS ABSOLUTAS Y RELATIVAS)
A5: PROVINCIA Y CANTÓN | B5: TOTAL | C5: ALCALDÍAS | G5: VICEALCALDÍA PRIMERA | L5: VICEALCALDÍA SEGUNDA
C6: HOMBRES | E6: MUJERES | G6: TOTAL | H6: HOMBRES | J6: MUJERES | L6: TOTAL | M6: HOMBRES | O6: MUJERES
C7: ABS | D7: % | E7: ABS | F7: % | H7: ABS | I7: % | J7: ABS | K7: % | M7: ABS | N7: % | O7: ABS | P7: %
A9: COSTA RICA | B9: =B10+B31+B47+B56+B67+B79+B91 -> 339 | C9: =C10+C31+C47+C56+C67+C79+C91 -> 290 | D9: =C9/$G9*100 -> 85.79881657 | E9: =E10+E31+E47+E56+E67+E79+E91 -> 49 | F9: =E9/$G9*100 -> 14.49704142 | G9: =G10+G31+G47+G56+G67+G79+G91 -> 338 | H9: =H10+H31+H47+H56+H67+H79+H91 -> 49 | I9: =H9/$G9*100 -> 14.49704142 | J9: =J10+J31+J47+J56+J67+J79+J91 -> 289 | K9: =J9/$G9*100 -> 85.50295858 | L9: =L10+L31+L47+L56+L67+L79+L91 -> 331 | M9: =M10+M31+M47+M56+M67+M79+M91 -> 258 | N9: =M9/$L9*100 -> 77.94561934 | O9: =O10+O31+O47+O56+O67+O79+O91 -> 73 | P9: =O9/$L9*100 -> 22.05438066
A10: PROVINCIA SAN JOSÉ | B10: =SUM(B11:B30) -> 87 | C10: =SUM(C11:C30) -> 74 | D10: =C10/$B10*100 -> 85.05747126 | E10: =SUM(E11:E30) -> 13 | F10: =E10/$B10*100 -> 14.94252874 | G10: =SUM(G11:G30) -> 86 | H10: =SUM(H11:H30) -> 13 | I10: 15.11627907 | J10: =SUM(J11:J30) -> 73 | K10: 84.88372093 | L10: =SUM(L11:L30) -> 85 | M10: =SUM(M11:M30) -> 64 | N10: 75.29411765 | O10: =SUM(O11:O30) -> 21 | P10: 24.70588235
A11: SAN JOSÉ | B11: =+C11+E11 -> 5 | C11: 4 | D11: 80 | E11: 1 | F11: 20 | G11: =+H11+J11 -> 5 | H11: 1 | I11: 20 | J11: 4 | K11: 80 | L11: =+M11+O11 -> 4 | M11: 3 | N11: 75 | O11: 1 | P11: 25
A12: ESCAZÚ | B12: 5 | C12: 3 | D12: 60 | E12: 2 | F12: 40 | G12: 5 | H12: 2 | I12: 40 | J12: 3 | K12: 60 | L12: 5 | M12: 1 | N12: 20 | O12: 4 | P12: 80
A13: DESAMPARADOS | B13: 6 | C13: 4 | D13: 66.66666667 | E13: 2 | F13: 33.33333333 | G13: 6 | H13: 2 | I13: 33.33333333 | J13: 4 | K13: 66.66666667 | L13: 6 | M13: 3 | N13: 50 | O13: 3 | P13: 50
A14: PURISCAL | B14: 3 | C14: 3 | D14: 100 | E14: 0 | F14: 0 | G14: 3 | H14: 0 | I14: 0 | J14: 3 | K14: 100 | L14: 3 | M14: 3 | N14: 100 | O14: 0 | P14: 0
A15: TARRAZÚ | B15: 3 | C15: 3 | D15: 100 | E15: 0 | F15: 0 | G15: 3 | H15: 0 | I15: 0 | J15: 3 | K15: 100 | L15: 3 | M15: 3 | N15: 100 | O15: 0 | P15: 0
A16: ASERRÍ | B16: 5 | C16: 4 | D16: 80 | E16: 1 | F16: 20 | G16: 5 | H16: 1 | I16: 20 | J16: 4 | K16: 80 | L16: 4 | M16: 3 | N16: 75 | O16: 1 | P16: 25
A17: MORA | B17: 3 | C17: 2 | D17: 66.66666667 | E17: 1 | F17: 33.33333333 | G17: 3 | H17: 1 | I17: 33.33333333 | J17: 2 | K17: 66.66666667 | L17: 3 | M17: 2 | N17: 66.66666667 | O17: 1 | P17: 33.33333333
A18: GOICOECHEA | B18: 8 | C18: 7 | D18: 87.5 | E18: 1 | F18: 12.5 | G18: 8 | H18: 1 | I18: 12.5 | J18: 7 | K18: 87.5 | L18: 8 | M18: 5 | N18: 62.5 | O18: 3 | P18: 37.5
A19: SANTA ANA | B19: 5 | C19: 5 | D19: 100 | E19: 0 | F19: 0 | G19: 4 | H19: 0 | I19: 0 | J19: 4 | K19: 100 | L19: 5 | M19: 4 | N19: 80 | O19: 1 | P19: 20
A20: ALAJUELITA | B20: 4 | C20: 4 | D20: 100 | E20: 0 | F20: 0 | G20: 4 | H20: 0 | I20: 0 | J20: 4 | K20: 100 | L20: 4 | M20: 2 | N20: 50 | O20: 2 | P20: 50
A21: VÁZQUEZ DE CORONADO | B21: 3 | C21: 2 | D21: 66.66666667 | E21: 1 | F21: 33.33333333 | G21: 3 | H21: 1 | I21: 33.33333333 | J21: 2 | K21: 66.66666667 | L21: 3 | M21: 2 | N21: 66.66666667 | O21: 1 | P21: 33.33333333
A22: ACOSTA | B22: 2 | C22: 2 | D22: 100 | E22: 0 | F22: 0 | G22: 2 | H22: 0 | I22: 0 | J22: 2 | K22: 100 | L22: 2 | M22: 2 | N22: 100 | O22: 0 | P22: 0
A23: TIBÁS | B23: 6 | C23: 4 | D23: 66.66666667 | E23: 2 | F23: 33.33333333 | G23: 6 | H23: 2 | I23: 33.33333333 | J23: 4 | K23: 66.66666667 | L23: 6 | M23: 4 | N23: 66.66666667 | O23: 2 | P23: 33.33333333
A24: MORAVIA | B24: 8 | C24: 8 | D24: 100 | E24: 0 | F24: 0 | G24: 8 | H24: 0 | I24: 0 | J24: 8 | K24: 100 | L24: 8 | M24: 7 | N24: 87.5 | O24: 1 | P24: 12.5
A25: MONTES DE OCA | B25: 5 | C25: 5 | D25: 100 | E25: 0 | F25: 0 | G25: 5 | H25: 0 | I25: 0 | J25: 5 | K25: 100 | L25: 5 | M25: 5 | N25: 100 | O25: 0 | P25: 0
A26: TURRUBARES | B26: 2 | C26: 2 | D26: 100 | E26: 0 | F26: 0 | G26: 2 | H26: 0 | I26: 0 | J26: 2 | K26: 100 | L26: 2 | M26: 2 | N26: 100 | O26: 0 | P26: 0
A27: DOTA | B27: 4 | C27: 4 | D27: 100 | E27: 0 | F27: 0 | G27: 4 | H27: 0 | I27: 0 | J27: 4 | K27: 100 | L27: 4 | M27: 4 | N27: 100 | O27: 0 | P27: 0
A28: CURRIDABAT | B28: 3 | C28: 2 | D28: 66.66666667 | E28: 1 | F28: 33.33333333 | G28: 3 | H28: 1 | I28: 33.33333333 | J28: 2 | K28: 66.66666667 | L28: 3 | M28: 3 | N28: 100 | O28: 0 | P28: 0
A29: PÉREZ ZELEDÓN | B29: 4 | C29: 3 | D29: 75 | E29: 1 | F29: 25 | G29: 4 | H29: 1 | I29: 25 | J29: 3 | K29: 75 | L29: 4 | M29: 3 | N29: 75 | O29: 1 | P29: 25
A30: LEÓN CORTÉS | B30: 3 | C30: 3 | D30: 100 | E30: 0 | F30: 0 | G30: 3 | H30: 0 | I30: 0 | J30: 3 | K30: 100 | L30: 3 | M30: 3 | N30: 100 | O30: 0 | P30: 0
A31: PROVINCIA ALAJUELA | B31: =SUM(B32:B46) -> 61 | C31: =SUM(C32:C46) -> 51 | D31: 83.60655738 | E31: =SUM(E32:E46) -> 10 | F31: 16.39344262 | G31: =SUM(G32:G46) -> 61 | H31: =SUM(H32:H46) -> 10 | I31: 16.39344262 | J31: =SUM(J32:J46) -> 51 | K31: 83.60655738 | L31: =SUM(L32:L46) -> 60 | M31: =SUM(M32:M46) -> 49 | N31: 81.66666667 | O31: =SUM(O32:O46) -> 11 | P31: 18.33333333
A32: ALAJUELA | B32: =+C32+E32 -> 5 | C32: 4 | D32: 80 | E32: 1 | F32: 20 | G32: =+H32+J32 -> 5 | H32: 1 | I32: 20 | J32: 4 | K32: 80 | L32: =+M32+O32 -> 5 | M32: 5 | N32: 100 | O32: 0 | P32: 0
A33: SAN RAMÓN | B33: 2 | C33: 1 | D33: 50 | E33: 1 | F33: 50 | G33: 2 | H33: 1 | I33: 50 | J33: 1 | K33: 50 | L33: 2 | M33: 1 | N33: 50 | O33: 1 | P33: 50
A34: GRECIA | B34: 4 | C34: 4 | D34: 100 | E34: 0 | F34: 0 | G34: 4 | H34: 0 | I34: 0 | J34: 4 | K34: 100 | L34: 4 | M34: 4 | N34: 100 | O34: 0 | P34: 0
A35: SAN MATEO | B35: 4 | C35: 3 | D35: 75 | E35: 1 | F35: 25 | G35: 4 | H35: 1 | I35: 25 | J35: 3 | K35: 75 | L35: 4 | M35: 3 | N35: 75 | O35: 1 | P35: 25
A36: ATENAS | B36: 5 | C36: 3 | D36: 60 | E36: 2 | F36: 40 | G36: 5 | H36: 2 | I36: 40 | J36: 3 | K36: 60 | L36: 4 | M36: 3 | N36: 75 | O36: 1 | P36: 25
A37: NARANJO | B37: 7 | C37: 6 | D37: 85.71428571 | E37: 1 | F37: 14.28571429 | G37: 7 | H37: 1 | I37: 14.28571429 | J37: 6 | K37: 85.71428571 | L37: 7 | M37: 5 | N37: 71.42857143 | O37: 2 | P37: 28.57142857
A38: PALMARES | B38: 5 | C38: 5 | D38: 100 | E38: 0 | F38: 0 | G38: 5 | H38: 0 | I38: 0 | J38: 5 | K38: 100 | L38: 5 | M38: 5 | N38: 100 | O38: 0 | P38: 0
A39: POÁS | B39: 2 | C39: 2 | D39: 100 | E39: 0 | F39: 0 | G39: 2 | H39: 0 | I39: 0 | J39: 2 | K39: 100 | L39: 2 | M39: 2 | N39: 100 | O39: 0 | P39: 0
A40: OROTINA | B40: 5 | C40: 3 | D40: 60 | E40: 2 | F40: 40 | G40: 5 | H40: 2 | I40: 40 | J40: 3 | K40: 60 | L40: 5 | M40: 4 | N40: 80 | O40: 1 | P40: 20
A41: SAN CARLOS | B41: 3 | C41: 3 | D41: 100 | E41: 0 | F41: 0 | G41: 3 | H41: 0 | I41: =H41/$G41*100 -> 0 | J41: 3 | K41: =J41/$G41*100 -> 100 | L41: 3 | M41: 2 | N41: =M41/$L41*100 -> 66.66666667 | O41: 1 | P41: =O41/$L41*100 -> 33.33333333
A42: ALFARO RUIZ | B42: 3 | C42: 3 | D42: =C42/$B42*100 -> 100 | E42: 0 | F42: =E42/$B42*100 -> 0 | G42: 3 | H42: 0 | I42: 0 | J42: 3 | K42: 100 | L42: 3 | M42: 2 | N42: 66.66666667 | O42: 1 | P42: 33.33333333
A43: VALVERDE VEGA | B43: 4 | C43: 3 | D43: 75 | E43: 1 | F43: 25 | G43: 4 | H43: 1 | I43: 25 | J43: 3 | K43: 75 | L43: 4 | M43: 3 | N43: 75 | O43: 1 | P43: 25
A44: UPALA | B44: 3 | C44: 3 | D44: 100 | E44: 0 | F44: 0 | G44: 3 | H44: 0 | I44: 0 | J44: 3 | K44: 100 | L44: 3 | M44: 2 | N44: 66.66666667 | O44: 1 | P44: 33.33333333
A45: LOS CHILES | B45: 4 | C45: 3 | D45: 75 | E45: 1 | F45: 25 | G45: 4 | H45: 1 | I45: 25 | J45: 3 | K45: 75 | L45: 4 | M45: 3 | N45: 75 | O45: 1 | P45: 25
A46: GUATUSO | B46: 5 | C46: 5 | D46: 100 | E46: 0 | F46: 0 | G46: 5 | H46: 0 | I46: 0 | J46: 5 | K46: 100 | L46: 5 | M46: 5 | N46: 100 | O46: 0 | P46: 0
A47: PROVINCIA CARTAGO | B47: =SUM(B48:B55) -> 29 | C47: =SUM(C48:C55) -> 25 | D47: 86.20689655 | E47: =SUM(E48:E55) -> 4 | F47: 13.79310345 | G47: =SUM(G48:G55) -> 29 | H47: =SUM(H48:H55) -> 4 | I47: 13.79310345 | J47: =SUM(J48:J55) -> 25 | K47: 86.20689655 | L47: =SUM(L48:L55) -> 29 | M47: =SUM(M48:M55) -> 25 | N47: 86.20689655 | O47: =SUM(O48:O55) -> 4 | P47: 13.79310345
A48: CARTAGO | B48: =+C48+E48 -> 2 | C48: 2 | D48: 100 | E48: 0 | F48: 0 | G48: =+H48+J48 -> 2 | H48: 0 | I48: 0 | J48: 2 | K48: 100 | L48: =+M48+O48 -> 2 | M48: 2 | N48: 100 | O48: 0 | P48: 0
A49: PARAÍSO | B49: 6 | C49: 6 | D49: 100 | E49: 0 | F49: 0 | G49: 6 | H49: 0 | I49: 0 | J49: 6 | K49: 100 | L49: 6 | M49: 6 | N49: 100 | O49: 0 | P49: 0
A50: LA UNIÓN | B50: 4 | C50: 2 | D50: 50 | E50: 2 | F50: 50 | G50: 4 | H50: 2 | I50: 50 | J50: 2 | K50: 50 | L50: 4 | M50: 3 | N50: 75 | O50: 1 | P50: 25
A51: JIMÉNEZ | B51: 3 | C51: 3 | D51: 100 | E51: 0 | F51: 0 | G51: 3 | H51: 0 | I51: 0 | J51: 3 | K51: 100 | L51: 3 | M51: 3 | N51: 100 | O51: 0 | P51: 0
A52: TURRIALBA | B52: 4 | C52: 3 | D52: 75 | E52: 1 | F52: 25 | G52: 4 | H52: 1 | I52: 25 | J52: 3 | K52: 75 | L52: 4 | M52: 3 | N52: 75 | O52: 1 | P52: 25
A53: ALVARADO | B53: 2 | C53: 2 | D53: 100 | E53: 0 | F53: 0 | G53: 2 | H53: 0 | I53: 0 | J53: 2 | K53: 100 | L53: 2 | M53: 2 | N53: 100 | O53: 0 | P53: 0
A54: OREAMUNO | B54: 6 | C54: 5 | D54: 83.33333333 | E54: 1 | F54: 16.66666667 | G54: 6 | H54: 1 | I54: 16.66666667 | J54: 5 | K54: 83.33333333 | L54: 6 | M54: 4 | N54: 66.66666667 | O54: 2 | P54: 33.33333333
A55: EL GUARCO | B55: 2 | C55: 2 | D55: 100 | E55: 0 | F55: 0 | G55: 2 | H55: 0 | I55: 0 | J55: 2 | K55: 100 | L55: 2 | M55: 2 | N55: 100 | O55: 0 | P55: 0
A56: PROVINCIA HEREDIA | B56: =SUM(B57:B66) -> 39 | C56: =SUM(C57:C66) -> 32 | D56: 82.05128205 | E56: =SUM(E57:E66) -> 7 | F56: 17.94871795 | G56: =SUM(G57:G66) -> 39 | H56: =SUM(H57:H66) -> 7 | I56: 17.94871795 | J56: =SUM(J57:J66) -> 32 | K56: 82.05128205 | L56: =SUM(L57:L66) -> 39 | M56: =SUM(M57:M66) -> 29 | N56: 74.35897436 | O56: =SUM(O57:O66) -> 10 | P56: 25.64102564
A57: HEREDIA | B57: =+C57+E57 -> 4 | C57: 3 | D57: 75 | E57: 1 | F57: 25 | G57: =+H57+J57 -> 4 | H57: 1 | I57: 25 | J57: 3 | K57: 75 | L57: =+M57+O57 -> 4 | M57: 2 | N57: 50 | O57: 2 | P57: 50
A58: BARVA | B58: 7 | C58: 6 | D58: 85.71428571 | E58: 1 | F58: 14.28571429 | G58: 7 | H58: 1 | I58: 14.28571429 | J58: 6 | K58: 85.71428571 | L58: 7 | M58: 6 | N58: 85.71428571 | O58: 1 | P58: 14.28571429
A59: SANTO DOMINGO | B59: 4 | C59: 2 | D59: 50 | E59: 2 | F59: 50 | G59: 4 | H59: 2 | I59: 50 | J59: 2 | K59: 50 | L59: 4 | M59: 3 | N59: 75 | O59: 1 | P59: 25
A60: SANTA BÁRBARA | B60: 5 | C60: 4 | D60: 80 | E60: 1 | F60: 20 | G60: 5 | H60: 1 | I60: 20 | J60: 4 | K60: 80 | L60: 5 | M60: 2 | N60: 40 | O60: 3 | P60: 60
A61: SAN RAFAEL | B61: 3 | C61: 2 | D61: 66.66666667 | E61: 1 | F61: 33.33333333 | G61: 3 | H61: 1 | I61: 33.33333333 | J61: 2 | K61: 66.66666667 | L61: 3 | M61: 1 | N61: 33.33333333 | O61: 2 | P61: 66.66666667
A62: SAN ISIDRO | B62: 4 | C62: 4 | D62: 100 | E62: 0 | F62: 0 | G62: 4 | H62: 0 | I62: 0 | J62: 4 | K62: 100 | L62: 4 | M62: 3 | N62: 75 | O62: 1 | P62: 25
A63: BELÉN | B63: 3 | C63: 3 | D63: 100 | E63: 0 | F63: 0 | G63: 3 | H63: 0 | I63: 0 | J63: 3 | K63: 100 | L63: 3 | M63: 3 | N63: 100 | O63: 0 | P63: 0
A64: FLORES | B64: 3 | C64: 3 | D64: 100 | E64: 0 | F64: 0 | G64: 3 | H64: 0 | I64: 0 | J64: 3 | K64: 100 | L64: 3 | M64: 3 | N64: 100 | O64: 0 | P64: 0
A65: SAN PABLO | B65: 4 | C65: 3 | D65: 75 | E65: 1 | F65: 25 | G65: 4 | H65: 1 | I65: 25 | J65: 3 | K65: 75 | L65: 4 | M65: 4 | N65: 100 | O65: 0 | P65: 0
A66: SARAPIQUÍ | B66: 2 | C66: 2 | D66: 100 | E66: 0 | F66: 0 | G66: 2 | H66: 0 | I66: 0 | J66: 2 | K66: 100 | L66: 2 | M66: 2 | N66: 100 | O66: 0 | P66: 0
A67: PROVINCIA GUANACASTE | B67: =SUM(B68:B78) -> 39 | C67: =SUM(C68:C78) -> 36 | D67: 92.30769231 | E67: =SUM(E68:E78) -> 3 | F67: 7.692307692 | G67: =SUM(G68:G78) -> 39 | H67: =SUM(H68:H78) -> 3 | I67: 7.692307692 | J67: =SUM(J68:J78) -> 36 | K67: 92.30769231 | L67: =SUM(L68:L78) -> 37 | M67: =SUM(M68:M78) -> 28 | N67: 75.67567568 | O67: =SUM(O68:O78) -> 9 | P67: 24.32432432
A68: LIBERIA | B68: =+C68+E68 -> 4 | C68: 4 | D68: 100 | E68: 0 | F68: 0 | G68: =+H68+J68 -> 4 | H68: 0 | I68: 0 | J68: 4 | K68: 100 | L68: =+M68+O68 -> 4 | M68: 1 | N68: 25 | O68: 3 | P68: 75
A69: NICOYA | B69: 5 | C69: 4 | D69: 80 | E69: 1 | F69: 20 | G69: 5 | H69: 1 | I69: 20 | J69: 4 | K69: 80 | L69: 5 | M69: 4 | N69: 80 | O69: 1 | P69: 20
A70: SANTA CRUZ | B70: 6 | C70: 5 | D70: 83.33333333 | E70: 1 | F70: 16.66666667 | G70: 6 | H70: 1 | I70: 16.66666667 | J70: 5 | K70: 83.33333333 | L70: 6 | M70: 6 | N70: 100 | O70: 0 | P70: 0
A71: BAGACES | B71: 3 | C71: 3 | D71: 100 | E71: 0 | F71: 0 | G71: 3 | H71: 0 | I71: 0 | J71: 3 | K71: 100 | L71: 3 | M71: 0 | N71: 0 | O71: 3 | P71: 100
A72: CARRILLO | B72: 4 | C72: 4 | D72: 100 | E72: 0 | F72: 0 | G72: 4 | H72: 0 | I72: 0 | J72: 4 | K72: 100 | L72: 4 | M72: 4 | N72: 100 | O72: 0 | P72: 0
A73: CAÑAS | B73: 2 | C73: 2 | D73: 100 | E73: 0 | F73: 0 | G73: 2 | H73: 0 | I73: =H73/$G73*100 -> 0 | J73: 2 | K73: =J73/$G73*100 -> 100 | L73: 2 | M73: 2 | N73: =M73/$L73*100 -> 100 | O73: 0 | P73: =O73/$L73*100 -> 0
A74: ABANGARES | B74: 3 | C74: 2 | D74: =C74/$B74*100 -> 66.66666667 | E74: 1 | F74: =E74/$B74*100 -> 33.33333333 | G74: 3 | H74: 1 | I74: 33.33333333 | J74: 2 | K74: 66.66666667 | L74: 3 | M74: 2 | N74: 66.66666667 | O74: 1 | P74: 33.33333333
A75: TILARÁN | B75: 4 | C75: 4 | D75: 100 | E75: 0 | F75: 0 | G75: 4 | H75: 0 | I75: 0 | J75: 4 | K75: 100 | L75: 4 | M75: 3 | N75: 75 | O75: 1 | P75: 25
A76: NANDAYURE | B76: 3 | C76: 3 | D76: 100 | E76: 0 | F76: 0 | G76: 3 | H76: 0 | I76: 0 | J76: 3 | K76: 100 | L76: 3 | M76: 3 | N76: 100 | O76: 0 | P76: 0
A77: LA CRUZ | B77: 2 | C77: 2 | D77: 100 | E77: 0 | F77: 0 | G77: 2 | H77: 0 | I77: 0 | J77: 2 | K77: 100 | L77: 2 | M77: 2 | N77: 100 | O77: 0 | P77: 0
A78: HOJANCHA | B78: 3 | C78: 3 | D78: 100 | E78: 0 | F78: 0 | G78: 3 | H78: 0 | I78: 0 | J78: 3 | K78: 100 | L78: 1 | M78: 1 | N78: 100 | O78: 0 | P78: 0
A79: PROVINCIA PUNTARENAS | B79: =SUM(B80:B90) -> 49 | C79: =SUM(C80:C90) -> 43 | D79: 87.75510204 | E79: =SUM(E80:E90) -> 6 | F79: 12.24489796 | G79: =SUM(G80:G90) -> 49 | H79: =SUM(H80:H90) -> 6 | I79: 12.24489796 | J79: =SUM(J80:J90) -> 43 | K79: 87.75510204 | L79: =SUM(L80:L90) -> 48 | M79: =SUM(M80:M90) -> 38 | N79: 79.16666667 | O79: =SUM(O80:O90) -> 10 | P79: 20.83333333
A80: PUNTARENAS | B80: =+C80+E80 -> 5 | C80: 5 | D80: 100 | E80: 0 | F80: 0 | G80: =+H80+J80 -> 5 | H80: 0 | I80: 0 | J80: 5 | K80: 100 | L80: =+M80+O80 -> 4 | M80: 2 | N80: 50 | O80: 2 | P80: 50
A81: ESPARZA | B81: 5 | C81: 5 | D81: 100 | E81: 0 | F81: 0 | G81: 5 | H81: 0 | I81: 0 | J81: 5 | K81: 100 | L81: 5 | M81: 4 | N81: 80 | O81: 1 | P81: 20
A82: BUENOS AIRES | B82: 3 | C82: 3 | D82: 100 | E82: 0 | F82: 0 | G82: 3 | H82: 0 | I82: 0 | J82: 3 | K82: 100 | L82: 3 | M82: 3 | N82: 100 | O82: 0 | P82: 0
A83: MONTES DE ORO | B83: 3 | C83: 3 | D83: 100 | E83: 0 | F83: 0 | G83: 3 | H83: 0 | I83: 0 | J83: 3 | K83: 100 | L83: 3 | M83: 3 | N83: 100 | O83: 0 | P83: 0
A84: OSA | B84: 4 | C84: 4 | D84: 100 | E84: 0 | F84: 0 | G84: 4 | H84: 0 | I84: 0 | J84: 4 | K84: 100 | L84: 4 | M84: 3 | N84: 75 | O84: 1 | P84: 25
A85: AGUIRRE | B85: 8 | C85: 6 | D85: 75 | E85: 2 | F85: 25 | G85: 8 | H85: 2 | I85: 25 | J85: 6 | K85: 75 | L85: 8 | M85: 6 | N85: 75 | O85: 2 | P85: 25
A86: GOLFITO | B86: 3 | C86: 3 | D86: 100 | E86: 0 | F86: 0 | G86: 3 | H86: 0 | I86: 0 | J86: 3 | K86: 100 | L86: 3 | M86: 2 | N86: 66.66666667 | O86: 1 | P86: 33.33333333
A87: COTO BRUS | B87: 4 | C87: 3 | D87: 75 | E87: 1 | F87: 25 | G87: 4 | H87: 1 | I87: 25 | J87: 3 | K87: 75 | L87: 4 | M87: 3 | N87: 75 | O87: 1 | P87: 25
A88: PARRITA | B88: 5 | C88: 4 | D88: 80 | E88: 1 | F88: 20 | G88: 5 | H88: 1 | I88: 20 | J88: 4 | K88: 80 | L88: 5 | M88: 4 | N88: 80 | O88: 1 | P88: 20
A89: CORREDORES | B89: 6 | C89: 4 | D89: 66.66666667 | E89: 2 | F89: 33.33333333 | G89: 6 | H89: 2 | I89: 33.33333333 | J89: 4 | K89: 66.66666667 | L89: 6 | M89: 5 | N89: 83.33333333 | O89: 1 | P89: 16.66666667
A90: GARABITO | B90: 3 | C90: 3 | D90: 100 | E90: 0 | F90: 0 | G90: 3 | H90: 0 | I90: 0 | J90: 3 | K90: 100 | L90: 3 | M90: 3 | N90: 100 | O90: 0 | P90: 0
A91: PROVINCIA LIMÓN | B91: =SUM(B92:B97) -> 35 | C91: =SUM(C92:C97) -> 29 | D91: 82.85714286 | E91: =SUM(E92:E97) -> 6 | F91: 17.14285714 | G91: =SUM(G92:G97) -> 35 | H91: =SUM(H92:H97) -> 6 | I91: 17.14285714 | J91: =SUM(J92:J97) -> 29 | K91: 82.85714286 | L91: =SUM(L92:L97) -> 33 | M91: =SUM(M92:M97) -> 25 | N91: 75.75757576 | O91: =SUM(O92:O97) -> 8 | P91: 24.24242424
A92: LIMÓN | B92: =+C92+E92 -> 8 | C92: 6 | D92: 75 | E92: 2 | F92: 25 | G92: =+H92+J92 -> 8 | H92: 2 | I92: 25 | J92: 6 | K92: 75 | L92: =+M92+O92 -> 7 | M92: 4 | N92: 57.14285714 | O92: 3 | P92: 42.85714286
A93: POCOCÍ | B93: 4 | C93: 4 | D93: 100 | E93: 0 | F93: 0 | G93: 4 | H93: 0 | I93: 0 | J93: 4 | K93: 100 | L93: 4 | M93: 3 | N93: 75 | O93: 1 | P93: 25
A94: SIQUIRRES | B94: 7 | C94: 4 | D94: 57.14285714 | E94: 3 | F94: 42.85714286 | G94: 7 | H94: 3 | I94: 42.85714286 | J94: 4 | K94: 57.14285714 | L94: 7 | M94: 5 | N94: 71.42857143 | O94: 2 | P94: 28.57142857
A95: TALAMANCA | B95: 5 | C95: 5 | D95: 100 | E95: 0 | F95: 0 | G95: 5 | H95: 0 | I95: 0 | J95: 5 | K95: 100 | L95: 4 | M95: 4 | N95: 100 | O95: 0 | P95: 0
A96: MATINA | B96: 6 | C96: 6 | D96: 100 | E96: 0 | F96: 0 | G96: 6 | H96: 0 | I96: 0 | J96: 6 | K96: 100 | L96: 6 | M96: 4 | N96: 66.66666667 | O96: 2 | P96: 33.33333333
A97: GUÁCIMO | B97: 5 | C97: 4 | D97: 80 | E97: 1 | F97: 20 | G97: 5 | H97: 1 | I97: 20 | J97: 4 | K97: 80 | L97: 5 | M97: 5 | N97: 100 | O97: 0 | P97: 0
A100: Nota: Datos al 26 de octubre de 2010.
A101: Fuente: Departamento de Registro de Partidos Políticos, Base de datos de candidaturas diciembre 2010.

Sheet 23
A1: CUADRO 23 COSTA RICA: CANDIDATURAS A SÍNDICOS(AS) EN PROPIEDAD Y SUPLENCIA, POR SEXO
A2: SEGÚN PARTIDO, ELECCIONES 5 DE DICIEMBRE 2010
A3: (CIFRAS ABSOLUTAS Y RELATIVAS)
A5: PARTIDO | B5: SÍNDICOS(AS) | G5: EN PROPIEDAD | L5: EN SUPLENCIA
A6: PARTIDO POLITICO | B6: TOTAL | C6: HOMBRES | E6: MUJERES | G6: TOTAL | H6: HOMBRES | J6: MUJERES | L6: TOTAL | M6: HOMBRES | O6: MUJERES
B7: ABS | C7: ABS | D7: % | E7: ABS | F7: % | G7: ABS | H7: ABS | I7: % | J7: ABS | K7: % | L7: ABS | M7: ABS | N7: % | O7: ABS | P7: %
A9: TOTAL | B9: =SUM(B11:B57) -> 3578 | C9: =SUM(C11:C57) -> 1801 | D9: =C9/B9*100 -> 50.3353829 | E9: =SUM(E11:E57) -> 1777 | F9: =E9/B9*100 -> 49.6646171 | G9: =SUM(G11:G57) -> 1837 | H9: =SUM(H11:H57) -> 1241 | I9: =H9/G9*100 -> 67.5557975 | J9: =SUM(J11:J57) -> 596 | K9: =J9/G9*100 -> 32.4442025 | L9: =SUM(L11:L57) -> 1741 | M9: =SUM(M11:M57) -> 560 | N9: =M9/L9*100 -> 32.16542217 | O9: =SUM(O11:O57) -> 1181 | P9: =O9/L9*100 -> 67.83457783
A11: ACCESIBILIDAD SIN EXCLUSIÓN | B11: =+C11+E11 -> 188 | C11: =+H11+M11 -> 93 | D11: =C11/B11*100 -> 49.46808511 | E11: =+J11+O11 -> 95 | F11: =E11/B11*100 -> 50.53191489 | G11: =+H11+J11 -> 97 | H11: 59 | I11: =H11/G11*100 -> 60.82474227 | J11: 38 | K11: =J11/G11*100 -> 39.17525773 | L11: =+M11+O11 -> 91 | M11: 34 | N11: =M11/L11*100 -> 37.36263736 | O11: 57 | P11: =O11/L11*100 -> 62.63736264
A12: ACCIÓN CANTONAL SIQUIRRES INDEPENDIENTE | B12: 11 | C12: 6 | D12: 54.54545455 | E12: 5 | F12: 45.45454545 | G12: 6 | H12: 5 | I12: 83.33333333 | J12: 1 | K12: 16.66666667 | L12: 5 | M12: 1 | N12: 20 | O12: 4 | P12: 80
A13: ACCIÓN CIUDADANA | B13: 519 | C13: 261 | D13: 50.28901734 | E13: 258 | F13: 49.71098266 | G13: 270 | H13: 172 | I13: 63.7037037 | J13: 98 | K13: 36.2962963 | L13: 249 | M13: 89 | N13: 35.74297189 | O13: 160 | P13: 64.25702811
A14: ACCIÓN NARANJEÑA | B14: 12 | C14: 7 | D14: 58.33333333 | E14: 5 | F14: 41.66666667 | G14: 7 | H14: 7 | I14: 100 | J14: 0 | K14: 0 | L14: 5 | M14: 0 | N14: 0 | O14: 5 | P14: 100
A15: ACCIÓN QUEPEÑA | B15: 5 | C15: 2 | D15: 40 | E15: 3 | F15: 60 | G15: 3 | H15: 0 | I15: 0 | J15: 3 | K15: 100 | L15: 2 | M15: 2 | N15: 100 | O15: 0 | P15: 0
A16: ACUERDO CANTONAL DESAMPARADEÑO | B16: 26 | C16: 13 | D16: 50 | E16: 13 | F16: 50 | G16: 13 | H16: 6 | I16: 46.15384615 | J16: 7 | K16: 53.84615385 | L16: 13 | M16: 7 | N16: 53.84615385 | O16: 6 | P16: 46.15384615
A17: ALIANZA PATRIÓTICA | B17: 34 | C17: 19 | D17: 55.88235294 | E17: 15 | F17: 44.11764706 | G17: 18 | H17: 16 | I17: 88.88888889 | J17: 2 | K17: 11.11111111 | L17: 16 | M17: 3 | N17: 18.75 | O17: 13 | P17: 81.25
A18: AUTÉNTICO LABRADOR DE CORONADO | B18: 8 | C18: 4 | D18: 50 | E18: 4 | F18: 50 | G18: 4 | H18: 2 | I18: 50 | J18: 2 | K18: 50 | L18: 4 | M18: 2 | N18: 50 | O18: 2 | P18: 50
A19: AUTÓNOMO OROMONTANO | B19: 5 | C19: 2 | D19: 40 | E19: 3 | F19: 60 | G19: 2 | H19: 2 | I19: 100 | J19: 0 | K19: 0 | L19: 3 | M19: 0 | N19: 0 | O19: 3 | P19: 100
A20: CÍVICO DE TÍBAS FUENTEOVEJUNA | B20: 10 | C20: 5 | D20: 50 | E20: 5 | F20: 50 | G20: 5 | H20: 3 | I20: 60 | J20: 2 | K20: 40 | L20: 5 | M20: 2 | N20: 40 | O20: 3 | P20: 60
A21: COALICIÓN BARVA UNIDA | B21: 10 | C21: 5 | D21: 50 | E21: 5 | F21: 50 | G21: 5 | H21: 2 | I21: 40 | J21: 3 | K21: 60 | L21: 5 | M21: 3 | N21: 60 | O21: 2 | P21: 40
A22: COALICIÓN CARTAGO UNIDO | B22: 22 | C22: 11 | D22: 50 | E22: 11 | F22: 50 | G22: 11 | H22: 9 | I22: 81.81818182 | J22: 2 | K22: 18.18181818 | L22: 11 | M22: 2 | N22: 18.18181818 | O22: 9 | P22: 81.81818182
A23: COALICIÓN MONTES DE OCA UNIDA | B23: 8 | C23: 4 | D23: 50 | E23: 4 | F23: 50 | G23: 4 | H23: 1 | I23: 25 | J23: 3 | K23: 75 | L23: 4 | M23: 3 | N23: 75 | O23: 1 | P23: 25
A24: COALICIÓN PARTIDO ALIANZA ZARCEREÑA | B24: 14 | C24: 7 | D24: 50 | E24: 7 | F24: 50 | G24: 7 | H24: 5 | I24: 71.42857143 | J24: 2 | K24: 28.57142857 | L24: 7 | M24: 2 | N24: 28.57142857 | O24: 5 | P24: 71.42857143
A25: COALICIÓN RAMONENSE | B25: 24 | C25: 13 | D25: 54.16666667 | E25: 11 | F25: 45.83333333 | G25: 13 | H25: 12 | I25: 92.30769231 | J25: 1 | K25: 7.692307692 | L25: 11 | M25: 1 | N25: 9.090909091 | O25: 10 | P25: 90.90909091
A26: COALICIÓN UNIDOS POR SAN CARLOS | B26: 26 | C26: 13 | D26: 50 | E26: 13 | F26: 50 | G26: 13 | H26: 11 | I26: 84.61538462 | J26: 2 | K26: 15.38461538 | L26: 13 | M26: 2 | N26: 15.38461538 | O26: 11 | P26: 84.61538462
A27: COALICIÓN UNIÓN LIBERIANA | B27: 10 | C27: 5 | D27: 50 | E27: 5 | F27: 50 | G27: 5 | H27: 3 | I27: 60 | J27: 2 | K27: 40 | L27: 5 | M27: 2 | N27: 40 | O27: 3 | P27: 60
A28: CURRIDABAT SIGLO XXI | B28: 8 | C28: 4 | D28: 50 | E28: 4 | F28: 50 | G28: 4 | H28: 2 | I28: 50 | J28: 2 | K28: 50 | L28: 4 | M28: 2 | N28: 50 | O28: 2 | P28: 50
A29: DEL SOL | B29: 12 | C29: 6 | D29: 50 | E29: 6 | F29: 50 | G29: 6 | H29: 3 | I29: 50 | J29: 3 | K29: 50 | L29: 6 | M29: 3 | N29: 50 | O29: 3 | P29: 50
A30: EL PUENTE Y LOS CAMINOS DE MORA | B30: 9 | C30: 5 | D30: 55.55555556 | E30: 4 | F30: 44.44444444 | G30: 5 | H30: 3 | I30: 60 | J30: 2 | K30: 40 | L30: 4 | M30: 2 | N30: 50 | O30: 2 | P30: 50
A31: FRENTE AMPLIO | B31: 75 | C31: 37 | D31: 49.33333333 | E31: 38 | F31: 50.66666667 | G31: 38 | H31: 28 | I31: 73.68421053 | J31: 10 | K31: 26.31578947 | L31: 37 | M31: 9 | N31: 24.32432432 | O31: 28 | P31: 75.67567568
A32: GARABITO ECOLÓGICO | B32: 3 | C32: 1 | D32: 33.33333333 | E32: 2 | F32: 66.66666667 | G32: 1 | H32: 1 | I32: 100 | J32: 0 | K32: 0 | L32: 2 | M32: 0 | N32: 0 | O32: 2 | P32: 100
A33: GOICOECHEA EN ACCIÓN | B33: 14 | C33: 7 | D33: 50 | E33: 7 | F33: 50 | G33: 7 | H33: 3 | I33: 42.85714286 | J33: 4 | K33: 57.14285714 | L33: 7 | M33: 4 | N33: 57.14285714 | O33: 3 | P33: 42.85714286
A34: INDEPENDIENTE BELEMITA | B34: 6 | C34: 3 | D34: 50 | E34: 3 | F34: 50 | G34: 3 | H34: 3 | I34: 100 | J34: 0 | K34: 0 | L34: 3 | M34: 0 | N34: 0 | O34: 3 | P34: 100
A35: INTEGRACIÓN BARBAREÑA | B35: 10 | C35: 4 | D35: 40 | E35: 6 | F35: 60 | G35: 6 | H35: 3 | I35: 50 | J35: 3 | K35: 50 | L35: 4 | M35: 1 | N35: 25 | O35: 3 | P35: 75
A36: INTEGRACIÓN NACIONAL | B36: 105 | C36: 53 | D36: 50.47619048 | E36: 52 | F36: 49.52380952 | G36: 53 | H36: 38 | I36: 71.69811321 | J36: 15 | K36: 28.30188679 | L36: 52 | M36: 15 | N36: 28.84615385 | O36: 37 | P36: 71.15384615
A37: LIBERACIÓN NACIONAL | B37: 929 | C37: 468 | D37: 50.37674919 | E37: 461 | F37: 49.62325081 | G37: 468 | H37: 346 | I37: 73.93162393 | J37: 122 | K37: 26.06837607 | L37: 461 | M37: 122 | N37: 26.46420824 | O37: 339 | P37: 73.53579176
A38: MOVIMIENTO AVANCE SANTO DOMINGO | B38: 16 | C38: 8 | D38: 50 | E38: 8 | F38: 50 | G38: 8 | H38: 5 | I38: 62.5 | J38: 3 | K38: 37.5 | L38: 8 | M38: 3 | N38: 37.5 | O38: 5 | P38: 62.5
A39: MOVIMIENTO DE TRABAJADORES Y CAMPESINOS | B39: 8 | C39: 4 | D39: 50 | E39: 4 | F39: 50 | G39: 4 | H39: 4 | I39: 100 | J39: 0 | K39: 0 | L39: 4 | M39: 0 | N39: 0 | O39: 4 | P39: 100
A40: MOVIMIENTO LIBERTARIO | B40: 548 | C40: 280 | D40: 51.09489051 | E40: 268 | F40: 48.90510949 | G40: 289 | H40: 187 | I40: 64.70588235 | J40: 102 | K40: 35.29411765 | L40: 259 | M40: 93 | N40: 35.90733591 | O40: 166 | P40: 64.09266409
A41: ORGANIZACIÓN LABORISTA DE AGUIRRE | B41: 6 | C41: 3 | D41: 50 | E41: 3 | F41: 50 | G41: 3 | H41: 3 | I41: 100 | J41: 0 | K41: 0 | L41: 3 | M41: 0 | N41: 0 | O41: 3 | P41: 100
A42: ORGANIZACIÓN SOCIAL ACTIVA | B42: 10 | C42: 5 | D42: 50 | E42: 5 | F42: 50 | G42: 5 | H42: 3 | I42: 60 | J42: 2 | K42: 40 | L42: 5 | M42: 2 | N42: 40 | O42: 3 | P42: 60
A43: RENOVACIÓN COSTARRICENSE | B43: 167 | C43: 80 | D43: 47.90419162 | E43: 87 | F43: 52.09580838 | G43: 86 | H43: 51 | I43: 59.30232558 | J43: 35 | K43: 40.69767442 | L43: 81 | M43: 29 | N43: 35.80246914 | O43: 52 | P43: 64.19753086
A44: RENOVEMOS ALAJUELA | B44: 26 | C44: 14 | D44: 53.84615385 | E44: 12 | F44: 46.15384615 | G44: 14 | H44: 9 | I44: 64.28571429 | J44: 5 | K44: 35.71428571 | L44: 12 | M44: 5 | N44: 41.66666667 | O44: 7 | P44: 58.33333333
A45: RESTAURACIÓN HEREDIANA | B45: 16 | C45: 9 | D45: 56.25 | E45: 7 | F45: 43.75 | G45: 9 | H45: 4 | I45: 44.44444444 | J45: 5 | K45: 55.55555556 | L45: 7 | M45: 5 | N45: 71.42857143 | O45: 2 | P45: 28.57142857
A46: TALAMANCA UNIDA | B46: 8 | C46: 4 | D46: 50 | E46: 4 | F46: 50 | G46: 4 | H46: 2 | I46: 50 | J46: 2 | K46: 50 | L46: 4 | M46: 2 | N46: 50 | O46: 2 | P46: 50
A47: TARRAZÚ PRIMERO | B47: 6 | C47: 3 | D47: 50 | E47: 3 | F47: 50 | G47: 3 | H47: 1 | I47: 33.33333333 | J47: 2 | K47: 66.66666667 | L47: 3 | M47: 2 | N47: 66.66666667 | O47: 1 | P47: 33.33333333
A48: TODO POR FLORES | B48: 6 | C48: 3 | D48: 50 | E48: 3 | F48: 50 | G48: 3 | H48: 1 | I48: 0 | J48: 2 | K48: 0 | L48: 3 | M48: 2 | N48: 66.66666667 | O48: 1 | P48: 33.33333333
A49: TRANSPARENCIA CARTAGINÉS | B49: 10 | C49: 5 | D49: 50 | E49: 5 | F49: 50 | G49: 5 | H49: 0 | I49: =H49/G49*100 -> 0 | J49: 5 | K49: =J49/G49*100 -> 100 | L49: 5 | M49: 5 | N49: 100 | O49: 0 | P49: 0
A50: ÚNICO ABANGAREÑO | B50: 8 | C50: 4 | D50: 50 | E50: 4 | F50: 50 | G50: 4 | H50: 2 | I50: 50 | J50: 2 | K50: 50 | L50: 4 | M50: 2 | N50: 50 | O50: 2 | P50: 50
A51: UNIDAD SOCIAL CRISTIANA | B51: 569 | C51: 286 | D51: 50.26362039 | E51: 283 | F51: 49.73637961 | G51: 291 | H51: 200 | I51: 68.72852234 | J51: 91 | K51: 31.27147766 | L51: 278 | M51: 86 | N51: 30.9352518 | O51: 192 | P51: 69.0647482
A52: UNION AGRÍCOLA CARTAGINES | B52: 16 | C52: 8 | D52: 50 | E52: 8 | F52: 50 | G52: 8 | H52: 7 | I52: 87.5 | J52: 1 | K52: 12.5 | L52: 8 | M52: 1 | N52: 12.5 | O52: 7 | P52: 87.5
A53: UNIÓN ATENIENSE | B53: 16 | C53: 8 | D53: 50 | E53: 8 | F53: 50 | G53: 8 | H53: 7 | I53: 87.5 | J53: 1 | K53: 12.5 | L53: 8 | M53: 1 | N53: 12.5 | O53: 7 | P53: 87.5
A54: UNION PALMAREÑA | B54: 13 | C54: 6 | D54: 46.15384615 | E54: 7 | F54: 53.84615385 | G54: 6 | H54: 4 | I54: 66.66666667 | J54: 2 | K54: 33.33333333 | L54: 7 | M54: 2 | N54: 28.57142857 | O54: 5 | P54: 71.42857143
A55: UNIÓN POASEÑA | B55: 10 | C55: 5 | D55: 50 | E55: 5 | F55: 50 | G55: 5 | H55: 2 | I55: 40 | J55: 3 | K55: 60 | L55: 5 | M55: 3 | N55: 60 | O55: 2 | P55: 40
A56: VERDE ECOLOGISTA | B56: 10 | C56: 5 | D56: 50 | E56: 5 | F56: 50 | G56: 5 | H56: 1 | I56: 20 | J56: 4 | K56: 80 | L56: 5 | M56: 4 | N56: 80 | O56: 1 | P56: 20
A57: YUNTA PROGRESISTA ESCAZUCEÑA | B57: 6 | C57: 3 | D57: 50 | E57: 3 | F57: 50 | G57: 3 | H57: 3 | I57: 100 | J57: 0 | K57: 0 | L57: 3 | M57: 0 | N57: 0 | O57: 3 | P57: 100
A60: Nota: Datos al 26 de octubre de 2010.
A61: Fuente: Departamento de Registro de Partidos Políticos, Base de datos de candidaturas diciembre 2010

Sheet 24
A1: CUADRO 24 COSTA RICA: CANDIDATURAS A SÍNDICOS(AS) EN PROPIEDAD Y SUPLENCIA, POR SEXO
A2: SEGÚN PROVINCIA Y CANTÓN ELECCIONES 5 DE DICIEMBRE 2010
A3: (CIFRAS ABSOLUTAS Y RELATIVAS)
A5: PROVINCIA Y CANTÓN | B5: TOTAL | C5: SÍNDICOS(AS) | G5: EN PROPIEDAD | L5: EN SUPLENCIA
C6: HOMBRES | E6: MUJERES | G6: TOTAL | H6: HOMBRES | J6: MUJERES | L6: TOTAL | M6: HOMBRES | O6: MUJERES
C7: ABS | D7: % | E7: ABS | F7: % | H7: ABS | I7: % | J7: ABS | K7: % | M7: ABS | N7: % | O7: ABS | P7: %
A9: COSTA RICA | B9: =G9+L9 -> 3578 | C9: =H9+M9 -> 1801 | D9: =C9/$B9*100 -> 50.3353829 | E9: =J9+O9 -> 1777 | F9: =E9/$B9*100 -> 49.6646171 | G9: =+G10+G31+G47+G56+G67+G79+G91 -> 1837 | H9: =+H10+H31+H47+H56+H67+H79+H91 -> 1241 | I9: =H9/$G9*100 -> 67.5557975 | J9: =+J10+J31+J47+J56+J67+J79+J91 -> 596 | K9: =J9/$G9*100 -> 32.4442025 | L9: =+L10+L31+L47+L56+L67+L79+L91 -> 1741 | M9: =+M10+M31+M47+M56+M67+M79+M91 -> 560 | N9: =M9/$L9*100 -> 32.16542217 | O9: =+O10+O31+O47+O56+O67+O79+O91 -> 1181 | P9: =O9/$L9*100 -> 67.83457783 | S9: Cargo
A10: PROVINCIA SAN JOSÉ | B10: =+G10+L10 -> 958 | C10: =+H10+M10 -> 486 | D10: 50.73068894 | E10: =+J10+O10 -> 472 | F10: 49.26931106 | G10: =SUM(G11:G30) -> 491 | H10: =SUM(H11:H30) -> 311 | I10: 63.3401222 | J10: =SUM(J11:J30) -> 180 | K10: 36.6598778 | L10: =SUM(L11:L30) -> 467 | M10: =SUM(M11:M30) -> 175 | N10: 37.4732334 | O10: =SUM(O11:O30) -> 292 | P10: 62.5267666 | S10: Sexo | U10: Total
A11: SAN JOSÉ | B11: 107 | C11: 54 | D11: 50.46728972 | E11: 53 | F11: 49.53271028 | G11: =+H11+J11 -> 53 | H11: 31 | I11: 58.49056604 | J11: 22 | K11: 41.50943396 | L11: =+M11+O11 -> 54 | M11: 23 | N11: 42.59259259 | O11: 31 | P11: 57.40740741 | S11: HOMBRE | T11: MUJER
A12: ESCAZÚ | B12: 28 | C12: 15 | D12: 53.57142857 | E12: 13 | F12: 46.42857143 | G12: 15 | H12: 12 | I12: 80 | J12: 3 | K12: 20 | L12: 13 | M12: 3 | N12: 23.07692308 | O12: 10 | P12: 76.92307692
A13: DESAMPARADOS | B13: 141 | C13: 70 | D13: 49.64539007 | E13: 71 | F13: 50.35460993 | G13: 76 | H13: 41 | I13: 53.94736842 | J13: 35 | K13: 46.05263158 | L13: 65 | M13: 29 | N13: 44.61538462 | O13: 36 | P13: 55.38461538
A14: PURISCAL | B14: 29 | C14: 15 | D14: 51.72413793 | E14: 14 | F14: 48.27586207 | G14: 15 | H14: 10 | I14: 66.66666667 | J14: 5 | K14: 33.33333333 | L14: 14 | M14: 5 | N14: 35.71428571 | O14: 9 | P14: 64.28571429
A15: TARRAZÚ | B15: 18 | C15: 9 | D15: 50 | E15: 9 | F15: 50 | G15: 9 | H15: 6 | I15: 66.66666667 | J15: 3 | K15: 33.33333333 | L15: 9 | M15: 3 | N15: 33.33333333 | O15: 6 | P15: 66.66666667
A16: ASERRÍ | B16: 52 | C16: 27 | D16: 51.92307692 | E16: 25 | F16: 48.07692308 | G16: 28 | H16: 20 | I16: 71.42857143 | J16: 8 | K16: 28.57142857 | L16: 24 | M16: 7 | N16: 29.16666667 | O16: 17 | P16: 70.83333333
A17: MORA | B17: 27 | C17: 14 | D17: 51.85185185 | E17: 13 | F17: 48.14814815 | G17: 14 | H17: 8 | I17: 57.14285714 | J17: 6 | K17: 42.85714286 | L17: 13 | M17: 6 | N17: 46.15384615 | O17: 7 | P17: 53.84615385
A18: GOICOECHEA | B18: 97 | C18: 50 | D18: 51.54639175 | E18: 47 | F18: 48.45360825 | G18: 49 | H18: 28 | I18: 57.14285714 | J18: 21 | K18: 42.85714286 | L18: 48 | M18: 22 | N18: 45.83333333 | O18: 26 | P18: 54.16666667
A19: SANTA ANA | B19: 53 | C19: 27 | D19: 50.94339623 | E19: 26 | F19: 49.05660377 | G19: 26 | H19: 15 | I19: 57.69230769 | J19: 11 | K19: 42.30769231 | L19: 27 | M19: 12 | N19: 44.44444444 | O19: 15 | P19: 55.55555556
A20: ALAJUELITA | B20: 40 | C20: 20 | D20: 50 | E20: 20 | F20: 50 | G20: 20 | H20: 9 | I20: 45 | J20: 11 | K20: 55 | L20: 20 | M20: 11 | N20: 55 | O20: 9 | P20: 45
A21: VÁZQUEZ DE CORONADO | B21: 38 | C21: 19 | D21: 50 | E21: 19 | F21: 50 | G21: 19 | H21: 11 | I21: 57.89473684 | J21: 8 | K21: 42.10526316 | L21: 19 | M21: 8 | N21: 42.10526316 | O21: 11 | P21: 57.89473684
A22: ACOSTA | B22: 18 | C22: 9 | D22: 50 | E22: 9 | F22: 50 | G22: 9 | H22: 8 | I22: 88.88888889 | J22: 1 | K22: 11.11111111 | L22: 9 | M22: 1 | N22: 11.11111111 | O22: 8 | P22: 88.88888889
A23: TIBÁS | B23: 58 | C23: 30 | D23: 51.72413793 | E23: 28 | F23: 48.27586207 | G23: 30 | H23: 15 | I23: 50 | J23: 15 | K23: 50 | L23: 28 | M23: 15 | N23: 53.57142857 | O23: 13 | P23: 46.42857143
A24: MORAVIA | B24: 44 | C24: 22 | D24: 50 | E24: 22 | F24: 50 | G24: 22 | H24: 12 | I24: 54.54545455 | J24: 10 | K24: 45.45454545 | L24: 22 | M24: 10 | N24: 45.45454545 | O24: 12 | P24: 54.54545455
A25: MONTES DE OCA | B25: 37 | C25: 19 | D25: 51.35135135 | E25: 18 | F25: 48.64864865 | G25: 19 | H25: 9 | I25: 47.36842105 | J25: 10 | K25: 52.63157895 | L25: 18 | M25: 10 | N25: 55.55555556 | O25: 8 | P25: 44.44444444
A26: TURRUBARES | B26: 20 | C26: 10 | D26: 50 | E26: 10 | F26: 50 | G26: 10 | H26: 10 | I26: 100 | J26: 0 | K26: 0 | L26: 10 | M26: 0 | N26: 0 | O26: 10 | P26: 100
A27: DOTA | B27: 17 | C27: 9 | D27: 52.94117647 | E27: 8 | F27: 47.05882353 | G27: 9 | H27: 8 | I27: 88.88888889 | J27: 1 | K27: 11.11111111 | L27: 8 | M27: 1 | N27: 12.5 | O27: 7 | P27: 87.5
A28: CURRIDABAT | B28: 19 | C28: 10 | D28: 52.63157895 | E28: 9 | F28: 47.36842105 | G28: 10 | H28: 6 | I28: 60 | J28: 4 | K28: 40 | L28: 9 | M28: 4 | N28: 44.44444444 | O28: 5 | P28: 55.55555556
A29: PÉREZ ZELEDÓN | B29: 81 | C29: 41 | D29: 50.61728395 | E29: 40 | F29: 49.38271605 | G29: 41 | H29: 38 | I29: 92.68292683 | J29: 3 | K29: 7.317073171 | L29: 40 | M29: 3 | N29: 7.5 | O29: 37 | P29: 92.5
A30: LEÓN CORTÉS | B30: 34 | C30: 16 | D30: 47.05882353 | E30: 18 | F30: 52.94117647 | G30: 17 | H30: 14 | I30: 82.35294118 | J30: 3 | K30: 17.64705882 | L30: 17 | M30: 2 | N30: 11.76470588 | O30: 15 | P30: 88.23529412
A31: PROVINCIA ALAJUELA | B31: 809 | C31: 410 | D31: 50.67985167 | E31: 399 | F31: 49.32014833 | G31: 417 | H31: =SUM(H32:H46) -> 307 | I31: 73.62110312 | J31: =SUM(J32:J46) -> 110 | K31: 26.37889688 | L31: 392 | M31: =SUM(M32:M46) -> 103 | N31: 26.2755102 | O31: =SUM(O32:O46) -> 289 | P31: 73.7244898
A32: ALAJUELA | B32: 136 | C32: 68 | D32: 50 | E32: 68 | F32: 50 | G32: 71 | H32: 47 | I32: 66.1971831 | J32: 24 | K32: 33.8028169 | L32: 65 | M32: 21 | N32: 32.30769231 | O32: 44 | P32: 67.69230769
A33: SAN RAMÓN | B33: 52 | C33: 27 | D33: 51.92307692 | E33: 25 | F33: 48.07692308 | G33: 27 | H33: 24 | I33: 88.88888889 | J33: 3 | K33: 11.11111111 | L33: 25 | M33: 3 | N33: 12 | O33: 22 | P33: 88
A34: GRECIA | B34: 61 | C34: 31 | D34: 50.81967213 | E34: 30 | F34: 49.18032787 | G34: 31 | H34: 22 | I34: 70.96774194 | J34: 9 | K34: 29.03225806 | L34: 30 | M34: 9 | N34: 30 | O34: 21 | P34: 70
A35: SAN MATEO | B35: 23 | C35: 11 | D35: 47.82608696 | E35: 12 | F35: 52.17391304 | G35: 12 | H35: 10 | I35: 83.33333333 | J35: 2 | K35: 16.66666667 | L35: 11 | M35: 1 | N35: 9.090909091 | O35: 10 | P35: 90.90909091
A36: ATENAS | B36: 66 | C36: 33 | D36: 50 | E36: 33 | F36: 50 | G36: 34 | H36: 23 | I36: 67.64705882 | J36: 11 | K36: 32.35294118 | L36: 32 | M36: 10 | N36: 31.25 | O36: 22 | P36: 68.75
A37: NARANJO | B37: 98 | C37: 52 | D37: 53.06122449 | E37: 46 | F37: 46.93877551 | G37: 53 | H37: 41 | I37: 77.35849057 | J37: 12 | K37: 22.64150943 | L37: 45 | M37: 11 | N37: 24.44444444 | O37: 34 | P37: 75.55555556
A38: PALMARES | B38: 64 | C38: 31 | D38: 48.4375 | E38: 33 | F38: 51.5625 | G38: 31 | H38: 20 | I38: 64.51612903 | J38: 11 | K38: 35.48387097 | L38: 33 | M38: 11 | N38: 33.33333333 | O38: 22 | P38: 66.66666667
A39: POÁS | B39: 20 | C39: 10 | D39: 50 | E39: 10 | F39: 50 | G39: 10 | H39: 6 | I39: 60 | J39: 4 | K39: 40 | L39: 10 | M39: 4 | N39: 40 | O39: 6 | P39: 60
A40: OROTINA | B40: 38 | C40: 21 | D40: 55.26315789 | E40: 17 | F40: 44.73684211 | G40: 19 | H40: 15 | I40: 78.94736842 | J40: 4 | K40: 21.05263158 | L40: 19 | M40: 6 | N40: 31.57894737 | O40: 13 | P40: 68.42105263
A41: SAN CARLOS | B41: 77 | C41: 38 | D41: =C41/$B41*100 -> 49.35064935 | E41: 39 | F41: =E41/$B41*100 -> 50.64935065 | G41: 38 | H41: 31 | I41: =H41/$G41*100 -> 81.57894737 | J41: 7 | K41: =J41/$G41*100 -> 18.42105263 | L41: 39 | M41: 7 | N41: =M41/$L41*100 -> 17.94871795 | O41: 32 | P41: =O41/$L41*100 -> 82.05128205
A42: ALFARO RUIZ | B42: =+G42+L42 -> 42 | C42: =+H42+M42 -> 21 | D42: 50 | E42: =+J42+O42 -> 21 | F42: 50 | G42: 21 | H42: 17 | I42: 80.95238095 | J42: 4 | K42: 19.04761905 | L42: 21 | M42: 4 | N42: 19.04761905 | O42: 17 | P42: 80.95238095
A43: VALVERDE VEGA | B43: 38 | C43: 19 | D43: 50 | E43: 19 | F43: 50 | G43: =+H43+J43 -> 19 | H43: 14 | I43: 73.68421053 | J43: 5 | K43: 26.31578947 | L43: 19 | M43: 5 | N43: 26.31578947 | O43: 14 | P43: 73.68421053
A44: UPALA | B44: 34 | C44: 17 | D44: 50 | E44: 17 | F44: 50 | G44: 18 | H44: 13 | I44: 72.22222222 | J44: 5 | K44: 27.77777778 | L44: 16 | M44: 4 | N44: 25 | O44: 12 | P44: 75
A45: LOS CHILES | B45: 28 | C45: 15 | D45: 53.57142857 | E45: 13 | F45: 46.42857143 | G45: 15 | H45: 13 | I45: 86.66666667 | J45: 2 | K45: 13.33333333 | L45: 13 | M45: 2 | N45: 15.38461538 | O45: 11 | P45: 84.61538462
A46: GUATUSO | B46: 32 | C46: 16 | D46: 50 | E46: 16 | F46: 50 | G46: 18 | H46: 11 | I46: 61.11111111 | J46: 7 | K46: 38.88888889 | L46: 14 | M46: 5 | N46: 35.71428571 | O46: 9 | P46: 64.28571429
A47: PROVINCIA CARTAGO | B47: 338 | C47: 173 | D47: 51.18343195 | E47: 165 | F47: 48.81656805 | G47: 172 | H47: =SUM(H48:H55) -> 119 | I47: 69.18604651 | J47: =SUM(J48:J55) -> 53 | K47: 30.81395349 | L47: 166 | M47: =SUM(M48:M55) -> 54 | N47: 32.53012048 | O47: =SUM(O48:O55) -> 112 | P47: 67.46987952
A48: CARTAGO | B48: 43 | C48: 22 | D48: 51.1627907 | E48: 21 | F48: 48.8372093 | G48: 22 | H48: 16 | I48: 72.72727273 | J48: 6 | K48: 27.27272727 | L48: 21 | M48: 6 | N48: 28.57142857 | O48: 15 | P48: 71.42857143
A49: PARAÍSO | B49: 58 | C49: 29 | D49: 50 | E49: 29 | F49: 50 | G49: 29 | H49: 22 | I49: 75.86206897 | J49: 7 | K49: 24.13793103 | L49: 29 | M49: 7 | N49: 24.13793103 | O49: 22 | P49: 75.86206897
A50: LA UNIÓN | B50: 58 | C50: 31 | D50: 53.44827586 | E50: 27 | F50: 46.55172414 | G50: 29 | H50: 18 | I50: 62.06896552 | J50: 11 | K50: 37.93103448 | L50: 29 | M50: 13 | N50: 44.82758621 | O50: 16 | P50: 55.17241379
A51: JIMÉNEZ | B51: 14 | C51: 7 | D51: 50 | E51: 7 | F51: 50 | G51: 7 | H51: 7 | I51: 100 | J51: 0 | K51: 0 | L51: 7 | M51: 0 | N51: 0 | O51: 7 | P51: 100
A52: TURRIALBA | B52: 82 | C52: 43 | D52: 52.43902439 | E52: 39 | F52: 47.56097561 | G52: 42 | H52: 28 | I52: 66.66666667 | J52: 14 | K52: 33.33333333 | L52: 40 | M52: 15 | N52: 37.5 | O52: 25 | P52: 62.5
A53: ALVARADO | B53: 17 | C53: 8 | D53: 47.05882353 | E53: 9 | F53: 52.94117647 | G53: 8 | H53: 8 | I53: 100 | J53: 0 | K53: 0 | L53: 9 | M53: 0 | N53: 0 | O53: 9 | P53: 100
A54: OREAMUNO | B54: 51 | C54: 25 | D54: 49.01960784 | E54: 26 | F54: 50.98039216 | G54: 27 | H54: 14 | I54: 51.85185185 | J54: 13 | K54: 48.14814815 | L54: 24 | M54: 11 | N54: 45.83333333 | O54: 13 | P54: 54.16666667
A55: EL GUARCO | B55: 15 | C55: 8 | D55: 53.33333333 | E55: 7 | F55: 46.66666667 | G55: 8 | H55: 6 | I55: 75 | J55: 2 | K55: 25 | L55: 7 | M55: 2 | N55: 28.57142857 | O55: 5 | P55: 71.42857143
A56: PROVINCIA HEREDIA | B56: 356 | C56: 175 | D56: 49.15730337 | E56: 181 | F56: 50.84269663 | G56: 181 | H56: =SUM(H57:H66) -> 102 | I56: 56.35359116 | J56: =SUM(J57:J66) -> 79 | K56: 43.64640884 | L56: =+L57+L58+L59+L60+L61+L62+L63+L64+L65+L66 -> 175 | M56: =SUM(M57:M66) -> 73 | N56: 41.71428571 | O56: =SUM(O57:O66) -> 102 | P56: 58.28571429
A57: HEREDIA | B57: 36 | C57: 19 | D57: 52.77777778 | E57: 17 | F57: 47.22222222 | G57: 19 | H57: 15 | I57: 78.94736842 | J57: 4 | K57: 21.05263158 | L57: =+M57+O57 -> 17 | M57: 4 | N57: 23.52941176 | O57: 13 | P57: 76.47058824
A58: BARVA | B58: 73 | C58: 35 | D58: 47.94520548 | E58: 38 | F58: 52.05479452 | G58: 36 | H58: 16 | I58: 44.44444444 | J58: 20 | K58: 55.55555556 | L58: 37 | M58: 19 | N58: 51.35135135 | O58: 18 | P58: 48.64864865
A59: SANTO DOMINGO | B59: 63 | C59: 32 | D59: 50.79365079 | E59: 31 | F59: 49.20634921 | G59: 31 | H59: 15 | I59: 48.38709677 | J59: 16 | K59: 51.61290323 | L59: 32 | M59: 17 | N59: 53.125 | O59: 15 | P59: 46.875
A60: SANTA BÁRBARA | B60: 52 | C60: 23 | D60: 44.23076923 | E60: 29 | F60: 55.76923077 | G60: 27 | H60: 15 | I60: 55.55555556 | J60: 12 | K60: 44.44444444 | L60: 25 | M60: 8 | N60: 32 | O60: 17 | P60: 68
A61: SAN RAFAEL | B61: 27 | C61: 13 | D61: 48.14814815 | E61: 14 | F61: 51.85185185 | G61: 15 | H61: 8 | I61: 53.33333333 | J61: 7 | K61: 46.66666667 | L61: 12 | M61: 5 | N61: 41.66666667 | O61: 7 | P61: 58.33333333
A62: SAN ISIDRO | B62: 32 | C62: 16 | D62: 50 | E62: 16 | F62: 50 | G62: 16 | H62: 10 | I62: 62.5 | J62: 6 | K62: 37.5 | L62: 16 | M62: 6 | N62: 37.5 | O62: 10 | P62: 62.5
A63: BELÉN | B63: 18 | C63: 9 | D63: 50 | E63: 9 | F63: 50 | G63: 9 | H63: 7 | I63: 77.77777778 | J63: 2 | K63: 22.22222222 | L63: 9 | M63: 2 | N63: 22.22222222 | O63: 7 | P63: 77.77777778
A64: FLORES | B64: 18 | C64: 9 | D64: 50 | E64: 9 | F64: 50 | G64: 9 | H64: 4 | I64: 44.44444444 | J64: 5 | K64: 55.55555556 | L64: 9 | M64: 5 | N64: 55.55555556 | O64: 4 | P64: 44.44444444
A65: SAN PABLO | B65: 16 | C65: 8 | D65: 50 | E65: 8 | F65: 50 | G65: 8 | H65: 4 | I65: 50 | J65: 4 | K65: 50 | L65: 8 | M65: 4 | N65: 50 | O65: 4 | P65: 50
A66: SARAPIQUÍ | B66: 21 | C66: 11 | D66: 52.38095238 | E66: 10 | F66: 47.61904762 | G66: 11 | H66: 8 | I66: 72.72727273 | J66: 3 | K66: 27.27272727 | L66: 10 | M66: 3 | N66: 30 | O66: 7 | P66: 70
A67: PROVINCIA GUANACASTE | B67: 380 | C67: 193 | D67: 50.78947368 | E67: 187 | F67: 49.21052632 | G67: 199 | H67: =SUM(H68:H78) -> 140 | I67: 70.35175879 | J67: =SUM(J68:J78) -> 59 | K67: 29.64824121 | L67: =+L68+L69+L70+L71+L72+L73+L74+L75+L76+L77+L78 -> 181 | M67: =SUM(M68:M78) -> 53 | N67: 29.28176796 | O67: =SUM(O68:O78) -> 128 | P67: 70.71823204
A68: LIBERIA | B68: 35 | C68: 17 | D68: 48.57142857 | E68: 18 | F68: 51.42857143 | G68: 17 | H68: 10 | I68: 58.82352941 | J68: 7 | K68: 41.17647059 | L68: =+M68+O68 -> 18 | M68: 7 | N68: 38.88888889 | O68: 11 | P68: 61.11111111
A69: NICOYA | B69: 66 | C69: 33 | D69: 50 | E69: 33 | F69: 50 | G69: 35 | H69: 25 | I69: 71.42857143 | J69: 10 | K69: 28.57142857 | L69: 31 | M69: 8 | N69: 25.80645161 | O69: 23 | P69: 74.19354839
A70: SANTA CRUZ | B70: 90 | C70: 46 | D70: 51.11111111 | E70: 44 | F70: 48.88888889 | G70: 45 | H70: 33 | I70: 73.33333333 | J70: 12 | K70: 26.66666667 | L70: 45 | M70: 13 | N70: 28.88888889 | O70: 32 | P70: 71.11111111
A71: BAGACES | B71: 18 | C71: 9 | D71: 50 | E71: 9 | F71: 50 | G71: 11 | H71: 7 | I71: 63.63636364 | J71: 4 | K71: 36.36363636 | L71: 7 | M71: 2 | N71: 28.57142857 | O71: 5 | P71: 71.42857143
A72: CARRILLO | B72: 31 | C72: 15 | D72: 48.38709677 | E72: 16 | F72: 51.61290323 | G72: 16 | H72: 10 | I72: 62.5 | J72: 6 | K72: 37.5 | L72: 15 | M72: 5 | N72: 33.33333333 | O72: 10 | P72: 66.66666667
A73: CAÑAS | B73: 19 | C73: 10 | D73: =C73/$B73*100 -> 52.63157895 | E73: 9 | F73: =E73/$B73*100 -> 47.36842105 | G73: 10 | H73: 7 | I73: =H73/$G73*100 -> 70 | J73: 3 | K73: =J73/$G73*100 -> 30 | L73: 9 | M73: 3 | N73: =M73/$L73*100 -> 33.33333333 | O73: 6 | P73: =O73/$L73*100 -> 66.66666667
A74: ABANGARES | B74: =+G74+L74 -> 23 | C74: =+H74+M74 -> 12 | D74: 52.17391304 | E74: =+J74+O74 -> 11 | F74: 47.82608696 | G74: 12 | H74: 7 | I74: 58.33333333 | J74: 5 | K74: 41.66666667 | L74: 11 | M74: 5 | N74: 45.45454545 | O74: 6 | P74: 54.54545455
A75: TILARÁN | B75: 32 | C75: 17 | D75: 53.125 | E75: 15 | F75: 46.875 | G75: =+H75+J75 -> 17 | H75: 15 | I75: 88.23529412 | J75: 2 | K75: 11.76470588 | L75: 15 | M75: 2 | N75: 13.33333333 | O75: 13 | P75: 86.66666667
A76: NANDAYURE | B76: 32 | C76: 16 | D76: 50 | E76: 16 | F76: 50 | G76: 16 | H76: 13 | I76: 81.25 | J76: 3 | K76: 18.75 | L76: 16 | M76: 3 | N76: 18.75 | O76: 13 | P76: 81.25
A77: LA CRUZ | B77: 16 | C77: 8 | D77: 50 | E77: 8 | F77: 50 | G77: 8 | H77: 6 | I77: 75 | J77: 2 | K77: 25 | L77: 8 | M77: 2 | N77: 25 | O77: 6 | P77: 75
A78: HOJANCHA | B78: 18 | C78: 10 | D78: 55.55555556 | E78: 8 | F78: 44.44444444 | G78: 12 | H78: 7 | I78: 58.33333333 | J78: 5 | K78: 41.66666667 | L78: 6 | M78: 3 | N78: 50 | O78: 3 | P78: 50
A79: PROVINCIA PUNTARENAS | B79: 459 | C79: 226 | D79: 49.23747277 | E79: 233 | F79: 50.76252723 | G79: 238 | H79: =SUM(H80:H90) -> 166 | I79: 69.74789916 | J79: =SUM(J80:J90) -> 72 | K79: 30.25210084 | L79: =+L80+L81+L82+L83+L84+L85+L86+L87+L88+L89+L90 -> 221 | M79: =SUM(M80:M90) -> 60 | N79: 27.14932127 | O79: =SUM(O80:O90) -> 161 | P79: 72.85067873
A80: PUNTARENAS | B80: 141 | C80: 71 | D80: 50.35460993 | E80: 70 | F80: 49.64539007 | G80: 74 | H80: 52 | I80: 70.27027027 | J80: 22 | K80: 29.72972973 | L80: =+M80+O80 -> 67 | M80: 19 | N80: 28.35820896 | O80: 48 | P80: 71.64179104
A81: ESPARZA | B81: 47 | C81: 23 | D81: 48.93617021 | E81: 24 | F81: 51.06382979 | G81: 24 | H81: 14 | I81: 58.33333333 | J81: 10 | K81: 41.66666667 | L81: 23 | M81: 9 | N81: 39.13043478 | O81: 14 | P81: 60.86956522
A82: BUENOS AIRES | B82: 48 | C82: 24 | D82: 50 | E82: 24 | F82: 50 | G82: 26 | H82: 21 | I82: 80.76923077 | J82: 5 | K82: 19.23076923 | L82: 22 | M82: 3 | N82: 13.63636364 | O82: 19 | P82: 86.36363636
A83: MONTES DE ORO | B83: 17 | C83: 8 | D83: 47.05882353 | E83: 9 | F83: 52.94117647 | G83: 8 | H83: 4 | I83: 50 | J83: 4 | K83: 50 | L83: 9 | M83: 4 | N83: 44.44444444 | O83: 5 | P83: 55.55555556
A84: OSA | B84: 39 | C84: 19 | D84: 48.71794872 | E84: 20 | F84: 51.28205128 | G84: 19 | H84: 14 | I84: 73.68421053 | J84: 5 | K84: 26.31578947 | L84: 20 | M84: 5 | N84: 25 | O84: 15 | P84: 75
A85: AGUIRRE | B85: 46 | C85: 22 | D85: 47.82608696 | E85: 24 | F85: 52.17391304 | G85: 23 | H85: 14 | I85: 60.86956522 | J85: 9 | K85: 39.13043478 | L85: 23 | M85: 8 | N85: 34.7826087 | O85: 15 | P85: 65.2173913
A86: GOLFITO | B86: 24 | C86: 12 | D86: 50 | E86: 12 | F86: 50 | G86: 12 | H86: 8 | I86: 66.66666667 | J86: 4 | K86: 33.33333333 | L86: 12 | M86: 4 | N86: 33.33333333 | O86: 8 | P86: 66.66666667
A87: COTO BRUS | B87: 34 | C87: 16 | D87: 47.05882353 | E87: 18 | F87: 52.94117647 | G87: 19 | H87: 15 | I87: 78.94736842 | J87: 4 | K87: 21.05263158 | L87: 15 | M87: 1 | N87: 6.666666667 | O87: 14 | P87: 93.33333333
A88: PARRITA | B88: 10 | C88: 5 | D88: 50 | E88: 5 | F88: 50 | G88: 5 | H88: 4 | I88: 80 | J88: 1 | K88: 20 | L88: 5 | M88: 1 | N88: 20 | O88: 4 | P88: 80
A89: CORREDORES | B89: 43 | C89: 22 | D89: 51.1627907 | E89: 21 | F89: 48.8372093 | G89: 24 | H89: 16 | I89: 66.66666667 | J89: 8 | K89: 33.33333333 | L89: 19 | M89: 6 | N89: 31.57894737 | O89: 13 | P89: 68.42105263
A90: GARABITO | B90: 10 | C90: 4 | D90: 40 | E90: 6 | F90: 60 | G90: 4 | H90: 4 | I90: 100 | J90: 0 | K90: 0 | L90: 6 | M90: 0 | N90: 0 | O90: 6 | P90: 100
A91: PROVINCIA LIMÓN | B91: 278 | C91: 138 | D91: 49.64028777 | E91: 140 | F91: 50.35971223 | G91: 139 | H91: =SUM(H92:H97) -> 96 | I91: 69.0647482 | J91: =SUM(J92:J97) -> 43 | K91: 30.9352518 | L91: =+L92+L93+L94+L95+L96+L97 -> 139 | M91: =SUM(M92:M97) -> 42 | N91: 30.21582734 | O91: =SUM(O92:O97) -> 97 | P91: 69.78417266
A92: LIMÓN | B92: 55 | C92: 28 | D92: 50.90909091 | E92: 27 | F92: 49.09090909 | G92: 28 | H92: 17 | I92: 60.71428571 | J92: 11 | K92: 39.28571429 | L92: =+M92+O92 -> 27 | M92: 11 | N92: 40.74074074 | O92: 16 | P92: 59.25925926
A93: POCOCÍ | B93: 42 | C93: 21 | D93: 50 | E93: 21 | F93: 50 | G93: 21 | H93: 15 | I93: 71.42857143 | J93: 6 | K93: 28.57142857 | L93: 21 | M93: 6 | N93: 28.57142857 | O93: 15 | P93: 71.42857143
A94: SIQUIRRES | B94: 78 | C94: 39 | D94: 50 | E94: 39 | F94: 50 | G94: 40 | H94: 26 | I94: 65 | J94: 14 | K94: 35 | L94: 38 | M94: 13 | N94: 34.21052632 | O94: 25 | P94: 65.78947368
A95: TALAMANCA | B95: 31 | C95: 16 | D95: 51.61290323 | E95: 15 | F95: 48.38709677 | G95: 16 | H95: 11 | I95: 68.75 | J95: 5 | K95: 31.25 | L95: 15 | M95: 5 | N95: 33.33333333 | O95: 10 | P95: 66.66666667
A96: MATINA | B96: 30 | C96: 15 | D96: 50 | E96: 15 | F96: 50 | G96: 15 | H96: 10 | I96: 66.66666667 | J96: 5 | K96: 33.33333333 | L96: 15 | M96: 5 | N96: 33.33333333 | O96: 10 | P96: 66.66666667
A97: GUÁCIMO | B97: 42 | C97: 19 | D97: 45.23809524 | E97: 23 | F97: 54.76190476 | G97: 19 | H97: 17 | I97: 89.47368421 | J97: 2 | K97: 10.52631579 | L97: 23 | M97: 2 | N97: 8.695652174 | O97: 21 | P97: 91.30434783
A100: Nota: Datos al 26 de octubre de 2010.
A101: Fuente: Departamento de Registro de Partidos Políticos, Base de datos de candidaturas diciembre 2010.

Sheet 25
A1: CUADRO 25 COSTA RICA: CANDIDATURAS A CONCEJALES DE DISTRITO EN PROPIEDAD Y SUPLENCIA, POR SEXO
A2: SEGÚN PARTIDO, ELECCIONES 5 DE DICIEMBRE 2010
A3: (CIFRAS ABSOLUTAS Y RELATIVAS)
A5: PARTIDO | B5: CONCEJALES DE DISTRITO | G5: EN PROPIEDAD | L5: EN SUPLENCIA
A6: PARTIDO POLITICO | B6: TOTAL | C6: HOMBRES | E6: MUJERES | G6: TOTAL | H6: HOMBRES | J6: MUJERES | L6: TOTAL | M6: HOMBRES | O6: MUJERES
B7: ABS | C7: ABS | D7: % | E7: ABS | F7: % | G7: ABS | H7: ABS | I7: % | J7: ABS | K7: % | L7: ABS | M7: ABS | N7: % | O7: ABS | P7: %
A9: TOTAL | B9: =SUM(B11:B53) -> 11004 | C9: =SUM(C11:C53) -> 5527 | D9: =C9/B9*100 -> 50.22719011 | E9: =SUM(E11:E53) -> 5477 | F9: =E9/B9*100 -> 49.77280989 | G9: =SUM(G11:G53) -> 5828 | H9: =SUM(H11:H53) -> 2941 | I9: =H9/G9*100 -> 50.46328071 | J9: =SUM(J11:J53) -> 2887 | K9: =J9/G9*100 -> 49.53671929 | L9: =SUM(L11:L53) -> 5176 | M9: =SUM(M11:M53) -> 2586 | N9: =M9/L9*100 -> 49.96136012 | O9: =SUM(O11:O53) -> 2590 | P9: =O9/L9*100 -> 50.03863988
A11: ACCESIBILIDAD SIN EXCLUSIÓN | B11: =+C11+E11 -> 433 | C11: =+H11+M11 -> 219 | D11: =C11/B11*100 -> 50.57736721 | E11: =+J11+O11 -> 214 | F11: =E11/B11*100 -> 49.42263279 | G11: =+H11+J11 -> 225 | H11: 116 | I11: =H11/G11*100 -> 51.55555556 | J11: 109 | K11: =J11/G11*100 -> 48.44444444 | L11: =+M11+O11 -> 208 | M11: 103 | N11: =M11/L11*100 -> 49.51923077 | O11: 105 | P11: =O11/L11*100 -> 50.48076923
A12: ACCIÓN CANTONAL SIQUIRRES INDEPENDIENTE | B12: 33 | C12: 16 | D12: 48.48484848 | E12: 17 | F12: 51.51515152 | G12: 20 | H12: 10 | I12: 50 | J12: 10 | K12: 50 | L12: 13 | M12: 6 | N12: 46.15384615 | O12: 7 | P12: 53.84615385
A13: ACCIÓN CIUDADANA | B13: 1529 | C13: 773 | D13: 50.5559189 | E13: 756 | F13: 49.4440811 | G13: 840 | H13: 428 | I13: 50.95238095 | J13: 412 | K13: 49.04761905 | L13: 689 | M13: 345 | N13: 50.07256894 | O13: 344 | P13: 49.92743106
A14: ACCIÓN QUEPEÑA | B14: 17 | C14: 10 | D14: 58.82352941 | E14: 7 | F14: 41.17647059 | G14: 9 | H14: 5 | I14: 55.55555556 | J14: 4 | K14: 44.44444444 | L14: 8 | M14: 5 | N14: 62.5 | O14: 3 | P14: 37.5
A15: ACUERDO CANTONAL DESAMPARADEÑO | B15: 104 | C15: 52 | D15: 50 | E15: 52 | F15: 50 | G15: 52 | H15: 26 | I15: 50 | J15: 26 | K15: 50 | L15: 52 | M15: 26 | N15: 50 | O15: 26 | P15: 50
A16: ALIANZA PATRIÓTICA | B16: 88 | C16: 43 | D16: 48.86363636 | E16: 45 | F16: 51.13636364 | G16: 44 | H16: 20 | I16: 45.45454545 | J16: 24 | K16: 54.54545455 | L16: 44 | M16: 23 | N16: 52.27272727 | O16: 21 | P16: 47.72727273
A17: AUTÉNTICO LABRADOR DE CORONADO | B17: 22 | C17: 10 | D17: 45.45454545 | E17: 12 | F17: 54.54545455 | G17: 11 | H17: 6 | I17: 54.54545455 | J17: 5 | K17: 45.45454545 | L17: 11 | M17: 4 | N17: 36.36363636 | O17: 7 | P17: 63.63636364
A18: AUTÓNOMO OROMONTANO | B18: 22 | C18: 11 | D18: 50 | E18: 11 | F18: 50 | G18: 11 | H18: 6 | I18: 54.54545455 | J18: 5 | K18: 45.45454545 | L18: 11 | M18: 5 | N18: 45.45454545 | O18: 6 | P18: 54.54545455
A19: CÍVICO DE TÍBAS FUENTEOVEJUNA | B19: 11 | C19: 6 | D19: 54.54545455 | E19: 5 | F19: 45.45454545 | G19: 7 | H19: 4 | I19: 57.14285714 | J19: 3 | K19: 42.85714286 | L19: 4 | M19: 2 | N19: 50 | O19: 2 | P19: 50
A20: COALICIÓN BARVA UNIDA | B20: 32 | C20: 16 | D20: 50 | E20: 16 | F20: 50 | G20: 16 | H20: 8 | I20: 50 | J20: 8 | K20: 50 | L20: 16 | M20: 8 | N20: 50 | O20: 8 | P20: 50
A21: COALICIÓN CARTAGO UNIDO | B21: 88 | C21: 44 | D21: 50 | E21: 44 | F21: 50 | G21: 44 | H21: 22 | I21: 50 | J21: 22 | K21: 50 | L21: 44 | M21: 22 | N21: 50 | O21: 22 | P21: 50
A22: COALICIÓN MONTES DE OCA UNIDA | B22: 29 | C22: 14 | D22: 48.27586207 | E22: 15 | F22: 51.72413793 | G22: 14 | H22: 6 | I22: 42.85714286 | J22: 8 | K22: 57.14285714 | L22: 15 | M22: 8 | N22: 53.33333333 | O22: 7 | P22: 46.66666667
A23: COALICIÓN PARTIDO ALIANZA ZARCEREÑA | B23: 53 | C23: 27 | D23: 50.94339623 | E23: 26 | F23: 49.05660377 | G23: 27 | H23: 13 | I23: 48.14814815 | J23: 14 | K23: 51.85185185 | L23: 26 | M23: 14 | N23: 53.84615385 | O23: 12 | P23: 46.15384615
A24: COALICIÓN RAMONENSE | B24: 75 | C24: 38 | D24: 50.66666667 | E24: 37 | F24: 49.33333333 | G24: 43 | H24: 22 | I24: 51.1627907 | J24: 21 | K24: 48.8372093 | L24: 32 | M24: 16 | N24: 50 | O24: 16 | P24: 50
A25: COALICIÓN UNIDOS POR SAN CARLOS | B25: 103 | C25: 52 | D25: 50.48543689 | E25: 51 | F25: 49.51456311 | G25: 51 | H25: 26 | I25: 50.98039216 | J25: 25 | K25: 49.01960784 | L25: 52 | M25: 26 | N25: 50 | O25: 26 | P25: 50
A26: COALICIÓN UNIÓN LIBERIANA | B26: 34 | C26: 15 | D26: 44.11764706 | E26: 19 | F26: 55.88235294 | G26: 15 | H26: 6 | I26: 40 | J26: 9 | K26: 60 | L26: 19 | M26: 9 | N26: 47.36842105 | O26: 10 | P26: 52.63157895
A27: CURRIDABAT SIGLO XXI | B27: 32 | C27: 16 | D27: 50 | E27: 16 | F27: 50 | G27: 16 | H27: 8 | I27: 50 | J27: 8 | K27: 50 | L27: 16 | M27: 8 | N27: 50 | O27: 8 | P27: 50
A28: DEL SOL | B28: 46 | C28: 24 | D28: 52.17391304 | E28: 22 | F28: 47.82608696 | G28: 23 | H28: 12 | I28: 52.17391304 | J28: 11 | K28: 47.82608696 | L28: 23 | M28: 12 | N28: 52.17391304 | O28: 11 | P28: 47.82608696
A29: EL PUENTE Y LOS CAMINOS DE MORA | B29: 38 | C29: 18 | D29: 47.36842105 | E29: 20 | F29: 52.63157895 | G29: 19 | H29: 9 | I29: 47.36842105 | J29: 10 | K29: 52.63157895 | L29: 19 | M29: 9 | N29: 47.36842105 | O29: 10 | P29: 52.63157895
A30: FRENTE AMPLIO | B30: 181 | C30: 89 | D30: 49.17127072 | E30: 92 | F30: 50.82872928 | G30: 89 | H30: 44 | I30: 49.43820225 | J30: 45 | K30: 50.56179775 | L30: 92 | M30: 45 | N30: 48.91304348 | O30: 47 | P30: 51.08695652
A31: GARABITO ECOLÓGICO | B31: 15 | C31: 8 | D31: 53.33333333 | E31: 7 | F31: 46.66666667 | G31: 7 | H31: 4 | I31: 57.14285714 | J31: 3 | K31: 42.85714286 | L31: 8 | M31: 4 | N31: 50 | O31: 4 | P31: 50
A32: GOICOECHEA EN ACCIÓN | B32: 51 | C32: 26 | D32: 50.98039216 | E32: 25 | F32: 49.01960784 | G32: 24 | H32: 12 | I32: 50 | J32: 12 | K32: 50 | L32: 27 | M32: 14 | N32: 51.85185185 | O32: 13 | P32: 48.14814815
A33: INDEPENDIENTE BELEMITA | B33: 10 | C33: 5 | D33: 50 | E33: 5 | F33: 50 | G33: 9 | H33: 4 | I33: 44.44444444 | J33: 5 | K33: 55.55555556 | L33: 1 | M33: 1 | N33: 100 | O33: 0 | P33: 0
A34: INTEGRACIÓN NACIONAL | B34: 239 | C34: 122 | D34: 51.0460251 | E34: 117 | F34: 48.9539749 | G34: 141 | H34: 76 | I34: 53.90070922 | J34: 65 | K34: 46.09929078 | L34: 98 | M34: 46 | N34: 46.93877551 | O34: 52 | P34: 53.06122449
A35: LIBERACIÓN NACIONAL | B35: 3419 | C35: 1712 | D35: 50.0731208 | E35: 1707 | F35: 49.9268792 | G35: 1752 | H35: 878 | I35: 50.11415525 | J35: 874 | K35: 49.88584475 | L35: 1667 | M35: 834 | N35: 50.029994 | O35: 833 | P35: 49.970006
A36: MOVIMIENTO AVANCE SANTO DOMINGO | B36: 42 | C36: 21 | D36: 50 | E36: 21 | F36: 50 | G36: 24 | H36: 12 | I36: 50 | J36: 12 | K36: 50 | L36: 18 | M36: 9 | N36: 50 | O36: 9 | P36: 50
A37: MOVIMIENTO DE TRABAJADORES Y CAMPESINOS | B37: 22 | C37: 11 | D37: 50 | E37: 11 | F37: 50 | G37: 11 | H37: 5 | I37: 45.45454545 | J37: 6 | K37: 54.54545455 | L37: 11 | M37: 6 | N37: 54.54545455 | O37: 5 | P37: 45.45454545
A38: MOVIMIENTO LIBERTARIO | B38: 1601 | C38: 805 | D38: 50.28107433 | E38: 796 | F38: 49.71892567 | G38: 882 | H38: 447 | I38: 50.68027211 | J38: 435 | K38: 49.31972789 | L38: 719 | M38: 358 | N38: 49.79137691 | O38: 361 | P38: 50.20862309
A39: ORGANIZACIÓN LABORISTA DE AGUIRRE | B39: 22 | C39: 10 | D39: 45.45454545 | E39: 12 | F39: 54.54545455 | G39: 11 | H39: 5 | I39: 45.45454545 | J39: 6 | K39: 54.54545455 | L39: 11 | M39: 5 | N39: 45.45454545 | O39: 6 | P39: 54.54545455
A40: ORGANIZACIÓN SOCIAL ACTIVA | B40: 37 | C40: 20 | D40: 54.05405405 | E40: 17 | F40: 45.94594595 | G40: 19 | H40: 10 | I40: 52.63157895 | J40: 9 | K40: 47.36842105 | L40: 18 | M40: 10 | N40: 55.55555556 | O40: 8 | P40: 44.44444444
A41: RENOVACIÓN COSTARRICENSE | B41: 573 | C41: 286 | D41: 49.91273997 | E41: 287 | F41: 50.08726003 | G41: 290 | H41: 144 | I41: 49.65517241 | J41: 146 | K41: 50.34482759 | L41: 283 | M41: 142 | N41: 50.17667845 | O41: 141 | P41: 49.82332155
A42: RENOVEMOS ALAJUELA | B42: 99 | C42: 53 | D42: 53.53535354 | E42: 46 | F42: 46.46464646 | G42: 51 | H42: 28 | I42: 54.90196078 | J42: 23 | K42: 45.09803922 | L42: 48 | M42: 25 | N42: 52.08333333 | O42: 23 | P42: 47.91666667
A43: RESTAURACIÓN HEREDIANA | B43: 22 | C43: 10 | D43: 45.45454545 | E43: 12 | F43: 54.54545455 | G43: 21 | H43: 9 | I43: 42.85714286 | J43: 12 | K43: 57.14285714 | L43: 1 | M43: 1 | N43: 100 | O43: 0 | P43: 0
A44: TALAMANCA UNIDA | B44: 5 | C44: 4 | D44: 80 | E44: 1 | F44: 20 | G44: 5 | H44: 4 | I44: 80 | J44: 1 | K44: 20 | L44: 0 | M44: 0 | N44: - | O44: 0 | P44: -
A45: TARRAZÚ PRIMERO | B45: 23 | C45: 12 | D45: 52.17391304 | E45: 11 | F45: 47.82608696 | G45: 11 | H45: 6 | I45: 54.54545455 | J45: 5 | K45: 45.45454545 | L45: 12 | M45: 6 | N45: =M45/L45*100 -> 50 | O45: 6 | P45: =O45/L45*100 -> 50
A46: TODO POR FLORES | B46: 24 | C46: 12 | D46: 50 | E46: 12 | F46: 50 | G46: 12 | H46: 6 | I46: 50 | J46: 6 | K46: 50 | L46: 12 | M46: 6 | N46: =M46/L46*100 -> 50 | O46: 6 | P46: =O46/L46*100 -> 50
A47: ÚNICO ABANGAREÑO | B47: 23 | C47: 12 | D47: 52.17391304 | E47: 11 | F47: 47.82608696 | G47: 12 | H47: 6 | I47: 50 | J47: 6 | K47: 50 | L47: 11 | M47: 6 | N47: =M47/L47*100 -> 54.54545455 | O47: 5 | P47: =O47/L47*100 -> 45.45454545
A48: UNIDAD SOCIAL CRISTIANA | B48: 1609 | C48: 804 | D48: 49.9689248 | E48: 805 | F48: 50.0310752 | G48: 868 | H48: 435 | I48: 50.11520737 | J48: 433 | K48: 49.88479263 | L48: 741 | M48: 369 | N48: =M48/L48*100 -> 49.79757085 | O48: 372 | P48: =O48/L48*100 -> 50.20242915
A49: UNION AGRÍCOLA CARTAGINES | B49: 55 | C49: 27 | D49: 49.09090909 | E49: 28 | F49: 50.90909091 | G49: 28 | H49: 14 | I49: 50 | J49: 14 | K49: 50 | L49: 27 | M49: 13 | N49: =M49/L49*100 -> 48.14814815 | O49: 14 | P49: =O49/L49*100 -> 51.85185185
A50: UNIÓN ATENIENSE | B50: 52 | C50: 27 | D50: 51.92307692 | E50: 25 | F50: 48.07692308 | G50: 27 | H50: 14 | I50: 51.85185185 | J50: 13 | K50: 48.14814815 | L50: 25 | M50: 13 | N50: 0 | O50: 12 | P50: 0
A51: UNION PALMAREÑA | B51: 56 | C51: 28 | D51: 50 | E51: 28 | F51: 50 | G51: 28 | H51: 14 | I51: 50 | J51: 14 | K51: 50 | L51: 28 | M51: 14 | N51: 0 | O51: 14 | P51: 0
A52: UNIÓN POASEÑA | B52: 12 | C52: 7 | D52: 58.33333333 | E52: 5 | F52: 41.66666667 | G52: 8 | H52: 5 | I52: 62.5 | J52: 3 | K52: 37.5 | L52: 4 | M52: 2 | N52: 0 | O52: 2 | P52: 0
A53: YUNTA PROGRESISTA ESCAZUCEÑA | B53: 23 | C53: 12 | D53: 52.17391304 | E53: 11 | F53: 47.82608696 | G53: 11 | H53: 6 | I53: 54.54545455 | J53: 5 | K53: 45.45454545 | L53: 12 | M53: 6 | N53: 0 | O53: 6 | P53: 0
A56: Nota: Datos al 26 de octubre de 2010.
A57: Fuente: Departamento de Registro de Partidos Políticos, Base de datos de candidaturas diciembre 2010.

Sheet 26
A1: CUADRO 26 COSTA RICA: CANDIDATURAS A CONCEJALES DE DISTRITO EN PROPIEDAD Y SUPLENCIA, POR SEXO
A2: SEGÚN PROVINCIA Y CANTÓN ELECCIONES 5 DE DICIEMBRE 2010
A3: (CIFRAS ABSOLUTAS Y RELATIVAS)
A5: PROVINCIA Y CANTÓN | B5: TOTAL | C5: CONCEJALES DE DISTRITO | G5: EN PROPIEDAD | L5: EN SUPLENCIA
C6: HOMBRES | E6: MUJERES | G6: TOTAL | H6: HOMBRES | J6: MUJERES | L6: TOTAL | M6: HOMBRES | O6: MUJERES
C7: ABS | D7: % | E7: ABS | F7: % | H7: ABS | I7: % | J7: ABS | K7: % | M7: ABS | N7: % | O7: ABS | P7: %
A9: COSTA RICA | B9: =G9+L9 -> 11004 | C9: =H9+M9 -> 5527 | D9: =C9/$B9*100 -> 50.22719011 | E9: =J9+O9 -> 5477 | F9: =E9/$B9*100 -> 49.77280989 | G9: =+G10+G31+G47+G56+G67+G79+G91 -> 5828 | H9: =+H10+H31+H47+H56+H67+H79+H91 -> 2941 | I9: =H9/$G9*100 -> 50.46328071 | J9: =+J10+J31+J47+J56+J67+J79+J91 -> 2887 | K9: =J9/$G9*100 -> 49.53671929 | L9: =+L10+L31+L47+L56+L67+L79+L91 -> 5176 | M9: =+M10+M31+M47+M56+M67+M79+M91 -> 2586 | N9: =M9/$L9*100 -> 49.96136012 | O9: =+O10+O31+O47+O56+O67+O79+O91 -> 2590 | P9: =O9/$L9*100 -> 50.03863988
A10: PROVINCIA SAN JOSÉ | B10: =+G10+L10 -> 3023 | C10: =+H10+M10 -> 1510 | D10: 49.95038042 | E10: =+J10+O10 -> 1513 | F10: 50.04961958 | G10: =+H10+J10 -> 1591 | H10: =SUM(H11:H30) -> 794 | I10: 49.90571967 | J10: =SUM(J11:J30) -> 797 | K10: 50.09428033 | L10: =+L12+L13+L14+L15+L16+L17+L18+L19+L20+L21+L22+L23+L24+L25+L26+L27+L28+L29+L30+L11 -> 1432 | M10: =SUM(M11:M30) -> 716 | N10: 50 | O10: =SUM(O11:O30) -> 716 | P10: 50
A11: SAN JOSÉ | B11: 328 | C11: 169 | D11: 51.52439024 | E11: 159 | F11: 48.47560976 | G11: 174 | H11: 92 | I11: 52.87356322 | J11: 82 | K11: 47.12643678 | L11: =+M11+O11 -> 154 | M11: 77 | N11: 50 | O11: 77 | P11: 50
A12: ESCAZÚ | B12: 81 | C12: 38 | D12: 46.91358025 | E12: 43 | F12: 53.08641975 | G12: 42 | H12: 20 | I12: 47.61904762 | J12: 22 | K12: 52.38095238 | L12: 39 | M12: 18 | N12: 46.15384615 | O12: 21 | P12: 53.84615385
A13: DESAMPARADOS | B13: 492 | C13: 245 | D13: 49.79674797 | E13: 247 | F13: 50.20325203 | G13: 264 | H13: 130 | I13: 49.24242424 | J13: 134 | K13: 50.75757576 | L13: 228 | M13: 115 | N13: 50.43859649 | O13: 113 | P13: 49.56140351
A14: PURISCAL | B14: 91 | C14: 46 | D14: 50.54945055 | E14: 45 | F14: 49.45054945 | G14: 48 | H14: 24 | I14: 50 | J14: 24 | K14: 50 | L14: 43 | M14: 22 | N14: 51.1627907 | O14: 21 | P14: 48.8372093
A15: TARRAZÚ | B15: 69 | C15: 35 | D15: 50.72463768 | E15: 34 | F15: 49.27536232 | G15: 35 | H15: 18 | I15: 51.42857143 | J15: 17 | K15: 48.57142857 | L15: 34 | M15: 17 | N15: 50 | O15: 17 | P15: 50
A16: ASERRÍ | B16: 148 | C16: 74 | D16: 50 | E16: 74 | F16: 50 | G16: 76 | H16: 38 | I16: 50 | J16: 38 | K16: 50 | L16: 72 | M16: 36 | N16: 50 | O16: 36 | P16: 50
A17: MORA | B17: 93 | C17: 47 | D17: 50.53763441 | E17: 46 | F17: 49.46236559 | G17: 52 | H17: 26 | I17: 50 | J17: 26 | K17: 50 | L17: 41 | M17: 21 | N17: 51.2195122 | O17: 20 | P17: 48.7804878
A18: GOICOECHEA | B18: 277 | C18: 139 | D18: 50.18050542 | E18: 138 | F18: 49.81949458 | G18: 142 | H18: 70 | I18: 49.29577465 | J18: 72 | K18: 50.70422535 | L18: 135 | M18: 69 | N18: 51.11111111 | O18: 66 | P18: 48.88888889
A19: SANTA ANA | B19: 193 | C19: 96 | D19: 49.74093264 | E19: 97 | F19: 50.25906736 | G19: 95 | H19: 47 | I19: 49.47368421 | J19: 48 | K19: 50.52631579 | L19: 98 | M19: 49 | N19: 50 | O19: 49 | P19: 50
A20: ALAJUELITA | B20: 125 | C20: 61 | D20: 48.8 | E20: 64 | F20: 51.2 | G20: 64 | H20: 31 | I20: 48.4375 | J20: 33 | K20: 51.5625 | L20: 61 | M20: 30 | N20: 49.18032787 | O20: 31 | P20: 50.81967213
A21: VÁZQUEZ DE CORONADO | B21: 116 | C21: 54 | D21: 46.55172414 | E21: 62 | F21: 53.44827586 | G21: 61 | H21: 30 | I21: 49.18032787 | J21: 31 | K21: 50.81967213 | L21: 55 | M21: 24 | N21: 43.63636364 | O21: 31 | P21: 56.36363636
A22: ACOSTA | B22: 45 | C22: 22 | D22: 48.88888889 | E22: 23 | F22: 51.11111111 | G22: 32 | H22: 16 | I22: 50 | J22: 16 | K22: 50 | L22: 13 | M22: 6 | N22: 46.15384615 | O22: 7 | P22: 53.84615385
A23: TIBÁS | B23: 151 | C23: 71 | D23: 47.01986755 | E23: 80 | F23: 52.98013245 | G23: 85 | H23: 39 | I23: 45.88235294 | J23: 46 | K23: 54.11764706 | L23: 66 | M23: 32 | N23: 48.48484848 | O23: 34 | P23: 51.51515152
A24: MORAVIA | B24: 113 | C24: 57 | D24: 50.44247788 | E24: 56 | F24: 49.55752212 | G24: 59 | H24: 31 | I24: 52.54237288 | J24: 28 | K24: 47.45762712 | L24: 54 | M24: 26 | N24: 48.14814815 | O24: 28 | P24: 51.85185185
A25: MONTES DE OCA | B25: 120 | C25: 60 | D25: 50 | E25: 60 | F25: 50 | G25: 61 | H25: 29 | I25: 47.54098361 | J25: 32 | K25: 52.45901639 | L25: 59 | M25: 31 | N25: 52.54237288 | O25: 28 | P25: 47.45762712
A26: TURRUBARES | B26: 77 | C26: 39 | D26: 50.64935065 | E26: 38 | F26: 49.35064935 | G26: 38 | H26: 19 | I26: 50 | J26: 19 | K26: 50 | L26: 39 | M26: 20 | N26: 51.28205128 | O26: 19 | P26: 48.71794872
A27: DOTA | B27: 50 | C27: 24 | D27: 48 | E27: 26 | F27: 52 | G27: 27 | H27: 13 | I27: 48.14814815 | J27: 14 | K27: 51.85185185 | L27: 23 | M27: 11 | N27: 47.82608696 | O27: 12 | P27: 52.17391304
A28: CURRIDABAT | B28: 41 | C28: 20 | D28: 48.7804878 | E28: 21 | F28: 51.2195122 | G28: 24 | H28: 12 | I28: 50 | J28: 12 | K28: 50 | L28: 17 | M28: 8 | N28: 47.05882353 | O28: 9 | P28: 52.94117647
A29: PÉREZ ZELEDÓN | B29: 289 | C29: 150 | D29: 51.90311419 | E29: 139 | F29: 48.09688581 | G29: 146 | H29: 76 | I29: 52.05479452 | J29: 70 | K29: 47.94520548 | L29: 143 | M29: 74 | N29: 51.74825175 | O29: 69 | P29: 48.25174825
A30: LEÓN CORTÉS | B30: 124 | C30: 63 | D30: 50.80645161 | E30: 61 | F30: 49.19354839 | G30: 66 | H30: 33 | I30: 50 | J30: 33 | K30: 50 | L30: 58 | M30: 30 | N30: 51.72413793 | O30: 28 | P30: 48.27586207
A31: PROVINCIA ALAJUELA | B31: 2321 | C31: 1180 | D31: 50.84015511 | E31: 1141 | F31: 49.15984489 | G31: 1246 | H31: =SUM(H32:H46) -> 639 | I31: 51.28410915 | J31: =SUM(J32:J46) -> 607 | K31: 48.71589085 | L31: 1075 | M31: =SUM(M32:M46) -> 541 | N31: 50.3255814 | O31: =SUM(O32:O46) -> 534 | P31: 49.6744186
A32: ALAJUELA | B32: 467 | C32: 238 | D32: 50.96359743 | E32: 229 | F32: 49.03640257 | G32: 246 | H32: 125 | I32: 50.81300813 | J32: 121 | K32: 49.18699187 | L32: 221 | M32: 113 | N32: 51.13122172 | O32: 108 | P32: 48.86877828
A33: SAN RAMÓN | B33: 169 | C33: 84 | D33: 49.70414201 | E33: 85 | F33: 50.29585799 | G33: 91 | H33: 46 | I33: 50.54945055 | J33: 45 | K33: 49.45054945 | L33: 78 | M33: 38 | N33: 48.71794872 | O33: 40 | P33: 51.28205128
A34: GRECIA | B34: 170 | C34: 86 | D34: 50.58823529 | E34: 84 | F34: 49.41176471 | G34: 87 | H34: 44 | I34: 50.57471264 | J34: 43 | K34: 49.42528736 | L34: 83 | M34: 42 | N34: 50.60240964 | O34: 41 | P34: 49.39759036
A35: SAN MATEO | B35: 55 | C35: 29 | D35: 52.72727273 | E35: 26 | F35: 47.27272727 | G35: 32 | H35: 17 | I35: 53.125 | J35: 15 | K35: 46.875 | L35: 23 | M35: 12 | N35: 52.17391304 | O35: 11 | P35: 47.82608696
A36: ATENAS | B36: 113 | C36: 59 | D36: 52.21238938 | E36: 54 | F36: 47.78761062 | G36: 59 | H36: 32 | I36: 54.23728814 | J36: 27 | K36: 45.76271186 | L36: 54 | M36: 27 | N36: 50 | O36: 27 | P36: 50
A37: NARANJO | B37: 197 | C37: 97 | D37: 49.23857868 | E37: 100 | F37: 50.76142132 | G37: 101 | H37: 52 | I37: 51.48514851 | J37: 49 | K37: 48.51485149 | L37: 96 | M37: 45 | N37: 46.875 | O37: 51 | P37: 53.125
A38: PALMARES | B38: 175 | C38: 89 | D38: 50.85714286 | E38: 86 | F38: 49.14285714 | G38: 98 | H38: 51 | I38: 52.04081633 | J38: 47 | K38: 47.95918367 | L38: 77 | M38: 38 | N38: 49.35064935 | O38: 39 | P38: 50.64935065
A39: POÁS | B39: 49 | C39: 26 | D39: 53.06122449 | E39: 23 | F39: 46.93877551 | G39: 26 | H39: 15 | I39: 57.69230769 | J39: 11 | K39: 42.30769231 | L39: 23 | M39: 11 | N39: 47.82608696 | O39: 12 | P39: 52.17391304
A40: OROTINA | B40: 101 | C40: 51 | D40: 50.4950495 | E40: 50 | F40: 49.5049505 | G40: 55 | H40: 26 | I40: 47.27272727 | J40: 29 | K40: 52.72727273 | L40: 46 | M40: 25 | N40: 54.34782609 | O40: 21 | P40: 45.65217391
A41: SAN CARLOS | B41: 295 | C41: 147 | D41: =C41/$B41*100 -> 49.83050847 | E41: 148 | F41: =E41/$B41*100 -> 50.16949153 | G41: 148 | H41: 75 | I41: =H41/$G41*100 -> 50.67567568 | J41: 73 | K41: =J41/$G41*100 -> 49.32432432 | L41: 147 | M41: 72 | N41: =M41/$L41*100 -> 48.97959184 | O41: 75 | P41: =O41/$L41*100 -> 51.02040816
A42: ALFARO RUIZ | B42: =+G42+L42 -> 157 | C42: =+H42+M42 -> 78 | D42: 49.68152866 | E42: =+J42+O42 -> 79 | F42: 50.31847134 | G42: =+H42+J42 -> 79 | H42: 39 | I42: 49.36708861 | J42: 40 | K42: 50.63291139 | L42: 78 | M42: 39 | N42: 50 | O42: 39 | P42: 50
A43: VALVERDE VEGA | B43: 108 | C43: 56 | D43: 51.85185185 | E43: 52 | F43: 48.14814815 | G43: 69 | H43: 36 | I43: 52.17391304 | J43: 33 | K43: 47.82608696 | L43: 39 | M43: 20 | N43: 51.28205128 | O43: 19 | P43: 48.71794872
A44: UPALA | B44: 109 | C44: 57 | D44: 52.29357798 | E44: 52 | F44: 47.70642202 | G44: 65 | H44: 33 | I44: 50.76923077 | J44: 32 | K44: 49.23076923 | L44: 44 | M44: 24 | N44: 54.54545455 | O44: 20 | P44: 45.45454545
A45: LOS CHILES | B45: 63 | C45: 34 | D45: 53.96825397 | E45: 29 | F45: 46.03174603 | G45: 36 | H45: 21 | I45: 58.33333333 | J45: 15 | K45: 41.66666667 | L45: 27 | M45: 13 | N45: 48.14814815 | O45: 14 | P45: 51.85185185
A46: GUATUSO | B46: 93 | C46: 49 | D46: 52.68817204 | E46: 44 | F46: 47.31182796 | G46: 54 | H46: 27 | I46: 50 | J46: 27 | K46: 50 | L46: 39 | M46: 22 | N46: 56.41025641 | O46: 17 | P46: 43.58974359
A47: PROVINCIA CARTAGO | B47: 1109 | C47: 552 | D47: 49.77457169 | E47: 557 | F47: 50.22542831 | G47: 561 | H47: =SUM(H48:H55) -> 279 | I47: 49.73262032 | J47: =SUM(J48:J55) -> 282 | K47: 50.26737968 | L47: 548 | M47: =SUM(M48:M55) -> 273 | N47: 49.81751825 | O47: =SUM(O48:O55) -> 275 | P47: 50.18248175
A48: CARTAGO | B48: 175 | C48: 87 | D48: 49.71428571 | E48: 88 | F48: 50.28571429 | G48: 87 | H48: 43 | I48: 49.42528736 | J48: 44 | K48: 50.57471264 | L48: 88 | M48: 44 | N48: 50 | O48: 44 | P48: 50
A49: PARAÍSO | B49: 161 | C49: 78 | D49: 48.44720497 | E49: 83 | F49: 51.55279503 | G49: 83 | H49: 41 | I49: 49.39759036 | J49: 42 | K49: 50.60240964 | L49: 78 | M49: 37 | N49: 47.43589744 | O49: 41 | P49: 52.56410256
A50: LA UNIÓN | B50: 207 | C50: 102 | D50: 49.27536232 | E50: 105 | F50: 50.72463768 | G50: 104 | H50: 51 | I50: 49.03846154 | J50: 53 | K50: 50.96153846 | L50: 103 | M50: 51 | N50: 49.51456311 | O50: 52 | P50: 50.48543689
A51: JIMÉNEZ | B51: 33 | C51: 16 | D51: 48.48484848 | E51: 17 | F51: 51.51515152 | G51: 16 | H51: 8 | I51: 50 | J51: 8 | K51: 50 | L51: 17 | M51: 8 | N51: 47.05882353 | O51: 9 | P51: 52.94117647
A52: TURRIALBA | B52: 321 | C52: 163 | D52: 50.7788162 | E52: 158 | F52: 49.2211838 | G52: 161 | H52: 82 | I52: 50.93167702 | J52: 79 | K52: 49.06832298 | L52: 160 | M52: 81 | N52: 50.625 | O52: 79 | P52: 49.375
A53: ALVARADO | B53: 31 | C53: 16 | D53: 51.61290323 | E53: 15 | F53: 48.38709677 | G53: 16 | H53: 8 | I53: 50 | J53: 8 | K53: 50 | L53: 15 | M53: 8 | N53: 53.33333333 | O53: 7 | P53: 46.66666667
A54: OREAMUNO | B54: 122 | C54: 61 | D54: 50 | E54: 61 | F54: 50 | G54: 65 | H54: 32 | I54: 49.23076923 | J54: 33 | K54: 50.76923077 | L54: 57 | M54: 29 | N54: 50.87719298 | O54: 28 | P54: 49.12280702
A55: EL GUARCO | B55: 59 | C55: 29 | D55: 49.15254237 | E55: 30 | F55: 50.84745763 | G55: 29 | H55: 14 | I55: 48.27586207 | J55: 15 | K55: 51.72413793 | L55: 30 | M55: 15 | N55: 50 | O55: 15 | P55: 50
A56: PROVINCIA HEREDIA | B56: 1162 | C56: 577 | D56: 49.65576592 | E56: 585 | F56: 50.34423408 | G56: 622 | H56: =SUM(H57:H66) -> 306 | I56: 49.19614148 | J56: =SUM(J57:J66) -> 316 | K56: 50.80385852 | L56: =+L57+L58+L59+L60+L61+L62+L63+L64+L65+L66 -> 540 | M56: =SUM(M57:M66) -> 271 | N56: 50.18518519 | O56: =SUM(O57:O66) -> 269 | P56: 49.81481481
A57: HEREDIA | B57: 102 | C57: 47 | D57: 46.07843137 | E57: 55 | F57: 53.92156863 | G57: 54 | H57: 24 | I57: 44.44444444 | J57: 30 | K57: 55.55555556 | L57: =+M57+O57 -> 48 | M57: 23 | N57: 47.91666667 | O57: 25 | P57: 52.08333333
A58: BARVA | B58: 241 | C58: 122 | D58: 50.62240664 | E58: 119 | F58: 49.37759336 | G58: 129 | H58: 65 | I58: 50.3875969 | J58: 64 | K58: 49.6124031 | L58: 112 | M58: 57 | N58: 50.89285714 | O58: 55 | P58: 49.10714286
A59: SANTO DOMINGO | B59: 214 | C59: 109 | D59: 50.93457944 | E59: 105 | F59: 49.06542056 | G59: 111 | H59: 56 | I59: 50.45045045 | J59: 55 | K59: 49.54954955 | L59: 103 | M59: 53 | N59: 51.45631068 | O59: 50 | P59: 48.54368932
A60: SANTA BÁRBARA | B60: 144 | C60: 69 | D60: 47.91666667 | E60: 75 | F60: 52.08333333 | G60: 82 | H60: 40 | I60: 48.7804878 | J60: 42 | K60: 51.2195122 | L60: 62 | M60: 29 | N60: 46.77419355 | O60: 33 | P60: 53.22580645
A61: SAN RAFAEL | B61: 89 | C61: 44 | D61: 49.43820225 | E61: 45 | F61: 50.56179775 | G61: 52 | H61: 26 | I61: 50 | J61: 26 | K61: 50 | L61: 37 | M61: 18 | N61: 48.64864865 | O61: 19 | P61: 51.35135135
A62: SAN ISIDRO | B62: 124 | C62: 62 | D62: 50 | E62: 62 | F62: 50 | G62: 63 | H62: 32 | I62: 50.79365079 | J62: 31 | K62: 49.20634921 | L62: 61 | M62: 30 | N62: 49.18032787 | O62: 31 | P62: 50.81967213
A63: BELÉN | B63: 55 | C63: 28 | D63: 50.90909091 | E63: 27 | F63: 49.09090909 | G63: 32 | H63: 15 | I63: 46.875 | J63: 17 | K63: 53.125 | L63: 23 | M63: 13 | N63: 56.52173913 | O63: 10 | P63: 43.47826087
A64: FLORES | B64: 67 | C64: 32 | D64: 47.76119403 | E64: 35 | F64: 52.23880597 | G64: 33 | H64: 16 | I64: 48.48484848 | J64: 17 | K64: 51.51515152 | L64: 34 | M64: 16 | N64: 47.05882353 | O64: 18 | P64: 52.94117647
A65: SAN PABLO | B65: 43 | C65: 22 | D65: 51.1627907 | E65: 21 | F65: 48.8372093 | G65: 24 | H65: 12 | I65: 50 | J65: 12 | K65: 50 | L65: 19 | M65: 10 | N65: 52.63157895 | O65: 9 | P65: 47.36842105
A66: SARAPIQUÍ | B66: 83 | C66: 42 | D66: 50.60240964 | E66: 41 | F66: 49.39759036 | G66: 42 | H66: 20 | I66: 47.61904762 | J66: 22 | K66: 52.38095238 | L66: 41 | M66: 22 | N66: 53.65853659 | O66: 19 | P66: 46.34146341
A67: PROVINCIA GUANACASTE | B67: 1181 | C67: 597 | D67: 50.55038103 | E67: 584 | F67: 49.44961897 | G67: 638 | H67: =SUM(H68:H78) -> 323 | I67: 50.62695925 | J67: =SUM(J68:J78) -> 315 | K67: 49.37304075 | L67: =+L68+L69+L70+L71+L72+L73+L74+L75+L76+L77+L78 -> 543 | M67: =SUM(M68:M78) -> 274 | N67: 50.46040516 | O67: =SUM(O68:O78) -> 269 | P67: 49.53959484
A68: LIBERIA | B68: 109 | C68: 54 | D68: 49.5412844 | E68: 55 | F68: 50.4587156 | G68: 54 | H68: 27 | I68: 50 | J68: 27 | K68: 50 | L68: =+M68+O68 -> 55 | M68: 27 | N68: 49.09090909 | O68: 28 | P68: 50.90909091
A69: NICOYA | B69: 178 | C69: 91 | D69: 51.12359551 | E69: 87 | F69: 48.87640449 | G69: 102 | H69: 51 | I69: 50 | J69: 51 | K69: 50 | L69: 76 | M69: 40 | N69: 52.63157895 | O69: 36 | P69: 47.36842105
A70: SANTA CRUZ | B70: 235 | C70: 118 | D70: 50.21276596 | E70: 117 | F70: 49.78723404 | G70: 126 | H70: 64 | I70: 50.79365079 | J70: 62 | K70: 49.20634921 | L70: 109 | M70: 54 | N70: 49.5412844 | O70: 55 | P70: 50.4587156
A71: BAGACES | B71: 60 | C71: 30 | D71: 50 | E71: 30 | F71: 50 | G71: 29 | H71: 13 | I71: 44.82758621 | J71: 16 | K71: 55.17241379 | L71: 31 | M71: 17 | N71: 54.83870968 | O71: 14 | P71: 45.16129032
A72: CARRILLO | B72: 86 | C72: 44 | D72: 51.1627907 | E72: 42 | F72: 48.8372093 | G72: 54 | H72: 27 | I72: 50 | J72: 27 | K72: 50 | L72: 32 | M72: 17 | N72: 53.125 | O72: 15 | P72: 46.875
A73: CAÑAS | B73: 75 | C73: 39 | D73: =C73/$B73*100 -> 52 | E73: 36 | F73: =E73/$B73*100 -> 48 | G73: 39 | H73: 20 | I73: =H73/$G73*100 -> 51.28205128 | J73: 19 | K73: =J73/$G73*100 -> 48.71794872 | L73: 36 | M73: 19 | N73: =M73/$L73*100 -> 52.77777778 | O73: 17 | P73: =O73/$L73*100 -> 47.22222222
A74: ABANGARES | B74: =+G74+L74 -> 66 | C74: =+H74+M74 -> 33 | D74: 50 | E74: =+J74+O74 -> 33 | F74: 50 | G74: =+H74+J74 -> 33 | H74: 17 | I74: 51.51515152 | J74: 16 | K74: 48.48484848 | L74: 33 | M74: 16 | N74: 48.48484848 | O74: 17 | P74: 51.51515152
A75: TILARÁN | B75: 129 | C75: 66 | D75: 51.1627907 | E75: 63 | F75: 48.8372093 | G75: 71 | H75: 37 | I75: 52.11267606 | J75: 34 | K75: 47.88732394 | L75: 58 | M75: 29 | N75: 50 | O75: 29 | P75: 50
A76: NANDAYURE | B76: 117 | C76: 60 | D76: 51.28205128 | E76: 57 | F76: 48.71794872 | G76: 64 | H76: 33 | I76: 51.5625 | J76: 31 | K76: 48.4375 | L76: 53 | M76: 27 | N76: 50.94339623 | O76: 26 | P76: 49.05660377
A77: LA CRUZ | B77: 59 | C77: 27 | D77: 45.76271186 | E77: 32 | F77: 54.23728814 | G77: 31 | H77: 15 | I77: 48.38709677 | J77: 16 | K77: 51.61290323 | L77: 28 | M77: 12 | N77: 42.85714286 | O77: 16 | P77: 57.14285714
A78: HOJANCHA | B78: 67 | C78: 35 | D78: 52.23880597 | E78: 32 | F78: 47.76119403 | G78: 35 | H78: 19 | I78: 54.28571429 | J78: 16 | K78: 45.71428571 | L78: 32 | M78: 16 | N78: 50 | O78: 16 | P78: 50
A79: PROVINCIA PUNTARENAS | B79: 1347 | C79: 684 | D79: 50.77951002 | E79: 663 | F79: 49.22048998 | G79: 703 | H79: =SUM(H80:H90) -> 364 | I79: 51.77809388 | J79: =SUM(J80:J90) -> 339 | K79: 48.22190612 | L79: =+L80+L81+L82+L83+L84+L85+L86+L87+L88+L89+L90 -> 644 | M79: =SUM(M80:M90) -> 320 | N79: 49.68944099 | O79: =SUM(O80:O90) -> 324 | P79: 50.31055901
A80: PUNTARENAS | B80: 276 | C80: 141 | D80: 51.08695652 | E80: 135 | F80: 48.91304348 | G80: 146 | H80: 76 | I80: 52.05479452 | J80: 70 | K80: 47.94520548 | L80: =+M80+O80 -> 130 | M80: 65 | N80: 50 | O80: 65 | P80: 50
A81: ESPARZA | B81: 126 | C81: 61 | D81: 48.41269841 | E81: 65 | F81: 51.58730159 | G81: 63 | H81: 31 | I81: 49.20634921 | J81: 32 | K81: 50.79365079 | L81: 63 | M81: 30 | N81: 47.61904762 | O81: 33 | P81: 52.38095238
A82: BUENOS AIRES | B82: 175 | C82: 90 | D82: 51.42857143 | E82: 85 | F82: 48.57142857 | G82: 93 | H82: 50 | I82: 53.76344086 | J82: 43 | K82: 46.23655914 | L82: 82 | M82: 40 | N82: 48.7804878 | O82: 42 | P82: 51.2195122
A83: MONTES DE ORO | B83: 70 | C83: 35 | D83: 50 | E83: 35 | F83: 50 | G83: 35 | H83: 18 | I83: 51.42857143 | J83: 17 | K83: 48.57142857 | L83: 35 | M83: 17 | N83: 48.57142857 | O83: 18 | P83: 51.42857143
A84: OSA | B84: 141 | C84: 71 | D84: 50.35460993 | E84: 70 | F84: 49.64539007 | G84: 68 | H84: 33 | I84: 48.52941176 | J84: 35 | K84: 51.47058824 | L84: 73 | M84: 38 | N84: 52.05479452 | O84: 35 | P84: 47.94520548
A85: AGUIRRE | B85: 161 | C85: 83 | D85: 51.55279503 | E85: 78 | F85: 48.44720497 | G85: 82 | H85: 42 | I85: 51.2195122 | J85: 40 | K85: 48.7804878 | L85: 79 | M85: 41 | N85: 51.89873418 | O85: 38 | P85: 48.10126582
A86: GOLFITO | B86: 92 | C86: 46 | D86: 50 | E86: 46 | F86: 50 | G86: 48 | H86: 24 | I86: 50 | J86: 24 | K86: 50 | L86: 44 | M86: 22 | N86: 50 | O86: 22 | P86: 50
A87: COTO BRUS | B87: 117 | C87: 62 | D87: 52.99145299 | E87: 55 | F87: 47.00854701 | G87: 61 | H87: 33 | I87: 54.09836066 | J87: 28 | K87: 45.90163934 | L87: 56 | M87: 29 | N87: 51.78571429 | O87: 27 | P87: 48.21428571
A88: PARRITA | B88: 37 | C88: 18 | D88: 48.64864865 | E88: 19 | F88: 51.35135135 | G88: 18 | H88: 9 | I88: 50 | J88: 9 | K88: 50 | L88: 19 | M88: 9 | N88: 47.36842105 | O88: 10 | P88: 52.63157895
A89: CORREDORES | B89: 114 | C89: 58 | D89: 50.87719298 | E89: 56 | F89: 49.12280702 | G89: 68 | H89: 37 | I89: 54.41176471 | J89: 31 | K89: 45.58823529 | L89: 46 | M89: 21 | N89: 45.65217391 | O89: 25 | P89: 54.34782609
A90: GARABITO | B90: 38 | C90: 19 | D90: 50 | E90: 19 | F90: 50 | G90: 21 | H90: 11 | I90: 52.38095238 | J90: 10 | K90: 47.61904762 | L90: 17 | M90: 8 | N90: 47.05882353 | O90: 9 | P90: 52.94117647
A91: PROVINCIA LIMÓN | B91: 861 | C91: 427 | D91: 49.59349593 | E91: 434 | F91: 50.40650407 | G91: 467 | H91: =SUM(H92:H97) -> 236 | I91: 50.53533191 | J91: =SUM(J92:J97) -> 231 | K91: 49.46466809 | L91: =+L92+L93+L94+L95+L96+L97 -> 394 | M91: =SUM(M92:M97) -> 191 | N91: 48.47715736 | O91: =SUM(O92:O97) -> 203 | P91: 51.52284264
A92: LIMÓN | B92: 186 | C92: 93 | D92: 50 | E92: 93 | F92: 50 | G92: 96 | H92: 50 | I92: 52.08333333 | J92: 46 | K92: 47.91666667 | L92: =+M92+O92 -> 90 | M92: 43 | N92: 47.77777778 | O92: 47 | P92: 52.22222222
A93: POCOCÍ | B93: 120 | C93: 59 | D93: 49.16666667 | E93: 61 | F93: 50.83333333 | G93: 65 | H93: 32 | I93: 49.23076923 | J93: 33 | K93: 50.76923077 | L93: 55 | M93: 27 | N93: 49.09090909 | O93: 28 | P93: 50.90909091
A94: SIQUIRRES | B94: 212 | C94: 107 | D94: 50.47169811 | E94: 105 | F94: 49.52830189 | G94: 127 | H94: 65 | I94: 51.18110236 | J94: 62 | K94: 48.81889764 | L94: 85 | M94: 42 | N94: 49.41176471 | O94: 43 | P94: 50.58823529
A95: TALAMANCA | B95: 88 | C95: 43 | D95: 48.86363636 | E95: 45 | F95: 51.13636364 | G95: 50 | H95: 25 | I95: 50 | J95: 25 | K95: 50 | L95: 38 | M95: 18 | N95: 47.36842105 | O95: 20 | P95: 52.63157895
A96: MATINA | B96: 114 | C96: 56 | D96: 49.12280702 | E96: 58 | F96: 50.87719298 | G96: 58 | H96: 29 | I96: 50 | J96: 29 | K96: 50 | L96: 56 | M96: 27 | N96: 48.21428571 | O96: 29 | P96: 51.78571429
A97: GUÁCIMO | B97: 141 | C97: 69 | D97: 48.93617021 | E97: 72 | F97: 51.06382979 | G97: 71 | H97: 35 | I97: 49.29577465 | J97: 36 | K97: 50.70422535 | L97: 70 | M97: 34 | N97: 48.57142857 | O97: 36 | P97: 51.42857143
A100: Nota: Datos al 26 de octubre de 2010.
A101: Fuente: Departamento de Registro de Partidos Políticos, Base de datos de candidaturas diciembre 2010.

Sheet 27
A1: CUADRO 27 COSTA RICA: CANDIDATURAS A INTENDENCIAS Y VICEINTENDENCIAS POR SEXO
A2: SEGÚN PARTIDO, ELECCIONES 5 DE DICIEMBRE 2010
A3: (CIFRAS ABSOLUTAS Y RELATIVAS)
A5: PARTIDO | B5: TOTAL | G5: INTENDENCIAS | L5: VICEINTENDENCIAS
A6: PARTIDO POLITICO | B6: TOTAL | C6: HOMBRES | E6: MUJERES | G6: TOTAL | H6: HOMBRES | J6: MUJERES | L6: TOTAL | M6: HOMBRES | O6: MUJERES
B7: ABS | C7: ABS | D7: % | E7: ABS | F7: % | G7: ABS | H7: ABS | I7: % | J7: ABS | K7: % | L7: ABS | M7: ABS | N7: % | O7: ABS | P7: %
A9: TOTAL | B9: =SUM(B11:B17) -> 61 | C9: =SUM(C11:C17) -> 30 | D9: =C9/B9*100 -> 49.18032787 | E9: =SUM(E11:E17) -> 31 | F9: =E9/B9*100 -> 50.81967213 | G9: =SUM(G11:G17) -> 30 | H9: =SUM(H11:H17) -> 25 | I9: =H9/G9*100 -> 83.33333333 | J9: =SUM(J11:J17) -> 5 | K9: =J9/G9*100 -> 16.66666667 | L9: =SUM(L11:L17) -> 31 | M9: =SUM(M11:M17) -> 5 | N9: =M9/L9*100 -> 16.12903226 | O9: =SUM(O11:O17) -> 26 | P9: =O9/L9*100 -> 83.87096774
A11: ACCESIBILIDAD SIN EXCLUSIÓN | B11: =+C11+E11 -> 7 | C11: =+H11+M11 -> 3 | D11: =C11/B11*100 -> 42.85714286 | E11: =+J11+O11 -> 4 | F11: =E11/B11*100 -> 57.14285714 | G11: =+H11+J11 -> 3 | H11: 3 | I11: =H11/G11*100 -> 100 | J11: 0 | K11: =J11/G11*100 -> 0 | L11: =+M11+O11 -> 4 | M11: 0 | N11: =M11/L11*100 -> 0 | O11: 4 | P11: =O11/L11*100 -> 100
A12: ACCIÓN CIUDADANA | B12: 6 | C12: 3 | D12: 50 | E12: 3 | F12: 50 | G12: 3 | H12: 2 | I12: 66.66666667 | J12: 1 | K12: 33.33333333 | L12: 3 | M12: 1 | N12: 33.33333333 | O12: 2 | P12: 66.66666667
A13: LIBERACIÓN NACIONAL | B13: 16 | C13: 8 | D13: 50 | E13: 8 | F13: 50 | G13: 8 | H13: 8 | I13: 100 | J13: 0 | K13: 0 | L13: 8 | M13: 0 | N13: 0 | O13: 8 | P13: 100
A14: MOVIMIENTO LIBERTARIO | B14: 14 | C14: 7 | D14: 50 | E14: 7 | F14: 50 | G14: 7 | H14: 5 | I14: 71.42857143 | J14: 2 | K14: 28.57142857 | L14: 7 | M14: 2 | N14: 28.57142857 | O14: 5 | P14: 71.42857143
A15: ÚNICO ABANGAREÑO | B15: 2 | C15: 1 | D15: 50 | E15: 1 | F15: 50 | G15: 1 | H15: 0 | I15: 0 | J15: 1 | K15: 100 | L15: 1 | M15: 1 | N15: 100 | O15: 0 | P15: 0
A16: UNIDAD SOCIAL CRISTIANA | B16: 14 | C16: 7 | D16: 50 | E16: 7 | F16: 50 | G16: 7 | H16: 6 | I16: 85.71428571 | J16: 1 | K16: 14.28571429 | L16: 7 | M16: 1 | N16: 14.28571429 | O16: 6 | P16: 85.71428571
A17: UNION AGRÍCOLA CARTAGINES | B17: 2 | C17: 1 | D17: 50 | E17: 1 | F17: 50 | G17: 1 | H17: 1 | I17: 100 | J17: 0 | K17: 0 | L17: 1 | M17: 0 | N17: 0 | O17: 1 | P17: 100
A20: Nota: Datos al 26 de octubre de 2010.
A21: Fuente: Departamento de Registro de Partidos Políticos, Base de datos de candidaturas diciembre 2010.

Sheet 28
A1: CUADRO 28 COSTA RICA: CANDIDATURAS A INTENDENCIAS Y VICEINTENDENCIAS POR SEXO, SEGÚN
A2: PROVINCIA, CANTÓN Y DISTRITO, ELECCIONES 5 DE DICIEMBRE 2010
A3: (CIFRAS ABSOLUTAS Y RELATIVAS)
A5: DISTRITO ADMINISTRATIVO | B5: INTENDENCIAS | G5: VICEINTENDENCIAS
A6: PARTIDO POLITICO | B6: TOTAL | C6: HOMBRES | E6: MUJERES | G6: TOTAL | H6: HOMBRES | J6: MUJERES
B7: ABS | C7: ABS | D7: % | E7: ABS | F7: % | G7: ABS | H7: ABS | I7: % | J7: ABS | K7: %
A9: TOTAL | B9: =SUM(B11:B18) -> 30 | C9: =SUM(C11:C18) -> 25 | D9: =C9/B9*100 -> 83.33333333 | E9: =SUM(E11:E18) -> 5 | F9: =E9/B9*100 -> 16.66666667 | G9: =SUM(G11:G18) -> 31 | H9: =SUM(H11:H18) -> 5 | I9: =H9/G9*100 -> 16.12903226 | J9: =SUM(J11:J18) -> 26 | K9: =J9/G9*100 -> 83.87096774
A11: PEÑAS BLANCAS | B11: =+C11+E11 -> 2 | C11: 1 | D11: =C11/B11*100 -> 50 | E11: 1 | F11: =E11/B11*100 -> 50 | G11: =+H11+J11 -> 2 | H11: 1 | I11: =H11/G11*100 -> 50 | J11: 1 | K11: =J11/G11*100 -> 50
A12: TUCURRIQUE | B12: 3 | C12: 3 | D12: 100 | E12: 0 | F12: 0 | G12: 3 | H12: 0 | I12: 0 | J12: 3 | K12: 100
A13: CERVANTES | B13: 4 | C13: 4 | D13: 100 | E13: 0 | F13: 0 | G13: 4 | H13: 0 | I13: 0 | J13: 4 | K13: 100
A14: COLORADO | B14: 4 | C14: 2 | D14: 50 | E14: 2 | F14: 50 | G14: 4 | H14: 2 | I14: 50 | J14: 2 | K14: 50
A15: LEPANTO | B15: 5 | C15: 4 | D15: 80 | E15: 1 | F15: 20 | G15: 5 | H15: 1 | I15: 20 | J15: 4 | K15: 80
A16: PAQUERA | B16: 4 | C16: 4 | D16: 100 | E16: 0 | F16: 0 | G16: 4 | H16: 0 | I16: 0 | J16: 4 | K16: 100
A17: MONTE VERDE | B17: 3 | C17: 2 | D17: 66.66666667 | E17: 1 | F17: 33.33333333 | G17: 4 | H17: 1 | I17: 25 | J17: 3 | K17: 75
A18: COBANO | B18: 5 | C18: 5 | D18: 100 | E18: 0 | F18: 0 | G18: 5 | H18: 0 | I18: 0 | J18: 5 | K18: 100
A21: Nota: Datos al 26 de octubre de 2010.
A22: Fuente: Departamento de Registro de Partidos Políticos, Base de datos de candidaturas diciembre 2010.

Sheet 29
A1: CUADRO 29 COSTA RICA: CANDIDATURAS A CONCEJALES MUNICIPALES DE DISTRITO EN PROPIEDAD Y SUPLENCIA, POR SEXO
A2: SEGÚN PARTIDO, ELECCIONES 5 DE DICIEMBRE 2010
A3: (CIFRAS ABSOLUTAS Y RELATIVAS)
A5: PARTIDO | B5: CONCEJALES MUNICIPALES DE DISTRITO | G5: EN PROPIEDAD | L5: EN SUPLENCIA
A6: PARTIDO POLITICO | B6: TOTAL | C6: HOMBRES | E6: MUJERES | G6: TOTAL | H6: HOMBRES | J6: MUJERES | L6: TOTAL | M6: HOMBRES | O6: MUJERES
B7: ABS | C7: ABS | D7: % | E7: ABS | F7: % | G7: ABS | H7: ABS | I7: % | J7: ABS | K7: % | L7: ABS | M7: ABS | N7: % | O7: ABS | P7: %
A9: TOTAL | B9: =SUM(B11:B17) -> 211 | C9: =SUM(C11:C17) -> 111 | D9: =C9/B9*100 -> 52.60663507 | E9: =SUM(E11:E17) -> 100 | F9: =E9/B9*100 -> 47.39336493 | G9: =SUM(G11:G17) -> 107 | H9: =SUM(H11:H17) -> 57 | I9: =H9/G9*100 -> 53.27102804 | J9: =SUM(J11:J17) -> 50 | K9: =J9/G9*100 -> 46.72897196 | L9: =SUM(L11:L17) -> 104 | M9: =SUM(M11:M17) -> 54 | N9: =M9/L9*100 -> 51.92307692 | O9: =SUM(O11:O17) -> 50 | P9: =O9/L9*100 -> 48.07692308
A11: ACCESIBILIDAD SIN EXCLUSIÓN | B11: =+C11+E11 -> 28 | C11: =+H11+M11 -> 15 | D11: =C11/B11*100 -> 53.57142857 | E11: =+J11+O11 -> 13 | F11: =E11/B11*100 -> 46.42857143 | G11: =+H11+J11 -> 14 | H11: 7 | I11: =H11/G11*100 -> 50 | J11: 7 | K11: =J11/G11*100 -> 50 | L11: =+M11+O11 -> 14 | M11: 8 | N11: =M11/L11*100 -> 57.14285714 | O11: 6 | P11: =O11/L11*100 -> 42.85714286
A12: ACCIÓN CIUDADANA | B12: 19 | C12: 9 | D12: 47.36842105 | E12: 10 | F12: 52.63157895 | G12: 11 | H12: 5 | I12: 45.45454545 | J12: 6 | K12: 54.54545455 | L12: 8 | M12: 4 | N12: 50 | O12: 4 | P12: 50
A13: LIBERACIÓN NACIONAL | B13: 60 | C13: 31 | D13: 51.66666667 | E13: 29 | F13: 48.33333333 | G13: 31 | H13: 16 | I13: 51.61290323 | J13: 15 | K13: 48.38709677 | L13: 29 | M13: 15 | N13: 51.72413793 | O13: 14 | P13: 48.27586207
A14: MOVIMIENTO LIBERTARIO | B14: 43 | C14: 22 | D14: 51.1627907 | E14: 21 | F14: 48.8372093 | G14: 21 | H14: 11 | I14: 52.38095238 | J14: 10 | K14: 47.61904762 | L14: 22 | M14: 11 | N14: 50 | O14: 11 | P14: 50
A15: ÚNICO ABANGAREÑO | B15: 8 | C15: 4 | D15: 50 | E15: 4 | F15: 50 | G15: 4 | H15: 2 | I15: 50 | J15: 2 | K15: 50 | L15: 4 | M15: 2 | N15: 50 | O15: 2 | P15: 50
A16: UNIDAD SOCIAL CRISTIANA | B16: 45 | C16: 26 | D16: 57.77777778 | E16: 19 | F16: 42.22222222 | G16: 22 | H16: 14 | I16: 63.63636364 | J16: 8 | K16: 36.36363636 | L16: 23 | M16: 12 | N16: 52.17391304 | O16: 11 | P16: 47.82608696
A17: UNION AGRÍCOLA CARTAGINÉS | B17: 8 | C17: 4 | D17: 50 | E17: 4 | F17: 50 | G17: 4 | H17: 2 | I17: 50 | J17: 2 | K17: 50 | L17: 4 | M17: 2 | N17: 50 | O17: 2 | P17: 50
A20: Nota: Datos al 26 de octubre de 2010.
A21: Fuente: Departamento de Registro de Partidos Políticos, Base de datos de candidaturas diciembre 2010.

Sheet 30
A1: CUADRO 30 COSTA RICA: CANDIDATURAS A CONCEJALES MUNICIPALES DE DISTRITO EN PROPIEDAD Y SUPLENCIA, POR SEXO
A2: SEGÚN DISTRITO ADMINISTRATIVO, ELECCIONES 5 DE DICIEMBRE 2010
A3: (CIFRAS ABSOLUTAS Y RELATIVAS)
A5: DISTRITO ADMINISTRATIVO | B5: CONCEJALES MUNICIPALES DE DISTRITO | G5: EN PROPIEDAD | L5: EN SUPLENCIA
A6: PARTIDO POLITICO | B6: TOTAL | C6: HOMBRES | E6: MUJERES | G6: TOTAL | H6: HOMBRES | J6: MUJERES | L6: TOTAL | M6: HOMBRES | O6: MUJERES
B7: ABS | C7: ABS | D7: % | E7: ABS | F7: % | G7: ABS | H7: ABS | I7: % | J7: ABS | K7: % | L7: ABS | M7: ABS | N7: % | O7: ABS | P7: %
A9: TOTAL | B9: =SUM(B11:B18) -> 211 | C9: =SUM(C11:C18) -> 111 | D9: =C9/B9*100 -> 52.60663507 | E9: =SUM(E11:E18) -> 100 | F9: =E9/B9*100 -> 47.39336493 | G9: =SUM(G11:G18) -> 107 | H9: =SUM(H11:H18) -> 57 | I9: =H9/G9*100 -> 53.27102804 | J9: =SUM(J11:J18) -> 50 | K9: =J9/G9*100 -> 46.72897196 | L9: =SUM(L11:L18) -> 104 | M9: =SUM(M11:M18) -> 54 | N9: =M9/L9*100 -> 51.92307692 | O9: =SUM(O11:O18) -> 50 | P9: =O9/L9*100 -> 48.07692308
A11: PEÑAS BLANCAS | B11: =+C11+E11 -> 15 | C11: =+H11+M11 -> 8 | D11: =C11/B11*100 -> 53.33333333 | E11: =+J11+O11 -> 7 | F11: =E11/B11*100 -> 46.66666667 | G11: =+H11+J11 -> 7 | H11: 4 | I11: =H11/G11*100 -> 57.14285714 | J11: 3 | K11: =J11/G11*100 -> 42.85714286 | L11: =+M11+O11 -> 8 | M11: 4 | N11: =M11/L11*100 -> 50 | O11: 4 | P11: =O11/L11*100 -> 50
A12: TUCURRIQUE | B12: 23 | C12: 12 | D12: 52.17391304 | E12: 11 | F12: 47.82608696 | G12: 11 | H12: 6 | I12: 54.54545455 | J12: 5 | K12: 45.45454545 | L12: 12 | M12: 6 | N12: 50 | O12: 6 | P12: 50
A13: CERVANTES | B13: 20 | C13: 11 | D13: 55 | E13: 9 | F13: 45 | G13: 11 | H13: 6 | I13: 54.54545455 | J13: 5 | K13: 45.45454545 | L13: 9 | M13: 5 | N13: 55.55555556 | O13: 4 | P13: 44.44444444
A14: COLORADO | B14: 31 | C14: 15 | D14: 48.38709677 | E14: 16 | F14: 51.61290323 | G14: 16 | H14: 8 | I14: 50 | J14: 8 | K14: 50 | L14: 15 | M14: 7 | N14: 46.66666667 | O14: 8 | P14: 53.33333333
A15: LEPANTO | B15: 31 | C15: 16 | D15: 51.61290323 | E15: 15 | F15: 48.38709677 | G15: 17 | H15: 9 | I15: 52.94117647 | J15: 8 | K15: 47.05882353 | L15: 14 | M15: 7 | N15: 50 | O15: 7 | P15: 50
A16: PAQUERA | B16: 30 | C16: 17 | D16: 56.66666667 | E16: 13 | F16: 43.33333333 | G16: 14 | H16: 8 | I16: 57.14285714 | J16: 6 | K16: 42.85714286 | L16: 16 | M16: 9 | N16: 56.25 | O16: 7 | P16: 43.75
A17: MONTE VERDE | B17: 26 | C17: 14 | D17: 53.84615385 | E17: 12 | F17: 46.15384615 | G17: 13 | H17: 7 | I17: 53.84615385 | J17: 6 | K17: 46.15384615 | L17: 13 | M17: 7 | N17: 53.84615385 | O17: 6 | P17: 46.15384615
A18: COBANO | B18: 35 | C18: 18 | D18: 51.42857143 | E18: 17 | F18: 48.57142857 | G18: 18 | H18: 9 | I18: 50 | J18: 9 | K18: 50 | L18: 17 | M18: 9 | N18: 52.94117647 | O18: 8 | P18: 47.05882353
A21: Nota: Datos al 26 de octubre de 2010.
A22: Fuente: Departamento de Registro de Partidos Políticos, Base de datos de candidaturas diciembre 2010.

Sheet 31
A1: CUADRO 31 COSTA RICA: CANDIDATURAS A ALCALDÍAS Y VICEALCALDÍAS POR SEXO
A2: SEGÚN GRUPOS DE EDAD, ELECCIONES 5 DE DICIEMBRE 2010
A4: GRUPOS DE EDAD | B4: TOTAL | E4: ALCALDÍAS | H4: VICEALCALDÍA PRIMERA | K4: VICEALCALDÍA PRIMERA
B5: TOTAL | C5: HOMBRES | D5: MUJERES | E5: TOTAL | F5: HOMBRES | G5: MUJERES | H5: TOTAL | I5: HOMBRES | J5: MUJERES | K5: TOTAL | L5: HOMBRES | M5: MUJERES
A7: TOTAL | B7: =SUM(B9:B19) -> 1008 | C7: 597 | D7: 411 | E7: 339 | F7: 290 | G7: 49 | H7: 338 | I7: 49 | J7: 289 | K7: 331 | L7: 258 | M7: 73
A9: 18 A 24 | B9: =+C9+D9 -> 51 | C9: =+F9+I9+L9 -> 18 | D9: =+G9+J9+M9 -> 33 | E9: =+F9+G9 -> 4 | F9: 2 | G9: 2 | H9: =+I9+J9 -> 27 | I9: 3 | J9: 24 | K9: =+L9+M9 -> 20 | L9: 13 | M9: 7
A10: 25 A 29 | B10: 67 | C10: 34 | D10: 33 | E10: 10 | F10: 9 | G10: 1 | H10: 34 | I10: 5 | J10: 29 | K10: 23 | L10: 20 | M10: 3
A11: 30 A 34 | B11: 101 | C11: 48 | D11: 53 | E11: 19 | F11: 14 | G11: 5 | H11: 42 | I11: 3 | J11: 39 | K11: 40 | L11: 31 | M11: 9
A12: 35 A 39 | B12: 134 | C12: 67 | D12: 67 | E12: 42 | F12: 34 | G12: 8 | H12: 53 | I12: 6 | J12: 47 | K12: 39 | L12: 27 | M12: 12
A13: 40 A 44 | B13: 169 | C13: 106 | D13: 63 | E13: 66 | F13: 56 | G13: 10 | H13: 50 | I13: 7 | J13: 43 | K13: 53 | L13: 43 | M13: 10
A14: 45 A 49 | B14: 214 | C14: 143 | D14: 71 | E14: 102 | F14: 89 | G14: 13 | H14: 52 | I14: 9 | J14: 43 | K14: 60 | L14: 45 | M14: 15
A15: 50 A 54 | B15: 138 | C15: 87 | D15: 51 | E15: 49 | F15: 45 | G15: 4 | H15: 44 | I15: 7 | J15: 37 | K15: 45 | L15: 35 | M15: 10
A16: 55 A 59 | B16: 76 | C16: 48 | D16: 28 | E16: 30 | F16: 25 | G16: 5 | H16: 21 | I16: 3 | J16: 18 | K16: 25 | L16: 20 | M16: 5
A17: 60 A 64 | B17: 42 | C17: 34 | D17: 8 | E17: 12 | F17: 11 | G17: 1 | H17: 9 | I17: 3 | J17: 6 | K17: 21 | L17: 20 | M17: 1
A18: 65 A 69 | B18: 15 | C18: 11 | D18: 4 | E18: 4 | F18: 4 | G18: 0 | H18: 6 | I18: 3 | J18: 3 | K18: 5 | L18: 4 | M18: 1
A19: 70 A 74 | B19: 1 | C19: 1 | D19: 0 | E19: 1 | F19: 1 | G19: 0 | H19: 0 | I19: 0 | J19: 0 | K19: 0 | L19: 0 | M19: 0
A22: Nota: Datos al 26 de octubre de 2010.
A23: Fuente: Departamento de Registro de Partidos Políticos, Base de datos de candidaturas diciembre 2010.

Sheet G4
A3: HOMBRES | B3: MUJERES
A5: =+'31'!C9 -> 18 | B5: =-1*'31'!D9 -> -33 | C5: 18 - 24 | D5: =CONCATENATE(C5," ") -> 18 - 24
A6: =+'31'!C10 -> 34 | B6: =-1*'31'!D10 -> -33 | C6: 25 - 29 | D6: 25 - 29
A7: =+'31'!C11 -> 48 | B7: =-1*'31'!D11 -> -53 | C7: 30 - 34 | D7: 30 - 34
A8: =+'31'!C12 -> 67 | B8: =-1*'31'!D12 -> -67 | C8: 35 - 39 | D8: 35 - 39
A9: =+'31'!C13 -> 106 | B9: =-1*'31'!D13 -> -63 | C9: 40 - 44 | D9: 40 - 44
A10: =+'31'!C14 -> 143 | B10: =-1*'31'!D14 -> -71 | C10: 45 - 49 | D10: 45 - 49
A11: =+'31'!C15 -> 87 | B11: =-1*'31'!D15 -> -51 | C11: 50 - 54 | D11: 50 - 54
A12: =+'31'!C16 -> 48 | B12: =-1*'31'!D16 -> -28 | C12: 55 - 59 | D12: 55 - 59
A13: =+'31'!C17 -> 34 | B13: =-1*'31'!D17 -> -8 | C13: 60 - 64 | D13: 60 - 64
A14: =+'31'!C18 -> 11 | B14: =-1*'31'!D18 -> -4 | C14: 65 - 69 | D14: 65 - 69
A15: =+'31'!C19 -> 1 | B15: =-1*'31'!D19 -> 0 | C15: 70 - 74 | D15: 70 - 74
L18: =CONCATENATE(K18," ") -> 
A27: Nota: Datos al 26 de octubre de 2010.
A28: Fuente: Departamento de Registro de Partidos Políticos, Base de datos de candidaturas diciembre 2010.

Sheet 32
A1: CUADRO 32 COSTA RICA: CANDIDATURAS A SÍNDICOS(AS) EN PROPIEDAD Y SUPLENCIA, POR SEXO
A2: SEGÚN GRUPOS DE EDAD, ELECCIONES 5 DE DICIEMBRE 2010
A4: GRUPOS DE EDAD | B4: SÍNDICOS(AS) | E4: EN PROPIEDAD | H4: EN SUPLENCIA
B5: TOTAL | C5: HOMBRES | D5: MUJERES | E5: TOTAL | F5: HOMBRES | G5: MUJERES | H5: TOTAL | I5: HOMBRES | J5: MUJERES
A7: TOTAL | B7: =SUM(B9:B21) -> 3578 | C7: 1801 | D7: 1777 | E7: 1837 | F7: 1241 | G7: 596 | H7: 1741 | I7: 560 | J7: 1181
A9: 18 - 24 | B9: =+C9+D9 -> 360 | C9: =+F9+I9 -> 143 | D9: =+G9+J9 -> 217 | E9: =+F9+G9 -> 118 | F9: 74 | G9: 44 | H9: =+I9+J9 -> 242 | I9: 69 | J9: 173
A10: 25 - 29 | B10: 258 | C10: 92 | D10: 166 | E10: 96 | F10: 55 | G10: 41 | H10: 162 | I10: 37 | J10: 125
A11: 30 - 34 | B11: 335 | C11: 148 | D11: 187 | E11: 158 | F11: 102 | G11: 56 | H11: 177 | I11: 46 | J11: 131
A12: 35 - 39 | B12: 478 | C12: 214 | D12: 264 | E12: 240 | F12: 147 | G12: 93 | H12: 238 | I12: 67 | J12: 171
A13: 40 - 44 | B13: 589 | C13: 290 | D13: 299 | E13: 317 | F13: 200 | G13: 117 | H13: 272 | I13: 90 | J13: 182
A14: 45 - 49 | B14: 575 | C14: 306 | D14: 269 | E14: 329 | F14: 230 | G14: 99 | H14: 246 | I14: 76 | J14: 170
A15: 50 - 54 | B15: 452 | C15: 251 | D15: 201 | E15: 263 | F15: 189 | G15: 74 | H15: 189 | I15: 62 | J15: 127
A16: 55 - 59 | B16: 250 | C16: 153 | D16: 97 | E16: 144 | F16: 104 | G16: 40 | H16: 106 | I16: 49 | J16: 57
A17: 60 - 64 | B17: 160 | C17: 115 | D17: 45 | E17: 104 | F17: 87 | G17: 17 | H17: 56 | I17: 28 | J17: 28
A18: 65 - 69 | B18: 79 | C18: 58 | D18: 21 | E18: 50 | F18: 40 | G18: 10 | H18: 29 | I18: 18 | J18: 11
A19: 70 - 74 | B19: 31 | C19: 24 | D19: 7 | E19: 14 | F19: 11 | G19: 3 | H19: 17 | I19: 13 | J19: 4
A20: 75 - 79 | B20: 9 | C20: 6 | D20: 3 | E20: 4 | F20: 2 | G20: 2 | H20: 5 | I20: 4 | J20: 1
A21: 80 - 84 | B21: 2 | C21: 1 | D21: 1 | E21: 0 | F21: 0 | G21: 0 | H21: 2 | I21: 1 | J21: 1
A24: Nota: Datos al 26 de octubre de 2010.
A25: Fuente: Departamento de Registro de Partidos Políticos, Base de datos de candidaturas diciembre 2010.

Sheet G5
A3: HOMBRES | B3: MUJERES
A5: =+'32'!C9 -> 143 | B5: =+'32'!D9*-1 -> -217 | C5: 18 - 24 | D5: =CONCATENATE(C5," ") -> 18 - 24
A6: =+'32'!C10 -> 92 | B6: =+'32'!D10*-1 -> -166 | C6: 25 - 29 | D6: 25 - 29
A7: =+'32'!C11 -> 148 | B7: =+'32'!D11*-1 -> -187 | C7: 30 - 34 | D7: 30 - 34
A8: =+'32'!C12 -> 214 | B8: =+'32'!D12*-1 -> -264 | C8: 35 - 39 | D8: 35 - 39
A9: =+'32'!C13 -> 290 | B9: =+'32'!D13*-1 -> -299 | C9: 40 - 44 | D9: 40 - 44
A10: =+'32'!C14 -> 306 | B10: =+'32'!D14*-1 -> -269 | C10: 45 - 49 | D10: 45 - 49
A11: =+'32'!C15 -> 251 | B11: =+'32'!D15*-1 -> -201 | C11: 50 - 54 | D11: 50 - 54
A12: =+'32'!C16 -> 153 | B12: =+'32'!D16*-1 -> -97 | C12: 55 - 59 | D12: 55 - 59
A13: =+'32'!C17 -> 115 | B13: =+'32'!D17*-1 -> -45 | C13: 60 - 64 | D13: 60 - 64
A14: =+'32'!C18 -> 58 | B14: =+'32'!D18*-1 -> -21 | C14: 65 - 69 | D14: 65 - 69
A15: =+'32'!C19 -> 24 | B15: =+'32'!D19*-1 -> -7 | C15: 70 - 74 | D15: 70 - 74
A16: =+'32'!C20 -> 6 | B16: =+'32'!D20*-1 -> -3 | C16: 75 - 79 | D16: 75 - 79
A17: =+'32'!C21 -> 1 | B17: =+'32'!D21*-1 -> -1 | C17: 80 - 84 | D17: 80 - 84
L20: =CONCATENATE(K20," ") -> 
A29: Nota: Datos al 26 de octubre de 2010.
A30: Fuente: Departamento de Registro de Partidos Políticos, Base de datos de candidaturas diciembre 2010.

Sheet 33
A1: CUADRO 33 COSTA RICA: CANDIDATURAS A CONCEJALES DE DISTRITO EN PROPIEDAD Y SUPLENCIA, POR SEXO
A2: SEGÚN GRUPOS DE EDAD, ELECCIONES 5 DE DICIEMBRE 2010
A4: GRUPOS DE EDAD | B4: CONCEJALES DE DISTRITO | E4: EN PROPIEDAD | H4: EN SUPLENCIA
B5: TOTAL | C5: HOMBRES | D5: MUJERES | E5: TOTAL | F5: HOMBRES | G5: MUJERES | H5: TOTAL | I5: HOMBRES | J5: MUJERES
A7: TOTAL | B7: =SUM(B9:B22) -> 11004 | C7: 5527 | D7: 5477 | E7: 5828 | F7: 2941 | G7: 2887 | H7: 5176 | I7: 2586 | J7: 2590
A9: 18 - 24 | B9: =+C9+D9 -> 1709 | C9: =+F9+I9 -> 749 | D9: =+G9+J9 -> 960 | E9: =+F9+G9 -> 792 | F9: 354 | G9: 438 | H9: =+I9+J9 -> 917 | I9: 395 | J9: 522
A10: 25 - 29 | B10: 1071 | C10: 452 | D10: 619 | E10: 580 | F10: 243 | G10: 337 | H10: 491 | I10: 209 | J10: 282
A11: 30 - 34 | B11: 1181 | C11: 515 | D11: 666 | E11: 621 | F11: 257 | G11: 364 | H11: 560 | I11: 258 | J11: 302
A12: 35 - 39 | B12: 1458 | C12: 669 | D12: 789 | E12: 784 | F12: 352 | G12: 432 | H12: 674 | I12: 317 | J12: 357
A13: 40 - 44 | B13: 1572 | C13: 819 | D13: 753 | E13: 860 | F13: 452 | G13: 408 | H13: 712 | I13: 367 | J13: 345
A14: 45 - 49 | B14: 1357 | C14: 714 | D14: 643 | E14: 765 | F14: 412 | G14: 353 | H14: 592 | I14: 302 | J14: 290
A15: 50 - 54 | B15: 1098 | C15: 593 | D15: 505 | E15: 594 | F15: 334 | G15: 260 | H15: 504 | I15: 259 | J15: 245
A16: 55 - 59 | B16: 729 | C16: 439 | D16: 290 | E16: 414 | F16: 236 | G16: 178 | H16: 315 | I16: 203 | J16: 112
A17: 60 - 64 | B17: 434 | C17: 288 | D17: 146 | E17: 228 | F17: 154 | G17: 74 | H17: 206 | I17: 134 | J17: 72
A18: 65 - 69 | B18: 234 | C18: 165 | D18: 69 | E18: 113 | F18: 87 | G18: 26 | H18: 121 | I18: 78 | J18: 43
A19: 70 - 74 | B19: 107 | C19: 83 | D19: 24 | E19: 51 | F19: 44 | G19: 7 | H19: 56 | I19: 39 | J19: 17
A20: 75 - 79 | B20: 40 | C20: 33 | D20: 7 | E20: 20 | F20: 16 | G20: 4 | H20: 20 | I20: 17 | J20: 3
A21: 80 - 84 | B21: 13 | C21: 7 | D21: 6 | E21: 6 | F21: 0 | G21: 6 | H21: 7 | I21: 7 | J21: 0
A22: 85 Y MÁS | B22: 1 | C22: 1 | D22: 0 | E22: 0 | F22: 0 | G22: 0 | H22: 1 | I22: 1 | J22: 0
A25: Nota: Datos al 26 de octubre de 2010.
A26: Fuente: Departamento de Registro de Partidos Políticos, Base de datos de candidaturas diciembre 2010.

Sheet G6
A3: HOMBRES | B3: MUJERES
A5: =+'33'!C9 -> 749 | B5: =+'33'!D9*-1 -> -960 | C5: 18 - 24 | D5: =CONCATENATE(C5," ") -> 18 - 24
A6: =+'33'!C10 -> 452 | B6: =+'33'!D10*-1 -> -619 | C6: 25 - 29 | D6: 25 - 29
A7: =+'33'!C11 -> 515 | B7: =+'33'!D11*-1 -> -666 | C7: 30 - 34 | D7: 30 - 34
A8: =+'33'!C12 -> 669 | B8: =+'33'!D12*-1 -> -789 | C8: 35 - 39 | D8: 35 - 39
A9: =+'33'!C13 -> 819 | B9: =+'33'!D13*-1 -> -753 | C9: 40 - 44 | D9: 40 - 44
A10: =+'33'!C14 -> 714 | B10: =+'33'!D14*-1 -> -643 | C10: 45 - 49 | D10: 45 - 49
A11: =+'33'!C15 -> 593 | B11: =+'33'!D15*-1 -> -505 | C11: 50 - 54 | D11: 50 - 54
A12: =+'33'!C16 -> 439 | B12: =+'33'!D16*-1 -> -290 | C12: 55 - 59 | D12: 55 - 59
A13: =+'33'!C17 -> 288 | B13: =+'33'!D17*-1 -> -146 | C13: 60 - 64 | D13: 60 - 64
A14: =+'33'!C18 -> 165 | B14: =+'33'!D18*-1 -> -69 | C14: 65 - 69 | D14: 65 - 69
A15: =+'33'!C19 -> 83 | B15: =+'33'!D19*-1 -> -24 | C15: 70 - 74 | D15: 70 - 74
A16: =+'33'!C20 -> 33 | B16: =+'33'!D20*-1 -> -7 | C16: 75 - 79 | D16: 75 - 79
A17: =+'33'!C21 -> 7 | B17: =+'33'!D21*-1 -> -6 | C17: 80 - 84 | D17: 80 - 84
A18: =+'33'!C22 -> 1 | B18: =+'33'!D22*-1 -> 0 | C18: 85 Y MÁS | D18: 85 Y MÁS
A30: Nota: Datos al 26 de octubre de 2010.
A31: Fuente: Departamento de Registro de Partidos Políticos, Base de datos de candidaturas diciembre 2010.

Sheet 34
A1: CUADRO 34 COSTA RICA: CANDIDATURAS A INTENDENCIAS Y VICEINTENDENCIAS, POR SEXO
A2: SEGÚN GRUPOS DE EDAD, ELECCIONES 5 DE DICIEMBRE 2010
A4: GRUPOS DE EDAD | B4: TOTAL | E4: INTENDENCIAS | H4: VICEINTENDENCIAS
B5: TOTAL | C5: HOMBRES | D5: MUJERES | E5: TOTAL | F5: HOMBRES | G5: MUJERES | H5: TOTAL | I5: HOMBRES | J5: MUJERES
A7: TOTAL | B7: =SUM(B9:B16) -> 61 | C7: 30 | D7: 31 | E7: 30 | F7: 25 | G7: 5 | H7: 31 | I7: 5 | J7: 26
A9: 18 - 24 | B9: =+C9+D9 -> 9 | C9: =+F9+I9 -> 2 | D9: 7 | E9: =+F9+G9 -> 2 | F9: 2 | G9: 0 | H9: =+I9+J9 -> 7 | I9: 0 | J9: 7
A10: 25 - 29 | B10: 6 | C10: 2 | D10: 4 | E10: 2 | F10: 2 | G10: 0 | H10: 4 | I10: 0 | J10: 4
A11: 30 - 34 | B11: 8 | C11: 3 | D11: 5 | E11: 2 | F11: 2 | G11: 0 | H11: 6 | I11: 1 | J11: 5
A12: 35 - 39 | B12: 12 | C12: 5 | D12: 7 | E12: 5 | F12: 4 | G12: 1 | H12: 7 | I12: 1 | J12: 6
A13: 40 - 44 | B13: 8 | C13: 6 | D13: 2 | E13: 5 | F13: 5 | G13: 0 | H13: 3 | I13: 1 | J13: 2
A14: 45 - 49 | B14: 6 | C14: 3 | D14: 3 | E14: 4 | F14: 3 | G14: 1 | H14: 2 | I14: 0 | J14: 2
A15: 50 - 54 | B15: 8 | C15: 5 | D15: 3 | E15: 7 | F15: 4 | G15: 3 | H15: 1 | I15: 1 | J15: 0
A16: 55 - 59 | B16: 4 | C16: 4 | D16: 0 | E16: 3 | F16: 3 | G16: 0 | H16: 1 | I16: 1 | J16: 0
A19: Nota: Datos al 26 de octubre de 2010.
A20: Fuente: Departamento de Registro de Partidos Políticos, Base de datos de candidaturas diciembre 2010.

Sheet 35
A1: CUADRO 35 COSTA RICA: CANDIDATURAS A CONCEJALES MUNICIPALES DE DISTRITO EN PROPIEDAD Y SUPLENCIA
A2: POR SEXO, SEGÚN GRUPOS DE EDAD, ELECCIONES 5 DE DICIEMBRE 2010
A4: GRUPOS DE EDAD | B4: CONCEJALES MUNICIPALES DE DISTRITO | E4: EN PROPIEDAD | H4: EN SUPLENCIA
B5: TOTAL | C5: HOMBRES | D5: MUJERES | E5: TOTAL | F5: HOMBRES | G5: MUJERES | H5: TOTAL | I5: HOMBRES | J5: MUJERES
A7: TOTAL | B7: =SUM(B9:B19) -> 211 | C7: 111 | D7: 100 | E7: 107 | F7: 57 | G7: 50 | H7: 104 | I7: 54 | J7: 50
A9: 18 - 24 | B9: =+C9+D9 -> 32 | C9: =+F9+I9 -> 14 | D9: =+G9+J9 -> 18 | E9: =+F9+G9 -> 14 | F9: 7 | G9: 7 | H9: =+I9+J9 -> 18 | I9: 7 | J9: 11
A10: 25 - 29 | B10: 16 | C10: 11 | D10: 5 | E10: 10 | F10: 7 | G10: 3 | H10: 6 | I10: 4 | J10: 2
A11: 30 - 34 | B11: 27 | C11: 15 | D11: 12 | E11: 12 | F11: 5 | G11: 7 | H11: 15 | I11: 10 | J11: 5
A12: 35 - 39 | B12: 37 | C12: 21 | D12: 16 | E12: 21 | F12: 14 | G12: 7 | H12: 16 | I12: 7 | J12: 9
A13: 40 - 44 | B13: 37 | C13: 18 | D13: 19 | E13: 21 | F13: 10 | G13: 11 | H13: 16 | I13: 8 | J13: 8
A14: 45 - 49 | B14: 36 | C14: 16 | D14: 20 | E14: 15 | F14: 5 | G14: 10 | H14: 21 | I14: 11 | J14: 10
A15: 50 - 54 | B15: 14 | C15: 8 | D15: 6 | E15: 8 | F15: 4 | G15: 4 | H15: 6 | I15: 4 | J15: 2
A16: 55 - 59 | B16: 5 | C16: 4 | D16: 1 | E16: 2 | F16: 2 | G16: 0 | H16: 3 | I16: 2 | J16: 1
A17: 60 - 64 | B17: 3 | C17: 1 | D17: 2 | E17: 2 | F17: 1 | G17: 1 | H17: 1 | I17: 0 | J17: 1
A18: 65 - 69 | B18: 2 | C18: 1 | D18: 1 | E18: 1 | F18: 1 | G18: 0 | H18: 1 | I18: 0 | J18: 1
A19: 70 - 74 | B19: 2 | C19: 2 | D19: 0 | E19: 1 | F19: 1 | G19: 0 | H19: 1 | I19: 1 | J19: 0
A22: Nota: Datos al 26 de octubre de 2010.
A23: Fuente: Departamento de Registro de Partidos Políticos, Base de datos de candidaturas diciembre 2010.
